Workbook

Sheet ÍNDICE
A1: 45230
B7: Sector Financiero Popular y Solidario
B8: Reporte financiero comparativo el Segmento 1
B9: ="Corte al "&DAY(A1)&" de "&TEXT(A1,"mmmm")&" de "&YEAR(A1) -> Corte al 31 de octubre de 2023
B11: PRESENTACIÓN
B12: La información presentada en este reporte estadístico es de exclusiva responsabilidad de las entidades supervisadas por la SEPS. La Superintendencia se reserva el derecho de actualizar la misma al momento de recibir nueva información o en caso de reproceso de información.
B14: ÍNDICE
B15: Concepto | C15: Gráfico / Tabla
B16: ÍNDICE
B17: INTRODUCCIÓN
B18: ESTADO FINANCIERO
B19: RESULTADOS DEL EJERCICIO
B20: CLASIFICACIÓN DE CARTERA
B21: RANKING
B22: INDICADORES FINANCIEROS
B23: Fecha de publicación: 20/11/2023
B24: Fuente: SEPS - Sistema de Acopio integral - Estructura de estados financieros mensuales (B11)
B25: Elaborado por: Dirección Nacional de Gestión de la Información
B26: Consultas: estadisticas@seps.gob.ec
B29: Notas: [1] El presente Boletín cuenta con la Segmentación según Resolución Nro. 521-2019-F de 14 de junio de 2019.
B30: [2] Las cuentas contables a ser reportadas por las Cooperativas de Ahorro y Crédito, Mutualistas, Caja Central y Conafips (en función al segmento al que pertenecen) se encuentra establecido en el catálogo único de cuentas según Resolución Nro. SEPS-IGT-IGS-INSESF-INR-INFMR-INGINT-2022-0194; SEPS-IGT-IGS-INSESF-INGINT-2022-0338 y SEPS-IGT-IGS-INSESF-INGINT-2022-0357
B33: A partir del 01 de junio de 2023 las siguientes entidades forman parte del segmento 1:
B34: COOPERATIVA DE AHORRO Y CREDITO DE LA PEQUEÑA EMPRESA GUALAQUIZA
B35: COOPERATIVA DE AHORRO Y CREDITO LUZ DEL VALLE
B37: Se encuentra pendiente el envio de información de las siguientes entidades que forman parte del segmento 1:
B40: [4] Las siguientes entidades cambiaron su razón social debido al proceso de adecuación de estatutos:
B42: RUC | C42: Razón social anterior | D42: Razón social actualizada (Adecuación de estatutos)
B43: 1790501469001 | C43: COOPERATIVA DE AHORRO Y CREDITO ALIANZA DEL VALLE LTDA | D43: COOPERATIVA DE AHORRO Y CREDITO ALIANZA DEL VALLE LIMITADA
B44: 1790093204001 | C44: COOPERATIVA DE AHORRO Y CREDITO 23 DE JULIO LTDA | D44: COOPERATIVA DE AHORRO Y CREDITO 23 DE JULIO LIMITADA
B45: 1790325083001 | C45: COOPERATIVA DE AHORRO Y CREDITO ANDALUCIA LTDA | D45: COOPERATIVA DE AHORRO Y CREDITO ANDALUCIA LIMITADA
B46: 1090033456001 | C46: COOPERATIVA DE AHORRO Y CREDITO ATUNTAQUI LTDA | D46: COOPERATIVA DE AHORRO Y CREDITO ATUNTAQUI LIMITADA
B47: 1891710328001 | C47: COOPERATIVA DE AHORRO Y CREDITO CHIBULEO LTDA | D47: COOPERATIVA DE AHORRO Y CREDITO CHIBULEO LIMITADA
B48: 1790451801001 | C48: COOPERATIVA DE AHORRO Y CREDITO COOPROGRESO LTDA | D48: COOPERATIVA DE AHORRO Y CREDITO COOPROGRESO LIMITADA
B49: 0190158977001 | C49: COOPERATIVA DE AHORRO Y CREDITO CREA LTDA | D49: COOPERATIVA DE AHORRO Y CREDITO CREA LIMITADA
B50: 0390027923001 | C50: COOPERATIVA DE AHORRO Y CREDITO DE LA PEQUEÑA EMPRESA BIBLIAN LTDA | D50: COOPERATIVA DE AHORRO Y CREDITO DE LA PEQUEÑA EMPRESA BIBLIAN LIMITADA
B51: 0590052000001 | C51: COOPERATIVA DE AHORRO Y CREDITO DE LA PEQUEÑA EMPRESA DE COTOPAXI LTDA | D51: COOPERATIVA DE AHORRO Y CREDITO DE LA PEQUEÑA EMPRESA DE COTOPAXI LIMITADA
B52: 1690012606001 | C52: COOPERATIVA DE AHORRO Y CREDITO DE LA PEQUEÑA EMPRESA DE PASTAZA LTDA | D52: COOPERATIVA DE AHORRO Y CREDITO DE LA PEQUEÑA EMPRESA DE PASTAZA LIMITADA
B53: 0190024733001 | C53: COOPERATIVA DE AHORRO Y CREDITO ERCO LTDA | D53: COOPERATIVA DE AHORRO Y CREDITO ERCO LIMITADA
B54: 0691706710001 | C54: COOPERATIVA DE AHORRO Y CREDITO FERNANDO DAQUILEMA | D54: COOPERATIVA DE AHORRO Y CREDITO FERNANDO DAQUILEMA LIMITADA
B55: 0190155722001 | C55: COOPERATIVA DE AHORRO Y CREDITO JARDIN AZUAYO LTDA | D55: COOPERATIVA DE AHORRO Y CREDITO JARDIN AZUAYO LIMITADA
B56: 0190115798001 | C56: COOPERATIVA DE AHORRO Y CREDITO JUVENTUD ECUATORIANA PROGRESISTA LTDA | D56: COOPERATIVA DE AHORRO Y CREDITO JUVENTUD ECUATORIANA PROGRESISTA LIMITADA
B57: 0190021769001 | C57: COOPERATIVA DE AHORRO Y CREDITO LA MERCED LTDA | D57: COOPERATIVA DE AHORRO Y CREDITO LA MERCED LIMITADA
B58: 1890001323001 | C58: COOPERATIVA DE AHORRO Y CREDITO OSCUS LTDA | D58: COOPERATIVA DE AHORRO Y CREDITO OSCUS LIMITADA
B59: 0490001883001 | C59: COOPERATIVA DE AHORRO Y CREDITO PABLO MUÑOZ VEGA LTDA | D59: COOPERATIVA DE AHORRO Y CREDITO PABLO MUÑOZ VEGA LIMITADA
B60: 1091720902001 | C60: COOPERATIVA DE AHORRO Y CREDITO PILAHUIN TIO LTDA | D60: COOPERATIVA DE AHORRO Y CREDITO PILAHUIN TIO LIMITADA
B61: 1790866084001 | C61: COOPERATIVA DE AHORRO Y CREDITO POLICIA NACIONAL LTDA | D61: COOPERATIVA DE AHORRO Y CREDITO POLICIA NACIONAL LIMITADA
B62: 0290003288001 | C62: COOPERATIVA DE AHORRO Y CREDITO SAN JOSE LTDA | D62: COOPERATIVA DE AHORRO Y CREDITO SAN JOSE LIMITADA
B63: 0790024656001 | C63: COOPERATIVA DE AHORRO Y CREDITO SANTA ROSA LTDA | D63: COOPERATIVA DE AHORRO Y CREDITO SANTA ROSA LIMITADA
B64: 0490002669001 | C64: COOPERATIVA DE AHORRO Y CREDITO TULCAN LTDA | D64: COOPERATIVA DE AHORRO Y CREDITO TULCAN LIMITADA
B65: 1190068389001 | C65: COOPERATIVA DE AHORRO Y CREDITO VICENTINA MANUEL ESTEBAN GODOY ORTEGA LTDA | D65: COOPERATIVA DE AHORRO Y CREDITO VICENTINA MANUEL ESTEBAN GODOY ORTEGA LIMITADA
B66: 0190087603001 | C66: COOPERATIVA DE AHORRO Y CREDITO ALFONSO JARAMILLO LEON CCC | D66: COOPERATIVA DE AHORRO Y CREDITO ALFONSO JARAMILLO LEON CAJA

Sheet INTRODUCCIÓN
A1: g | D1: Menú Principal
B6: INTRODUCCIÓN
B8: La SEPS como una entidad técnica de supervisión y control de las organizaciones de la economía popular y solidaria, con personalidad jurídica de derecho público y autonomía administrativa y financiera, busca el desarrollo, estabilidad, solidez y correcto funcionamiento del sector económico popular y solidario. Presenta el boletín financiero correspondiente a las cooperativas del Segmento 1*, utilizando las estructuras de estados financieros reportadas a la SEPS. La información contenida en este reporte estadístico es de exclusiva responsabilidad de las cooperativas de ahorro y crédito supervisadas por la SEPS. La Superintendencia se reserva el derecho de actualizar la misma al momento de recibir nueva información.
B19: * Resolución No. 521-2019-F

Sheet ESTADO FINANCIERO (2)
B1: Menú Principal
A4: ESTADO FINANCIERO
A5: SECTOR FINANCIERO POPULAR Y SOLIDARIO SEGMENTO 1
A6: =UPPER("PERIODO DEL 1 ENERO DEL 2023 AL "&DAY(ÍNDICE!A1)&" DE "&TEXT(ÍNDICE!A1,"MMMM")&" DEL "&YEAR(ÍNDICE!A1)) -> PERIODO DEL 1 ENERO DEL 2023 AL 31 DE OCTUBRE DEL 2023
A7: (Dólares)
E8: FECHA
E9: 44957 | F9: 44985 | G9: 45016 | H9: 45046 | I9: 45077 | J9: 45107 | K9: 45138 | L9: 45169 | M9: 45199 | N9: 45230
A10: COD CONTABLE | B10: Nombre de Cuenta | C10: TIPO* | D10: GRUPO** | E10: 23 DE JULIO LIMITADA | F10: 23 DE JULIO LIMITADA | G10: 23 DE JULIO LIMITADA | H10: 23 DE JULIO LIMITADA | I10: 23 DE JULIO LIMITADA | J10: 23 DE JULIO LIMITADA | K10: 23 DE JULIO LIMITADA | L10: 23 DE JULIO LIMITADA | M10: 23 DE JULIO LIMITADA | N10: 23 DE JULIO LIMITADA
A11: 1 | B11: ACTIVO | C11: 1 | D11: 1 | E11: 420504491.6 | F11: 425993623.2 | G11: 432962553.7 | H11: 434585509 | I11: 436146707.6 | J11: 435358809.2 | K11: 427223327.4 | L11: 427421023 | M11: 426876531.9 | N11: 422894724.4 | O11: 37890185.83 | P11: 34610160.18 | Q11: =+P11-O11 -> -3280025.65
A12: 11 | B12: FONDOS DISPONIBLES | C12: 1 | D12: 2 | E12: 35838105.69 | F12: 35544783.01 | G12: 37178491.21 | H12: 38779432.19 | I12: 39134154.86 | J12: 38342834.76 | K12: 30519435.25 | L12: 37175994.01 | M12: 37890185.83 | N12: 34610160.18 | O12: =+SUM(M12:M14) -> 53563866.07 | P12: =+SUM(N12:N14) -> 51403708.08 | Q12: =+P12-O12 -> -2160157.99
A13: 1101 | B13: Caja | C13: 1 | D13: 4 | E13: 7668052.92 | F13: 7136638.29 | G13: 7065095.9 | H13: 7525530.18 | I13: 7636200.98 | J13: 6370926.83 | K13: 7642563.14 | L13: 7824512.06 | M13: 7842915.12 | N13: 8402848.95
A14: 110105 | B14: Efectivo | C14: 1 | D14: 6 | E14: 7655902.92 | F14: 7124488.29 | G14: 7052945.9 | H14: 7513380.18 | I14: 7624050.98 | J14: 6358776.83 | K14: 7630413.14 | L14: 7812362.06 | M14: 7830765.12 | N14: 8390698.95
A15: 110110 | B15: Caja chica | C15: 1 | D15: 6 | E15: 12150 | F15: 12150 | G15: 12150 | H15: 12150 | I15: 12150 | J15: 12150 | K15: 12150 | L15: 12150 | M15: 12150 | N15: 12150
A16: 1102 | B16: Depósitos para encaje | C16: 1 | D16: 4 | E16: 6234000 | F16: 6234000 | G16: 8180090 | H16: 8303740 | I16: 8342540 | J16: 10030530 | K16: 9905580 | L16: 9707700 | M16: 11153460 | N16: 11870570
A17: 110205 | B17: Banco Central del Ecuador | C17: 1 | D17: 6 | E17: 6234000 | F17: 6234000 | G17: 8180090 | H17: 8303740 | I17: 8342540 | J17: 10030530 | K17: 9905580 | L17: 9707700 | M17: 11153460 | N17: 11870570
A18: 1103 | B18: Bancos y otras entidades financieras | C18: 1 | D18: 4 | E18: 21911126.13 | F18: 22141788.53 | G18: 21854030.34 | H18: 22876774.44 | I18: 23128451.55 | J18: 21923242.22 | K18: 12947581.87 | L18: 19593511.84 | M18: 18733425.62 | N18: 14284719.3
A19: 110305 | B19: Banco Central del Ecuador | C19: 1 | D19: 6 | E19: 1267981.44 | F19: 2659809.1 | G19: 3252104.29 | H19: 2429246.62 | I19: 1802911.76 | J19: 1673680.17 | K19: 951800.16 | L19: 2140385.22 | M19: 4481061.38 | N19: 190015.7
A20: 110310 | B20: Entidades del sector financiero público y privado | C20: 1 | D20: 6 | E20: 12369508.44 | F20: 12030239.29 | G20: 11757483.52 | H20: 11104238.59 | I20: 12083171.39 | J20: 12151356.84 | K20: 6020374.98 | L20: 11282902.92 | M20: 9898771.93 | N20: 9415305.81
A21: 110315 | B21: Bancos e instituciones financieras del exterior | C21: 1 | D21: 6 | E21: 0 | F21: 0 | G21: 0 | H21: 0 | I21: 0 | J21: 0 | K21: 0 | L21: 0 | M21: 0 | N21: 0
A22: 110320 | B22: Entidades del sector financiero popular y solidario | C22: 1 | D22: 6 | E22: 8273636.25 | F22: 7451740.14 | G22: 6844442.53 | H22: 9343289.23 | I22: 9242368.4 | J22: 8098205.21 | K22: 5975406.73 | L22: 6170223.7 | M22: 4353592.31 | N22: 4679397.79
A23: 1104 | B23: Efectos de cobro inmediato | C23: 1 | D23: 4 | E23: 24926.64 | F23: 32356.19 | G23: 79274.97 | H23: 73387.57 | I23: 26962.33 | J23: 18135.71 | K23: 23710.24 | L23: 50270.11 | M23: 160385.09 | N23: 52021.93
A24: 110401 | B24: Efectos de cobro inmediato | C24: 1 | D24: 6 | E24: 24926.64 | F24: 32356.19 | G24: 79274.97 | H24: 73387.57 | I24: 26962.33 | J24: 18135.71 | K24: 23710.24 | L24: 50270.11 | M24: 160385.09 | N24: 52021.93
A25: 1105 | B25: Remesas en tránsito / transferencias en tránsito | C25: 1 | D25: 4 | E25: 0 | F25: 0 | G25: 0 | H25: 0 | I25: 0 | J25: 0 | K25: 0 | L25: 0 | M25: 0 | N25: 0
A26: 110505 | B26: Del país | C26: 1 | D26: 6 | E26: 0 | F26: 0 | G26: 0 | H26: 0 | I26: 0 | J26: 0 | K26: 0 | L26: 0 | M26: 0 | N26: 0
A27: 110510 | B27: Del exterior | C27: 1 | D27: 6 | E27: 0 | F27: 0 | G27: 0 | H27: 0 | I27: 0 | J27: 0 | K27: 0 | L27: 0 | M27: 0 | N27: 0
A28: 110515 | B28: Transferencias en tránsito | C28: 1 | D28: 6
A29: 12 | B29: OPERACIONES INTERFINANCIERAS | C29: 1 | D29: 2 | E29: 0 | F29: 0 | G29: 0 | H29: 0 | I29: 0 | J29: 0 | K29: 0 | L29: 0 | M29: 0 | N29: 0
A30: 1201 | B30: Fondos interfinancieros vendidos | C30: 1 | D30: 4 | E30: 0 | F30: 0 | G30: 0 | H30: 0 | I30: 0 | J30: 0 | K30: 0 | L30: 0 | M30: 0 | N30: 0
A31: 120105 | B31: Entidades del sector financiero privado | C31: 1 | D31: 6 | E31: 0 | F31: 0 | G31: 0 | H31: 0 | I31: 0 | J31: 0 | K31: 0 | L31: 0 | M31: 0 | N31: 0
A32: 120110 | B32: Entidades del sector financiero público | C32: 1 | D32: 6 | E32: 0 | F32: 0 | G32: 0 | H32: 0 | I32: 0 | J32: 0 | K32: 0 | L32: 0 | M32: 0 | N32: 0
A33: 120115 | B33: Entidades del sector financiero popular y solidario | C33: 1 | D33: 6 | E33: 0 | F33: 0 | G33: 0 | H33: 0 | I33: 0 | J33: 0 | K33: 0 | L33: 0 | M33: 0 | N33: 0
A34: 1202 | B34: Operaciones de reporto con instituciones financieras | C34: 1 | D34: 4
A35: 120205 | B35: Entidades del sector financiero público | C35: 1 | D35: 6
A36: 120210 | B36: Entidades del sector financiero privado | C36: 1 | D36: 6
A37: 13 | B37: INVERSIONES | C37: 1 | D37: 2 | E37: 54539820.67 | F37: 57702348.69 | G37: 57112500.12 | H37: 56050941.07 | I37: 54978367.93 | J37: 52504820.09 | K37: 53262292.92 | L37: 55193705.97 | M37: 57089839.41 | N37: 59954781.27
A38: 1301 | B38: A valor razonable con cambios en el estado de resultados de entidades del sector privado y sector financiero popular y solidario | C38: 1 | D38: 4 | E38: 0 | F38: 0 | G38: 0 | H38: 0 | I38: 0 | J38: 0 | K38: 0 | L38: 0 | M38: 0 | N38: 0
A39: 130105 | B39: De 1 a 30 días sector privado | C39: 1 | D39: 6 | E39: 0 | F39: 0 | G39: 0 | H39: 0 | I39: 0 | J39: 0 | K39: 0 | L39: 0 | M39: 0 | N39: 0
A40: 130110 | B40: De 31 a 90 días sector privado | C40: 1 | D40: 6 | E40: 0 | F40: 0 | G40: 0 | H40: 0 | I40: 0 | J40: 0 | K40: 0 | L40: 0 | M40: 0 | N40: 0
A41: 130115 | B41: De 91 a 180 días sector privado | C41: 1 | D41: 6 | E41: 0 | F41: 0 | G41: 0 | H41: 0 | I41: 0 | J41: 0 | K41: 0 | L41: 0 | M41: 0 | N41: 0
A42: 130120 | B42: De 181 a 360 días sector privado | C42: 1 | D42: 6 | E42: 0 | F42: 0 | G42: 0 | H42: 0 | I42: 0 | J42: 0 | K42: 0 | L42: 0 | M42: 0 | N42: 0
A43: 130125 | B43: De más de 360 días sector privado | C43: 1 | D43: 6 | E43: 0 | F43: 0 | G43: 0 | H43: 0 | I43: 0 | J43: 0 | K43: 0 | L43: 0 | M43: 0 | N43: 0
A44: 130150 | B44: De 1 a 30 días sector financiero popular y solidario | C44: 1 | D44: 6 | E44: 0 | F44: 0 | G44: 0 | H44: 0 | I44: 0 | J44: 0 | K44: 0 | L44: 0 | M44: 0 | N44: 0
A45: 130155 | B45: De 31 a 90 días sector financiero popular y solidario | C45: 1 | D45: 6 | E45: 0 | F45: 0 | G45: 0 | H45: 0 | I45: 0 | J45: 0 | K45: 0 | L45: 0 | M45: 0 | N45: 0
A46: 130160 | B46: De 91 a 180 días sector financiero popular y solidario | C46: 1 | D46: 6 | E46: 0 | F46: 0 | G46: 0 | H46: 0 | I46: 0 | J46: 0 | K46: 0 | L46: 0 | M46: 0 | N46: 0
A47: 130165 | B47: De 181 a 360 días sector financiero popular y solidario | C47: 1 | D47: 6 | E47: 0 | F47: 0 | G47: 0 | H47: 0 | I47: 0 | J47: 0 | K47: 0 | L47: 0 | M47: 0 | N47: 0
A48: 130170 | B48: De más de 360 días sector financiero popular y solidario | C48: 1 | D48: 6 | E48: 0 | F48: 0 | G48: 0 | H48: 0 | I48: 0 | J48: 0 | K48: 0 | L48: 0 | M48: 0 | N48: 0
A49: 1302 | B49: A valor razonable con cambios en el estado de resultados del Estado o de entidades del sector público | C49: 1 | D49: 4 | E49: 0 | F49: 0 | G49: 0 | H49: 0 | I49: 0 | J49: 0 | K49: 0 | L49: 0 | M49: 0 | N49: 0
A50: 130205 | B50: De 1 a 30 días | E50: 0 | F50: 0 | G50: 0 | H50: 0 | I50: 0 | J50: 0 | K50: 0 | L50: 0 | M50: 0 | N50: 0
A51: 130210 | B51: De 31 a 90 días | C51: 1 | D51: 6 | E51: 0 | F51: 0 | G51: 0 | H51: 0 | I51: 0 | J51: 0 | K51: 0 | L51: 0 | M51: 0 | N51: 0
A52: 130215 | B52: De 91 a 180 días | C52: 1 | D52: 6 | E52: 0 | F52: 0 | G52: 0 | H52: 0 | I52: 0 | J52: 0 | K52: 0 | L52: 0 | M52: 0 | N52: 0
A53: 130220 | B53: De 181 a 360 días | C53: 1 | D53: 6 | E53: 0 | F53: 0 | G53: 0 | H53: 0 | I53: 0 | J53: 0 | K53: 0 | L53: 0 | M53: 0 | N53: 0
A54: 130225 | B54: De más de 360 días | C54: 1 | D54: 6 | E54: 0 | F54: 0 | G54: 0 | H54: 0 | I54: 0 | J54: 0 | K54: 0 | L54: 0 | M54: 0 | N54: 0
A55: 1303 | B55: Disponibles para la venta de entidades del sector privado y sector financiero popular y solidario | C55: 1 | D55: 4 | E55: 54539820.67 | F55: 57702348.69 | G55: 57112500.12 | H55: 56050941.07 | I55: 54978367.93 | J55: 52504820.09 | K55: 53262292.92 | L55: 55193705.97 | M55: 57089839.41 | N55: 59954781.27
A56: 130305 | B56: De 1 a 30 días sector privado | C56: 1 | D56: 6 | E56: 1645921.03 | F56: 0 | G56: 2511800.64 | H56: 231596.8 | I56: 500000 | J56: 310018.08 | K56: 3959485.41 | L56: 1830955.79 | M56: 2421369.5 | N56: 3560837.81
A57: 130310 | B57: De 31 a 90 días sector privado | C57: 1 | D57: 6 | E57: 2511800.64 | F57: 2743397.44 | G57: 731596.8 | H57: 810018.08 | I57: 3869503.49 | J57: 4759485.41 | K57: 4178774.35 | L57: 5730139.79 | M57: 5900105.3 | N57: 5384784.74
A58: 130315 | B58: De 91 a 180 días sector privado | C58: 1 | D58: 6 | E58: 833003.42 | F58: 2729427.18 | G58: 3271509.07 | H58: 6003697.69 | I58: 5752957.21 | J58: 5702957.21 | K58: 3936167.35 | L58: 6357302.23 | M58: 8554220.5 | N58: 9297953.11
A59: 130320 | B59: De 181 a 360 días sector privado | C59: 1 | D59: 6 | E59: 500000 | F59: 1042081.89 | G59: 0 | H59: 569361.97 | I59: 1150000 | J59: 0 | K59: 1205624.07 | L59: 1604662.21 | M59: 0 | N59: 1092870.15
A60: 130325 | B60: De más de 360 días sector privado | C60: 1 | D60: 6 | E60: 0 | F60: 0 | G60: 0 | H60: 0 | I60: 0 | J60: 0 | K60: 0 | L60: 0 | M60: 0 | N60: 0
A61: 130350 | B61: De 1 a 30 días sector financiero popular y solidario | C61: 1 | D61: 6 | E61: 6835204.58 | F61: 14792070.7 | G61: 7195041.53 | H61: 7524926.07 | I61: 13437415.77 | J61: 9060613.96 | K61: 10581377.33 | L61: 10709746.17 | M61: 6322095.51 | N61: 5283808.51
A62: 130355 | B62: De 31 a 90 días sector financiero popular y solidario | C62: 1 | D62: 6 | E62: 20413696.73 | F62: 14719967.6 | G62: 20662341.84 | H62: 22498029.73 | I62: 20313351.01 | J62: 21962483.22 | K62: 15882242.64 | L62: 11005904.02 | M62: 15167574.86 | N62: 21121739.92
A63: 130360 | B63: De 91 a 180 días sector financiero popular y solidario | C63: 1 | D63: 6 | E63: 18755201.72 | F63: 21355482.91 | G63: 22210652.11 | H63: 18408760.32 | I63: 9950590.04 | J63: 9840465.21 | K63: 13518621.77 | L63: 17954995.76 | M63: 18724473.74 | N63: 14028774.25
A64: 130365 | B64: De 181 a 360 días sector financiero popular y solidario | C64: 1 | D64: 6 | E64: 3044992.55 | F64: 319920.97 | G64: 529558.13 | H64: 4550.41 | I64: 4550.41 | J64: 868797 | K64: 0 | L64: 0 | M64: 0 | N64: 184012.78
A65: 130370 | B65: De más de 360 días sector financiero popular y solidario | C65: 1 | D65: 6 | E65: 0 | F65: 0 | G65: 0 | H65: 0 | I65: 0 | J65: 0 | K65: 0 | L65: 0 | M65: 0 | N65: 0
A66: 1304 | B66: Disponibles para la venta del Estado o de entidades del sector público | C66: 1 | D66: 4 | E66: 0 | F66: 0 | G66: 0 | H66: 0 | I66: 0 | J66: 0 | K66: 0 | L66: 0 | M66: 0 | N66: 0
A67: 130405 | B67: De 1 a 30 días | E67: 0 | F67: 0 | G67: 0 | H67: 0 | I67: 0 | J67: 0 | K67: 0 | L67: 0 | M67: 0 | N67: 0
A68: 130410 | B68: De 31 a 90 días | C68: 1 | D68: 6 | E68: 0 | F68: 0 | G68: 0 | H68: 0 | I68: 0 | J68: 0 | K68: 0 | L68: 0 | M68: 0 | N68: 0
A69: 130415 | B69: De 91 a 180 días | C69: 1 | D69: 6 | E69: 0 | F69: 0 | G69: 0 | H69: 0 | I69: 0 | J69: 0 | K69: 0 | L69: 0 | M69: 0 | N69: 0
A70: 130420 | B70: De 181 a 360 días | C70: 1 | D70: 6 | E70: 0 | F70: 0 | G70: 0 | H70: 0 | I70: 0 | J70: 0 | K70: 0 | L70: 0 | M70: 0 | N70: 0
A71: 130425 | B71: De más de 360 días | C71: 1 | D71: 6 | E71: 0 | F71: 0 | G71: 0 | H71: 0 | I71: 0 | J71: 0 | K71: 0 | L71: 0 | M71: 0 | N71: 0
A72: 1305 | B72: Mantenidas hasta su vencimiento de entidades del sector privado y sector financiero popular y solidario | C72: 1 | D72: 4 | E72: 0 | F72: 0 | G72: 0 | H72: 0 | I72: 0 | J72: 0 | K72: 0 | L72: 0 | M72: 0 | N72: 0
A73: 130505 | B73: De 1 a 30 días sector privado | C73: 1 | D73: 6 | E73: 0 | F73: 0 | G73: 0 | H73: 0 | I73: 0 | J73: 0 | K73: 0 | L73: 0 | M73: 0 | N73: 0
A74: 130510 | B74: De 31 a 90 días sector privado | C74: 1 | D74: 6 | E74: 0 | F74: 0 | G74: 0 | H74: 0 | I74: 0 | J74: 0 | K74: 0 | L74: 0 | M74: 0 | N74: 0
A75: 130515 | B75: De 91 a 180 días sector privado | C75: 1 | D75: 6 | E75: 0 | F75: 0 | G75: 0 | H75: 0 | I75: 0 | J75: 0 | K75: 0 | L75: 0 | M75: 0 | N75: 0
A76: 130520 | B76: De 181 días a 1 año sector privado | C76: 1 | D76: 6 | E76: 0 | F76: 0 | G76: 0 | H76: 0 | I76: 0 | J76: 0 | K76: 0 | L76: 0 | M76: 0 | N76: 0
A77: 130525 | B77: De 1 a 3 años sector privado | C77: 1 | D77: 6 | E77: 0 | F77: 0 | G77: 0 | H77: 0 | I77: 0 | J77: 0 | K77: 0 | L77: 0 | M77: 0 | N77: 0
A78: 130530 | B78: De 3 a 5 años sector privado | C78: 1 | D78: 6 | E78: 0 | F78: 0 | G78: 0 | H78: 0 | I78: 0 | J78: 0 | K78: 0 | L78: 0 | M78: 0 | N78: 0
A79: 130535 | B79: De 5 a 10 años sector privado | C79: 1 | D79: 6 | E79: 0 | F79: 0 | G79: 0 | H79: 0 | I79: 0 | J79: 0 | K79: 0 | L79: 0 | M79: 0 | N79: 0
A80: 130540 | B80: De más de 10 años sector privado | C80: 1 | D80: 6 | E80: 0 | F80: 0 | G80: 0 | H80: 0 | I80: 0 | J80: 0 | K80: 0 | L80: 0 | M80: 0 | N80: 0
A81: 130550 | B81: De 1 a 30 días sector financiero popular y solidario | C81: 1 | D81: 6 | E81: 0 | F81: 0 | G81: 0 | H81: 0 | I81: 0 | J81: 0 | K81: 0 | L81: 0 | M81: 0 | N81: 0
A82: 130555 | B82: De 31 a 90 días sector financiero popular y solidario | C82: 1 | D82: 6 | E82: 0 | F82: 0 | G82: 0 | H82: 0 | I82: 0 | J82: 0 | K82: 0 | L82: 0 | M82: 0 | N82: 0
A83: 130560 | B83: De 91 a 180 días sector financiero popular y solidario | C83: 1 | D83: 6 | E83: 0 | F83: 0 | G83: 0 | H83: 0 | I83: 0 | J83: 0 | K83: 0 | L83: 0 | M83: 0 | N83: 0
A84: 130565 | B84: De 181 días a 1 año sector financiero popular y solidario | C84: 1 | D84: 6 | E84: 0 | F84: 0 | G84: 0 | H84: 0 | I84: 0 | J84: 0 | K84: 0 | L84: 0 | M84: 0 | N84: 0
A85: 130570 | B85: De 1 a 3 años sector financiero popular y solidario | C85: 1 | D85: 6 | E85: 0 | F85: 0 | G85: 0 | H85: 0 | I85: 0 | J85: 0 | K85: 0 | L85: 0 | M85: 0 | N85: 0
A86: 130575 | B86: De 3 a 5 años sector financiero popular y solidario | C86: 1 | D86: 6 | E86: 0 | F86: 0 | G86: 0 | H86: 0 | I86: 0 | J86: 0 | K86: 0 | L86: 0 | M86: 0 | N86: 0
A87: 130580 | B87: De 5 a 10 años sector financiero popular y solidario | C87: 1 | D87: 6 | E87: 0 | F87: 0 | G87: 0 | H87: 0 | I87: 0 | J87: 0 | K87: 0 | L87: 0 | M87: 0 | N87: 0
A88: 130585 | B88: De más de 10 años sector financiero popular y solidario | C88: 1 | D88: 6 | E88: 0 | F88: 0 | G88: 0 | H88: 0 | I88: 0 | J88: 0 | K88: 0 | L88: 0 | M88: 0 | N88: 0
A89: 1306 | B89: Mantenidas hasta su vencimiento del Estado o de entidades del sector público | C89: 1 | D89: 4 | E89: 0 | F89: 0 | G89: 0 | H89: 0 | I89: 0 | J89: 0 | K89: 0 | L89: 0 | M89: 0 | N89: 0
A90: 130605 | B90: De 1 a 30 días | E90: 0 | F90: 0 | G90: 0 | H90: 0 | I90: 0 | J90: 0 | K90: 0 | L90: 0 | M90: 0 | N90: 0
A91: 130610 | B91: De 31 a 90 días | C91: 1 | D91: 6 | E91: 0 | F91: 0 | G91: 0 | H91: 0 | I91: 0 | J91: 0 | K91: 0 | L91: 0 | M91: 0 | N91: 0
A92: 130615 | B92: De 91 a 180 días | C92: 1 | D92: 6 | E92: 0 | F92: 0 | G92: 0 | H92: 0 | I92: 0 | J92: 0 | K92: 0 | L92: 0 | M92: 0 | N92: 0
A93: 130620 | B93: De 181 días a 1 año | C93: 1 | D93: 6 | E93: 0 | F93: 0 | G93: 0 | H93: 0 | I93: 0 | J93: 0 | K93: 0 | L93: 0 | M93: 0 | N93: 0
A94: 130625 | B94: De 1 a 3 años | C94: 1 | D94: 6 | E94: 0 | F94: 0 | G94: 0 | H94: 0 | I94: 0 | J94: 0 | K94: 0 | L94: 0 | M94: 0 | N94: 0
A95: 130630 | B95: De 3 a 5 años | C95: 1 | D95: 6 | E95: 0 | F95: 0 | G95: 0 | H95: 0 | I95: 0 | J95: 0 | K95: 0 | L95: 0 | M95: 0 | N95: 0
A96: 130635 | B96: De 5 a 10 años | C96: 1 | D96: 6 | E96: 0 | F96: 0 | G96: 0 | H96: 0 | I96: 0 | J96: 0 | K96: 0 | L96: 0 | M96: 0 | N96: 0
A97: 130640 | B97: De más de 10 años | C97: 1 | D97: 6 | E97: 0 | F97: 0 | G97: 0 | H97: 0 | I97: 0 | J97: 0 | K97: 0 | L97: 0 | M97: 0 | N97: 0
A98: 1307 | B98: De disponibilidad restringida | C98: 1 | D98: 4 | E98: 0 | F98: 0 | G98: 0 | H98: 0 | I98: 0 | J98: 0 | K98: 0 | L98: 0 | M98: 0 | N98: 0
A99: 130705 | B99: Entregadas para operaciones de reporto | C99: 1 | D99: 6 | E99: 0 | F99: 0 | G99: 0 | H99: 0 | I99: 0 | J99: 0 | K99: 0 | L99: 0 | M99: 0 | N99: 0
A100: 130710 | B100: Depósitos sujetos a restricción | C100: 1 | D100: 6 | E100: 0 | F100: 0 | G100: 0 | H100: 0 | I100: 0 | J100: 0 | K100: 0 | L100: 0 | M100: 0 | N100: 0
A101: 130720 | B101: Entregados en garantía | C101: 1 | D101: 6 | E101: 0 | F101: 0 | G101: 0 | H101: 0 | I101: 0 | J101: 0 | K101: 0 | L101: 0 | M101: 0 | N101: 0
A102: 130790 | B102: Otros | C102: 1 | D102: 6 | E102: 0 | F102: 0 | G102: 0 | H102: 0 | I102: 0 | J102: 0 | K102: 0 | L102: 0 | M102: 0 | N102: 0
A103: 1399 | B103: (Provisión para inversiones) | C103: 1 | D103: 4 | E103: 0 | F103: 0 | G103: 0 | H103: 0 | I103: 0 | J103: 0 | K103: 0 | L103: 0 | M103: 0 | N103: 0
A104: 139905 | B104: (Provisión por deterioro en valuación de inversiones) | C104: 1 | D104: 6 | E104: 0 | F104: 0 | G104: 0 | H104: 0 | I104: 0 | J104: 0 | K104: 0 | L104: 0 | M104: 0 | N104: 0
A105: 139910 | B105: (Provisión general para inversiones) | C105: 1 | D105: 6 | E105: 0 | F105: 0 | G105: 0 | H105: 0 | I105: 0 | J105: 0 | K105: 0 | L105: 0 | M105: 0 | N105: 0
A106: 14 | B106: CARTERA DE CRÉDITOS | C106: 1 | D106: 2 | E106: 295217297.6 | F106: 297776095.3 | G106: 302921906.6 | H106: 303946968.8 | I106: 305703354.1 | J106: 308298447.9 | K106: 306798902.5 | L106: 298824568.8 | M106: 295844663.3 | N106: 291601412.3
A107: 1401 | B107: Cartera de crédito productivo por vencer | C107: 1 | D107: 4 | E107: 1206413.89 | F107: 1195928.61 | G107: 1141403.83 | H107: 955176.29 | I107: 930149.17 | J107: 905558.31 | K107: 989328.25 | L107: 971986.05 | M107: 913683.9 | N107: 877744.17
A108: 140105 | B108: De 1 a 30 días | E108: 29075.27 | F108: 30863.4 | G108: 28885.14 | H108: 26322.54 | I108: 25072.06 | J108: 27282.79 | K108: 26452.49 | L108: 29619.77 | M108: 27729.84 | N108: 25929.87
A109: 140110 | B109: De 31 a 90 días | C109: 1 | D109: 6 | E109: 55446.48 | F109: 55233.25 | G109: 52928.54 | H109: 48154.19 | I109: 48678.21 | J109: 47718.39 | K109: 50213.83 | L109: 52846.74 | M109: 48134.8 | N109: 46664.27
A110: 140115 | B110: De 91 a 180 días | C110: 1 | D110: 6 | E110: 81681.06 | F110: 81643.22 | G110: 80811.69 | H110: 72341.53 | I110: 72853.5 | J110: 73092.04 | K110: 75655.96 | L110: 77755.37 | M110: 71334.12 | N110: 67983.98
A111: 140120 | B111: De 181 a 360 días | C111: 1 | D111: 6 | E111: 166545.05 | F111: 159118.82 | G111: 163003.25 | H111: 143986.34 | I111: 143147.38 | J111: 142629.28 | K111: 146761.14 | L111: 139999.33 | M111: 138489.78 | N111: 133694.57
A112: 140125 | B112: De más de 360 días | C112: 1 | D112: 6 | E112: 873666.03 | F112: 869069.92 | G112: 815775.21 | H112: 664371.69 | I112: 640398.02 | J112: 614835.81 | K112: 690244.83 | L112: 671764.84 | M112: 627995.36 | N112: 603471.48
A113: 1402 | B113: Cartera de crédito de consumo por vencer | C113: 1 | D113: 4 | E113: 176649692.2 | F113: 177202108.4 | G113: 180000912.2 | H113: 180042600.6 | I113: 180420537.2 | J113: 179877319.9 | K113: 178216231.7 | L113: 173796776.9 | M113: 170297827.8 | N113: 165942844.8
A114: 140205 | B114: De 1 a 30 días | E114: 3507835.83 | F114: 3820544.69 | G114: 3643153.28 | H114: 3689686.14 | I114: 3712466.99 | J114: 3850914.62 | K114: 3745819.24 | L114: 3813405.55 | M114: 3926619.81 | N114: 3768065.3
A115: 140210 | B115: De 31 a 90 días | C115: 1 | D115: 6 | E115: 7198262.5 | F115: 7108234.53 | G115: 7086146.28 | H115: 7262805.62 | I115: 7400942.23 | J115: 7330390.06 | K115: 7507775.74 | L115: 7445875.12 | M115: 7344162.15 | N115: 7380990.16
A116: 140215 | B116: De 91 a 180 días | C116: 1 | D116: 6 | E116: 10700164.28 | F116: 10679422.01 | G116: 11031688.26 | H116: 11119944.73 | I116: 11335969.56 | J116: 11379477.53 | K116: 11298771.7 | L116: 11116625.02 | M116: 11101305.2 | N116: 10825792.9
A117: 140220 | B117: De 181 a 360 días | C117: 1 | D117: 6 | E117: 21427219.97 | F117: 21426201.16 | G117: 22237028.61 | H117: 22324992.49 | I117: 22506324.65 | J117: 22442960.23 | K117: 22492905.3 | L117: 22265923.58 | M117: 22367445.39 | N117: 22165001.75
A118: 140225 | B118: De más de 360 días | C118: 1 | D118: 6 | E118: 133816209.6 | F118: 134167706 | G118: 136002895.8 | H118: 135645171.7 | I118: 135464833.7 | J118: 134873577.5 | K118: 133170959.7 | L118: 129154947.6 | M118: 125558295.2 | N118: 121802994.7
A119: 1403 | B119: Cartera de crédito inmobiliario por vencer | C119: 1 | D119: 4 | E119: 6387934.55 | F119: 6176496.65 | G119: 6037007.06 | H119: 5810058.37 | I119: 5739147.32 | J119: 5578320.88 | K119: 5451337.82 | L119: 5268087.98 | M119: 5143667.82 | N119: 4982095.22
A120: 140305 | B120: De 1 a 30 días | E120: 84700.37 | F120: 85535.23 | G120: 82108.74 | H120: 77347.45 | I120: 78905.65 | J120: 78886.95 | K120: 77328.57 | L120: 73689.6 | M120: 74225.9 | N120: 71926.16
A121: 140310 | B121: De 31 a 90 días | C121: 1 | D121: 6 | E121: 158103.59 | F121: 157186.24 | G121: 157796.66 | H121: 147131.68 | I121: 150390.03 | J121: 142320.9 | K121: 142954.66 | L121: 137040.89 | M121: 135978.95 | N121: 132433.41
A122: 140315 | B122: De 91 a 180 días | C122: 1 | D122: 6 | E122: 234074.37 | F122: 232519.6 | G122: 229897.4 | H122: 215129.53 | I122: 217924.76 | J122: 210538.48 | K122: 206779.37 | L122: 197683.42 | M122: 198092.49 | N122: 194760.86
A123: 140320 | B123: De 181 a 360 días | C123: 1 | D123: 6 | E123: 457512.1 | F123: 432322.46 | G123: 441844.63 | H123: 411523.26 | I123: 422864.23 | J123: 405514.65 | K123: 404172.19 | L123: 380195.9 | M123: 374023.37 | N123: 358671.98
A124: 140325 | B124: De más de 360 días | C124: 1 | D124: 6 | E124: 5453544.12 | F124: 5268933.12 | G124: 5125359.63 | H124: 4958926.45 | I124: 4869062.65 | J124: 4741059.9 | K124: 4620103.03 | L124: 4479478.17 | M124: 4361347.11 | N124: 4224302.81
A125: 1404 | B125: Cartera de microcrédito por vencer | C125: 1 | D125: 4 | E125: 112287597.6 | F125: 113198329.9 | G125: 117335537.2 | H125: 117582519.3 | I125: 119318470.9 | J125: 121377753.4 | K125: 120416013.7 | L125: 117432508.2 | M125: 115930506 | N125: 113568218.1
A126: 140405 | B126: De 1 a 30 días | E126: 2400654.51 | F126: 2606336.85 | G126: 2530838.1 | H126: 2604219.57 | I126: 2544137.17 | J126: 2739158.78 | K126: 2654347.89 | L126: 2689120.95 | M126: 2778859.14 | N126: 2737394.12
A127: 140410 | B127: De 31 a 90 días | C127: 1 | D127: 6 | E127: 4850801.92 | F127: 4805013.82 | G127: 4872793.54 | H127: 4991190.87 | I127: 5106456.39 | J127: 5046926.59 | K127: 5173361.91 | L127: 5231310.46 | M127: 5112151.34 | N127: 4994825.39
A128: 140415 | B128: De 91 a 180 días | C128: 1 | D128: 6 | E128: 7318682.54 | F128: 7346802.48 | G128: 7666668.94 | H128: 7642291.26 | I128: 7804906.75 | J128: 7968222.73 | K128: 7880797.07 | L128: 7689815.22 | M128: 7748271.64 | N128: 7681542.2
A129: 140420 | B129: De 181 a 360 días | C129: 1 | D129: 6 | E129: 14877241.61 | F129: 14807684.26 | G129: 15591611.17 | H129: 15591506.81 | I129: 15717993.82 | J129: 15965773.77 | K129: 15955096.24 | L129: 15691372.82 | M129: 15578475.45 | N129: 15353188.54
A130: 140425 | B130: De más de 360 días | C130: 1 | D130: 6 | E130: 82840216.98 | F130: 83632492.47 | G130: 86673625.43 | H130: 86753310.8 | I130: 88144976.78 | J130: 89657671.56 | K130: 88752410.58 | L130: 86130888.79 | M130: 84712748.41 | N130: 82801267.86
A131: 1408 | B131: Cartera de crédito de vivienda de interés social y público por vencer | C131: 1 | D131: 4 | E131: 0 | F131: 0 | G131: 0 | H131: 0 | I131: 0 | J131: 0 | K131: 0 | L131: 0 | M131: 0 | N131: 0
A132: 140805 | B132: De 1 a 30 días | E132: 0 | F132: 0 | G132: 0 | H132: 0 | I132: 0 | J132: 0 | K132: 0 | L132: 0 | M132: 0 | N132: 0
A133: 140810 | B133: De 31 a 90 días | C133: 1 | D133: 6 | E133: 0 | F133: 0 | G133: 0 | H133: 0 | I133: 0 | J133: 0 | K133: 0 | L133: 0 | M133: 0 | N133: 0
A134: 140815 | B134: De 91 a 180 días | C134: 1 | D134: 6 | E134: 0 | F134: 0 | G134: 0 | H134: 0 | I134: 0 | J134: 0 | K134: 0 | L134: 0 | M134: 0 | N134: 0
A135: 140820 | B135: De 181 a 360 días | C135: 1 | D135: 6 | E135: 0 | F135: 0 | G135: 0 | H135: 0 | I135: 0 | J135: 0 | K135: 0 | L135: 0 | M135: 0 | N135: 0
A136: 140825 | B136: De más de 360 días | C136: 1 | D136: 6 | E136: 0 | F136: 0 | G136: 0 | H136: 0 | I136: 0 | J136: 0 | K136: 0 | L136: 0 | M136: 0 | N136: 0
A137: 1409 | B137: Cartera de crédito productivo refinanciada por vencer | C137: 1 | D137: 4 | E137: 75186.37 | F137: 74404.25 | G137: 73545.14 | H137: 72747.19 | I137: 71918.91 | J137: 71105.28 | K137: 70261.68 | L137: 69432.06 | M137: 68594.44 | N137: 67727.4
A138: 140905 | B138: De 1 a 30 días | E138: 0 | F138: 0 | G138: 0 | H138: 0 | I138: 0 | J138: 0 | K138: 0 | L138: 0 | M138: 0 | N138: 0
A139: 140910 | B139: De 31 a 90 días | C139: 1 | D139: 6 | E139: 0 | F139: 0 | G139: 0 | H139: 0 | I139: 0 | J139: 0 | K139: 0 | L139: 0 | M139: 0 | N139: 0
A140: 140915 | B140: De 91 a 180 días | C140: 1 | D140: 6 | E140: 0 | F140: 0 | G140: 0 | H140: 0 | I140: 0 | J140: 0 | K140: 0 | L140: 0 | M140: 0 | N140: 0
A141: 140920 | B141: De 181 a 360 días | C141: 1 | D141: 6 | E141: 0 | F141: 0 | G141: 0 | H141: 0 | I141: 0 | J141: 0 | K141: 0 | L141: 0 | M141: 0 | N141: 0
A142: 140925 | B142: De más de 360 días | C142: 1 | D142: 6 | E142: 75186.37 | F142: 74404.25 | G142: 73545.14 | H142: 72747.19 | I142: 71918.91 | J142: 71105.28 | K142: 70261.68 | L142: 69432.06 | M142: 68594.44 | N142: 67727.4
A143: 1410 | B143: Cartera de crédito de consumo refinanciada por vencer | C143: 1 | D143: 4 | E143: 2449000.05 | F143: 2511763.13 | G143: 2403431.45 | H143: 2438205.16 | I143: 2439919.41 | J143: 2371141.82 | K143: 2381579.63 | L143: 2333799.98 | M143: 2372773.15 | N143: 2604337.19
A144: 141005 | B144: De 1 a 30 días | E144: 2647.54 | F144: 2905.2 | G144: 3779.13 | H144: 4589.43 | I144: 5454.73 | J144: 5891.01 | K144: 7553.74 | L144: 5332.56 | M144: 6487.91 | N144: 7589.55
A145: 141010 | B145: De 31 a 90 días | C145: 1 | D145: 6 | E145: 5521.84 | F145: 5722.91 | G145: 7060.08 | H145: 7972.36 | I145: 9838.4 | J145: 8665.67 | K145: 10027.27 | L145: 8685.6 | M145: 9659.32 | N145: 11775.1
A146: 141015 | B146: De 91 a 180 días | C146: 1 | D146: 6 | E146: 8603.6 | F146: 10144.26 | G146: 11327.95 | H146: 13432.5 | I146: 15141.54 | J146: 14135.89 | K146: 15514.04 | L146: 13536.23 | M146: 15156.27 | N146: 20673.85
A147: 141020 | B147: De 181 a 360 días | C147: 1 | D147: 6 | E147: 18069.05 | F147: 21253.95 | G147: 23674.93 | H147: 28108.25 | I147: 31695.19 | J147: 28745.92 | K147: 31746.68 | L147: 27455.4 | M147: 30467.03 | N147: 43101.55
A148: 141025 | B148: De más de 360 días | C148: 1 | D148: 6 | E148: 2414158.02 | F148: 2471736.81 | G148: 2357589.36 | H148: 2384102.62 | I148: 2377789.55 | J148: 2313703.33 | K148: 2316737.9 | L148: 2278790.19 | M148: 2311002.62 | N148: 2521197.14
A149: 1411 | B149: Cartera de crédito inmobiliario refinanciada por vencer | C149: 1 | D149: 4 | E149: 398759.22 | F149: 431385.52 | G149: 444278.02 | H149: 439224.95 | I149: 432495.96 | J149: 418475.3 | K149: 396615.05 | L149: 391128.93 | M149: 386397.8 | N149: 380992.06
A150: 141105 | B150: De 1 a 30 días | E150: 762.86 | F150: 770.87 | G150: 839.41 | H150: 805.82 | I150: 1060.83 | J150: 1282.07 | K150: 1249.73 | L150: 1209.95 | M150: 1294.92 | N150: 1275.9
A151: 141110 | B151: De 31 a 90 días | C151: 1 | D151: 6 | E151: 1487.22 | F151: 1607.44 | G151: 1644.12 | H151: 1814.48 | I151: 1879.14 | J151: 1790.02 | K151: 1991.85 | L151: 2061.01 | M151: 1871.41 | N151: 2091.24
A152: 141115 | B152: De 91 a 180 días | C152: 1 | D152: 6 | E152: 1745.11 | F152: 2285.23 | G152: 2766.2 | H152: 2765.17 | I152: 2789.04 | J152: 2846.56 | K152: 2837.17 | L152: 2830.18 | M152: 2925.33 | N152: 2944.05
A153: 141120 | B153: De 181 a 360 días | C153: 1 | D153: 6 | E153: 3593.34 | F153: 4317.42 | G153: 5771.89 | H153: 5781.22 | I153: 5863.09 | J153: 5903.93 | K153: 5963.67 | L153: 5899.44 | M153: 6019.32 | N153: 6085.84
A154: 141125 | B154: De más de 360 días | C154: 1 | D154: 6 | E154: 391170.69 | F154: 422404.56 | G154: 433256.4 | H154: 428058.26 | I154: 420903.86 | J154: 406652.72 | K154: 384572.63 | L154: 379128.35 | M154: 374286.82 | N154: 368595.03
A155: 1412 | B155: Cartera de microcrédito refinanciada por vencer | C155: 1 | D155: 4 | E155: 1390618.99 | F155: 1350761.57 | G155: 1394668.62 | H155: 1411437.17 | I155: 1440955.24 | J155: 1441481.61 | K155: 1423699.96 | L155: 1454200.41 | M155: 1439271.94 | N155: 1657024.96
A156: 141205 | B156: De 1 a 30 días | E156: 2672.41 | F156: 3955.24 | G156: 3924.87 | H156: 4021.96 | I156: 5041.08 | J156: 6172.71 | K156: 5957.48 | L156: 6594.28 | M156: 6508.58 | N156: 7106.37
A157: 141210 | B157: De 31 a 90 días | C157: 1 | D157: 6 | E157: 7946.22 | F157: 7838.09 | G157: 7862.15 | H157: 8753.67 | I157: 10143.8 | J157: 9833.7 | K157: 10728.03 | L157: 11922.12 | M157: 11416.9 | N157: 13560.87
A158: 141215 | B158: De 91 a 180 días | C158: 1 | D158: 6 | E158: 12601.81 | F158: 12112.87 | G158: 13425.5 | H158: 13774.17 | I158: 15682.3 | J158: 16422.71 | K158: 17024.32 | L158: 18091.93 | M158: 19242.51 | N158: 23834.56
A159: 141220 | B159: De 181 a 360 días | C159: 1 | D159: 6 | E159: 26883.69 | F159: 25849.66 | G159: 29090.99 | H159: 29983.72 | I159: 34283.94 | J159: 35482.04 | K159: 37268.34 | L159: 40403.82 | M159: 41261.96 | N159: 53623.87
A160: 141225 | B160: De más de 360 días | C160: 1 | D160: 6 | E160: 1340514.86 | F160: 1301005.71 | G160: 1340365.11 | H160: 1354903.65 | I160: 1375804.12 | J160: 1373570.45 | K160: 1352721.79 | L160: 1377188.26 | M160: 1360841.99 | N160: 1558899.29
A161: 1416 | B161: Cartera de crédito de vivienda de interés social y público refinanciada por vencer | C161: 1 | D161: 4 | E161: 0 | F161: 0 | G161: 0 | H161: 0 | I161: 0 | J161: 0 | K161: 0 | L161: 0 | M161: 0 | N161: 0
A162: 141605 | B162: De 1 a 30 días | E162: 0 | F162: 0 | G162: 0 | H162: 0 | I162: 0 | J162: 0 | K162: 0 | L162: 0 | M162: 0 | N162: 0
A163: 141610 | B163: De 31 a 90 días | C163: 1 | D163: 6 | E163: 0 | F163: 0 | G163: 0 | H163: 0 | I163: 0 | J163: 0 | K163: 0 | L163: 0 | M163: 0 | N163: 0
A164: 141615 | B164: De 91 a 180 días | C164: 1 | D164: 6 | E164: 0 | F164: 0 | G164: 0 | H164: 0 | I164: 0 | J164: 0 | K164: 0 | L164: 0 | M164: 0 | N164: 0
A165: 141620 | B165: De 181 a 360 días | C165: 1 | D165: 6 | E165: 0 | F165: 0 | G165: 0 | H165: 0 | I165: 0 | J165: 0 | K165: 0 | L165: 0 | M165: 0 | N165: 0
A166: 141625 | B166: De más de 360 días | C166: 1 | D166: 6 | E166: 0 | F166: 0 | G166: 0 | H166: 0 | I166: 0 | J166: 0 | K166: 0 | L166: 0 | M166: 0 | N166: 0
A167: 1417 | B167: Cartera de crédito productivo reestructurada por vencer | C167: 1 | D167: 4 | E167: 137620.47 | F167: 136894.75 | G167: 136143.4 | H167: 151294.22 | I167: 35523.6 | J167: 34604.74 | K167: 33581.07 | L167: 32534.54 | M167: 14906.34 | N167: 29653.27
A168: 141705 | B168: De 1 a 30 días | E168: 725.72 | F168: 751.35 | G168: 739.67 | H168: 752.31 | I168: 1661.3 | J168: 1800.5 | K168: 1814.41 | L168: 1805.98 | M168: 283.52 | N168: 1067.34
A169: 141710 | B169: De 31 a 90 días | C169: 1 | D169: 6 | E169: 1491.02 | F169: 1491.98 | G169: 1494.75 | H169: 1967.05 | I169: 2095.64 | J169: 2075.68 | K169: 2113.39 | L169: 2142.63 | M169: 557.38 | N169: 2172.56
A170: 141715 | B170: De 91 a 180 días | C170: 1 | D170: 6 | E170: 2271.58 | F170: 2287.15 | G170: 2315.14 | H170: 3150.97 | I170: 3180.73 | J170: 3219.89 | K170: 3239.9 | L170: 3254.72 | M170: 863.32 | N170: 3338.06
A171: 141720 | B171: De 181 a 360 días | C171: 1 | D171: 6 | E171: 4726.01 | F171: 3958.13 | G171: 4823.43 | H171: 6577.96 | I171: 6646.42 | J171: 6709.04 | K171: 6769.94 | L171: 6837.26 | M171: 1794.97 | N171: 6951.95
A172: 141725 | B172: De más de 360 días | C172: 1 | D172: 6 | E172: 128406.14 | F172: 128406.14 | G172: 126770.41 | H172: 138845.93 | I172: 21939.51 | J172: 20799.63 | K172: 19643.43 | L172: 18493.95 | M172: 11407.15 | N172: 16123.36
A173: 1418 | B173: Cartera de crédito de consumo reestructurada por vencer | C173: 1 | D173: 4 | E173: 1116963.43 | F173: 1152142.13 | G173: 1194551.92 | H173: 1197688.78 | I173: 1185842.66 | J173: 1128845.33 | K173: 1097727.21 | L173: 1104530.58 | M173: 1133916.58 | N173: 1331357
A174: 141805 | B174: De 1 a 30 días | E174: 7342.98 | F174: 10804.34 | G174: 12260.84 | H174: 13741.14 | I174: 14367.87 | J174: 14572.62 | K174: 13488.54 | L174: 14811.49 | M174: 16462.59 | N174: 14429.07
A175: 141810 | B175: De 31 a 90 días | C175: 1 | D175: 6 | E175: 17890.08 | F175: 20390.86 | G175: 21778.01 | H175: 23280.37 | I175: 24817.07 | J175: 22429.75 | K175: 22777.13 | L175: 24018.09 | M175: 23976.51 | N175: 23188.06
A176: 141815 | B176: De 91 a 180 días | C176: 1 | D176: 6 | E176: 28546.1 | F176: 31429.47 | G176: 34617.57 | H176: 35470.05 | I176: 37349.09 | J176: 35407.19 | K176: 34146.79 | L176: 35939.31 | M176: 37851.82 | N176: 38696.72
A177: 141820 | B177: De 181 a 360 días | C177: 1 | D177: 6 | E177: 58589.39 | F177: 64379.9 | G177: 71539.15 | H177: 72946.4 | I177: 76942.41 | J177: 71788.48 | K177: 70970.78 | L177: 74443.47 | M177: 76180.87 | N177: 79688.36
A178: 141825 | B178: De más de 360 días | C178: 1 | D178: 6 | E178: 1004594.88 | F178: 1025137.56 | G178: 1054356.35 | H178: 1052250.82 | I178: 1032366.22 | J178: 984647.29 | K178: 956343.97 | L178: 955318.22 | M178: 979444.79 | N178: 1175354.79
A179: 1419 | B179: Cartera de crédito inmobiliario reestructurada por vencer | C179: 1 | D179: 4 | E179: 126314.43 | F179: 125551.04 | G179: 124146.95 | H179: 123257.79 | I179: 128578.81 | J179: 125809.71 | K179: 124774.47 | L179: 123777.09 | M179: 122661.84 | N179: 121201.18
A180: 141905 | B180: De 1 a 30 días | E180: 480.6 | F180: 529.48 | G180: 501.13 | H180: 512.26 | I180: 490.45 | J180: 533.66 | K180: 663.49 | L180: 678.81 | M180: 771.84 | N180: 745.43
A181: 141910 | B181: De 31 a 90 días | C181: 1 | D181: 6 | E181: 1030.61 | F181: 1013.39 | G181: 1002.71 | H181: 1024.11 | I181: 1197.15 | J181: 1342.3 | K181: 1396.17 | L181: 1404.36 | M181: 1396.18 | N181: 1425.62
A182: 141915 | B182: De 91 a 180 días | C182: 1 | D182: 6 | E182: 1536.37 | F182: 1525.32 | G182: 1556.69 | H182: 1562.65 | I182: 2083.17 | J182: 2113.54 | K182: 2112.62 | L182: 2111.33 | M182: 2165.36 | N182: 2183.5
A183: 141920 | B183: De 181 a 360 días | C183: 1 | D183: 6 | E183: 3165.65 | F183: 3192.1 | G183: 3242.54 | H183: 3257.55 | I183: 4349.75 | J183: 4381.14 | K183: 4423.21 | L183: 4462.89 | M183: 4476.29 | N183: 4508.76
A184: 141925 | B184: De más de 360 días | C184: 1 | D184: 6 | E184: 120101.2 | F184: 119290.75 | G184: 117843.88 | H184: 116901.22 | I184: 120458.29 | J184: 117439.07 | K184: 116178.98 | L184: 115119.7 | M184: 113852.17 | N184: 112337.87
A185: 1420 | B185: Cartera de microcrédito reestructurada por vencer | C185: 1 | D185: 4 | E185: 784279.82 | F185: 940326.89 | G185: 1155344.45 | H185: 1153432.3 | I185: 1046436.98 | J185: 911099.73 | K185: 876442.14 | L185: 870866.74 | M185: 891129.56 | N185: 1049038.01
A186: 142005 | B186: De 1 a 30 días | E186: 8883.08 | F186: 11758.22 | G186: 12684.74 | H186: 14465.05 | I186: 13412.98 | J186: 14146.44 | K186: 13326.13 | L186: 12190.57 | M186: 15417.03 | N186: 14334.31
A187: 142010 | B187: De 31 a 90 días | C187: 1 | D187: 6 | E187: 19725.03 | F187: 21733.36 | G187: 23750.83 | H187: 25021.44 | I187: 23946.99 | J187: 21261.85 | K187: 21630.47 | L187: 22169.53 | M187: 23181.31 | N187: 23119.15
A188: 142015 | B188: De 91 a 180 días | C188: 1 | D188: 6 | E188: 32524.05 | F188: 34611.14 | G188: 40551.41 | H188: 38854.63 | I188: 35982.91 | J188: 34816.19 | K188: 33796.22 | L188: 33976.17 | M188: 36713.97 | N188: 38381.71
A189: 142020 | B189: De 181 a 360 días | C189: 1 | D189: 6 | E189: 68404.84 | F189: 72077.34 | G189: 85331.65 | H189: 83184.85 | I189: 76482.83 | J189: 72082.43 | K189: 70762.47 | L189: 70042.52 | M189: 72171.77 | N189: 77417.17
A190: 142025 | B190: De más de 360 días | C190: 1 | D190: 6 | E190: 654742.82 | F190: 800146.83 | G190: 993025.82 | H190: 991906.33 | I190: 896611.27 | J190: 768792.82 | K190: 736926.85 | L190: 732487.95 | M190: 743645.48 | N190: 895785.67
A191: 1424 | B191: Cartera de crédito de vivienda de interés social y público reestructurada por vencer | C191: 1 | D191: 4 | E191: 0 | F191: 0 | G191: 0 | H191: 0 | I191: 0 | J191: 0 | K191: 0 | L191: 0 | M191: 0 | N191: 0
A192: 142405 | B192: De 1 a 30 días | E192: 0 | F192: 0 | G192: 0 | H192: 0 | I192: 0 | J192: 0 | K192: 0 | L192: 0 | M192: 0 | N192: 0
A193: 142410 | B193: De 31 a 90 días | C193: 1 | D193: 6 | E193: 0 | F193: 0 | G193: 0 | H193: 0 | I193: 0 | J193: 0 | K193: 0 | L193: 0 | M193: 0 | N193: 0
A194: 142415 | B194: De 91 a 180 días | C194: 1 | D194: 6 | E194: 0 | F194: 0 | G194: 0 | H194: 0 | I194: 0 | J194: 0 | K194: 0 | L194: 0 | M194: 0 | N194: 0
A195: 142420 | B195: De 181 a 360 días | C195: 1 | D195: 6 | E195: 0 | F195: 0 | G195: 0 | H195: 0 | I195: 0 | J195: 0 | K195: 0 | L195: 0 | M195: 0 | N195: 0
A196: 142425 | B196: De más de 360 días | C196: 1 | D196: 6 | E196: 0 | F196: 0 | G196: 0 | H196: 0 | I196: 0 | J196: 0 | K196: 0 | L196: 0 | M196: 0 | N196: 0
A197: 1425 | B197: Cartera de crédito productivo que no devenga intereses | C197: 1 | D197: 4 | E197: 69468.42 | F197: 50303.39 | G197: 27899.24 | H197: 160572.79 | I197: 157722.99 | J197: 154800.21 | K197: 40212.32 | L197: 29473.86 | M197: 61885.4 | N197: 68240.23
A198: 142505 | B198: De 1 a 30 días | E198: 8098.53 | F198: 7335.05 | G198: 5569.69 | H198: 5772.58 | I198: 5735.04 | J198: 5877.02 | K198: 4248.79 | L198: 2229.25 | M198: 6344 | N198: 8042.64
A199: 142510 | B199: De 31 a 90 días | C199: 1 | D199: 6 | E199: 8271.7 | F199: 7447.88 | G199: 5477.5 | H199: 5877.02 | I199: 6023.37 | J199: 5902.05 | K199: 4302.49 | L199: 2296.29 | M199: 6448.17 | N199: 8171.54
A200: 142515 | B200: De 91 a 180 días | C200: 1 | D200: 6 | E200: 12294.49 | F200: 10473.03 | G200: 7307.02 | H200: 9000.22 | I200: 9084.54 | J200: 9212.24 | K200: 6601.57 | L200: 3494.84 | M200: 8854.46 | N200: 11080.96
A201: 142520 | B201: De 181 a 360 días | C201: 1 | D201: 6 | E201: 20287.75 | F201: 16360.96 | G201: 8163.38 | H201: 17336.13 | I201: 17150.71 | J201: 16226.61 | K201: 9700.6 | L201: 7331.59 | M201: 15429 | N201: 17474.89
A202: 142525 | B202: De más de 360 días | C202: 1 | D202: 6 | E202: 20515.95 | F202: 8686.47 | G202: 1381.65 | H202: 122586.84 | I202: 119729.33 | J202: 117582.29 | K202: 15358.87 | L202: 14121.89 | M202: 24809.77 | N202: 23470.2
... 998 more rows

Sheet ESTADO FINANCIERO
B1: Menú Principal
A4: ESTADO FINANCIERO
A5: SECTOR FINANCIERO POPULAR Y SOLIDARIO SEGMENTO 1
A6: =UPPER("PERIODO DEL 1 ENERO DEL 2023 AL "&DAY(ÍNDICE!A1)&" DE "&TEXT(ÍNDICE!A1,"MMMM")&" DEL "&YEAR(ÍNDICE!A1)) -> PERIODO DEL 1 ENERO DEL 2023 AL 31 DE OCTUBRE DEL 2023
A7: (Dólares)
E8: FECHA
E9: 44957 | F9: 44985 | G9: 45016 | H9: 45046 | I9: 45077 | J9: 45107 | K9: 45138 | L9: 45169 | M9: 45199 | N9: 45230
A10: COD CONTABLE | B10: Nombre de Cuenta | C10: TIPO* | D10: GRUPO** | E10: 23 DE JULIO LIMITADA | F10: 23 DE JULIO LIMITADA | G10: 23 DE JULIO LIMITADA | H10: 23 DE JULIO LIMITADA | I10: 23 DE JULIO LIMITADA | J10: 23 DE JULIO LIMITADA | K10: 23 DE JULIO LIMITADA | L10: 23 DE JULIO LIMITADA | M10: 23 DE JULIO LIMITADA | N10: 23 DE JULIO LIMITADA
A11: 7103 | B11: Activos castigados | C11: 7 | D11: 4 | E11: 17889859.76 | F11: 18335010.18 | G11: 19423828.57 | H11: 19346636.8 | I11: 19998938.95 | J11: 20515170.93 | K11: 21750853.74 | L11: 22073772.37 | M11: 22277853.51 | N11: 23118252.66
A12: 710305 | B12: INVERSIONES | C12: 7 | D12: 6 | E12: 0 | F12: 0 | G12: 0 | H12: 0 | I12: 0 | J12: 0 | K12: 0 | L12: 0 | M12: 0 | N12: 0
A13: 710310 | B13: CARTERA DE CRÉDITOS | C13: 7 | D13: 6 | E13: 17325996.51 | F13: 17769975.36 | G13: 18856659.23 | H13: 18780786.41 | I13: 19431832.73 | J13: 19946731.71 | K13: 21173135.93 | L13: 21495716.55 | M13: 21700385.16 | N13: 22533801.85
A14: 710320 | B14: CUENTAS POR COBRAR | C14: 7 | D14: 6 | E14: 558071.08 | F14: 559242.65 | G14: 561377.17 | H14: 560058.22 | I14: 561314.05 | J14: 562647.05 | K14: 571925.64 | L14: 572263.65 | M14: 571676.18 | N14: 578658.64
A15: 710325 | B15: Bienes realizables, adjudicados por pago y no utilizados por la entidad | C15: 7 | D15: 6 | E15: 0 | F15: 0 | G15: 0 | H15: 0 | I15: 0 | J15: 0 | K15: 0 | L15: 0 | M15: 0 | N15: 0
A16: 710330 | B16: OTROS ACTIVOS | C16: 7 | D16: 6 | E16: 5792.17 | F16: 5792.17 | G16: 5792.17 | H16: 5792.17 | I16: 5792.17 | J16: 5792.17 | K16: 5792.17 | L16: 5792.17 | M16: 5792.17 | N16: 5792.17
F17: =+F13-E13 -> 443978.85 | G17: =+G13-F13 -> 1086683.87 | H17: -75872.82 | I17: 651046.32 | J17: 514898.98 | K17: 1226404.22 | L17: 322580.62 | M17: 204668.61 | N17: 833416.69
G18: =+G17-F17 -> 642705.02 | H18: -1162556.69 | I18: 726919.14 | J18: -136147.34 | K18: 711505.24 | L18: -903823.6 | M18: -117912.01 | N18: =+N17-M17 -> 628748.08

Sheet RESULTADOS DEL EJERCICIO
C1: Menú Principal
B4: RESULTADOS DEL EJERCICIO
B5: SECTOR FINANCIERO POPULAR Y SOLIDARIO SEGMENTO 1
B6: ='ESTADO FINANCIERO'!A6 -> PERIODO DEL 1 ENERO DEL 2023 AL 31 DE OCTUBRE DEL 2023
B7: (Dólares)
C9: 2023-01-31 | D9: 2023-02-28 | E9: 2023-03-31 | F9: 2023-04-30 | G9: 2023-05-31 | H9: 2023-06-30 | I9: 2023-07-31 | J9: 2023-08-31 | K9: 2023-09-30 | L9: 2023-10-31
C10: 23 DE JULIO LIMITADA | D10: 23 DE JULIO LIMITADA | E10: 23 DE JULIO LIMITADA | F10: 23 DE JULIO LIMITADA | G10: 23 DE JULIO LIMITADA | H10: 23 DE JULIO LIMITADA | I10: 23 DE JULIO LIMITADA | J10: 23 DE JULIO LIMITADA | K10: 23 DE JULIO LIMITADA | L10: 23 DE JULIO LIMITADA
A11: 5 | B11: Ingresos | C11: 5582874.86 | D11: 10982801.06 | E11: 15878657.39 | F11: 21356816.8 | G11: 26481346.16 | H11: 31534824.89 | I11: 37960111.74 | J11: 43538418.68 | K11: 48877042.92 | L11: 54358156.24
A12: 51 | B12: Intereses y descuentos ganados | C12: 4632806.15 | D12: 9200352.4 | E12: 14375836.47 | F12: 19472185.03 | G12: 24260534.53 | H12: 28857385.17 | I12: 34874878.35 | J12: 40063751.49 | K12: 44878695.01 | L12: 49793822.04
A13: (-) 41 | B13: Intereses causados | C13: 2518746.69 | D13: 4883770.46 | E13: 7467136.66 | F13: 10091556.45 | G13: 12245843.45 | H13: 14345844.2 | I13: 17847222.39 | J13: 20505930.15 | K13: 23060231.79 | L13: 25635658.45
B14: MARGEN NETO DE INTERESES | C14: 2114059.46 | D14: 4316581.94 | E14: 6908699.81 | F14: 9380628.58 | G14: 12014691.08 | H14: 14511540.97 | I14: 17027655.96 | J14: 19557821.34 | K14: 21818463.22 | L14: 24158163.59
A15: (+) 52 | B15: Comisiones ganadas | C15: 5216.46 | D15: 22780.3 | E15: 39517.48 | F15: 57447.59 | G15: 75951.49 | H15: 95935.35 | I15: 113646.53 | J15: 132854.1 | K15: 151258.6 | L15: 167902.9
A16: (+) 54 | B16: Ingresos por servicios | C16: 129179.51 | D16: 255924.77 | E16: 392714.11 | F16: 524141.66 | G16: 656415.82 | H16: 780300.9 | I16: 911932.39 | J16: 1045647.21 | K16: 1172760.77 | L16: 1303604.5
A17: (-) 42 | B17: Comisiones causadas | C17: 607.36 | D17: 23471.01 | E17: 24915.23 | F17: 25720.38 | G17: 26547.23 | H17: 30779.21 | I17: 33170.35 | J17: 117958.75 | K17: 179566.48 | L17: 240349.37
A18: (+) 53 | B18: Utilidades financieras | C18: 35132.58 | D18: 71903.06 | E18: 112634.95 | F18: 152859.16 | G18: 152859.16 | H18: 247754.82 | I18: 296354.08 | J18: 346483.4 | K18: 393879.47 | L18: 450201.83
A19: (-) 43 | B19: Pérdidas financieras | C19: 2758.27 | D19: 5516.54 | E19: 8219.75 | F19: 10851.31 | G19: 13482.87 | H19: 16114.43 | I19: 18638.25 | J19: 21095.97 | K19: 23507.82 | L19: 25935.48
B20: MARGEN BRUTO FINANCIERO | C20: 2280222.38 | D20: 4638202.52 | E20: 7420431.37 | F20: 10078505.3 | G20: 12859887.45 | H20: 15588638.4 | I20: 18297780.36 | J20: 20943751.33 | K20: 23333287.76 | L20: 25813587.97
A21: (-) 44 | B21: Provisiones | C21: 1153075.72 | D21: 2186812.81 | E21: 2523416.79 | F21: 3196785.65 | G21: 3972561.19 | H21: 5062579.57 | I21: 6159328.07 | J21: 7280983.65 | K21: 8375934.69 | L21: 9480613.14
B22: MARGEN NETO FINANCIERO | C22: 1127146.66 | D22: 2451389.71 | E22: 4897014.58 | F22: 6881719.65 | G22: 8887326.26 | H22: 10526058.83 | I22: 12138452.29 | J22: 13662767.68 | K22: 14957353.07 | L22: 16332974.83
A23: (-) 45 | B23: Gastos de operación | C23: 1392520.58 | D23: 2995670.58 | E23: 4594881.31 | F23: 6290851.57 | G23: 7840169.54 | H23: 9254042.01 | I23: 10928208.34 | J23: 12326932.27 | K23: 13773302.78 | L23: 15351286.62
B24: MARGEN DE INTERMEDIACIÓN | C24: -265373.92 | D24: -544280.87 | E24: 302133.27 | F24: 590868.08 | G24: 1047156.72 | H24: 1272016.82 | I24: 1210243.95 | J24: 1335835.41 | K24: 1184050.29 | L24: 981688.21
A25: (+) 55 | B25: Otros ingresos operacionales | C25: 0 | D25: 0 | E25: 0 | F25: 0 | G25: 0 | H25: 0 | I25: 0 | J25: 0 | K25: 0 | L25: 0
A26: (-) 46 | B26: Otras pérdidas operacionales | C26: 0 | D26: 0 | E26: 0 | F26: 0 | G26: 0 | H26: 0 | I26: 0 | J26: 0 | K26: 0 | L26: 0
B27: MARGEN OPERACIONAL | C27: -265373.92 | D27: -544280.87 | E27: 302133.27 | F27: 590868.08 | G27: 1047156.72 | H27: 1272016.82 | I27: 1210243.95 | J27: 1335835.41 | K27: 1184050.29 | L27: 981688.21
A28: (+) 56 | B28: Otros ingresos | C28: 780540.16 | D28: 1431840.53 | E28: 957954.38 | F28: 1150183.36 | G28: 1335585.16 | H28: 1553448.65 | I28: 1763300.39 | J28: 1949682.48 | K28: 2280449.07 | L28: 2642624.97
A29: (-) 47 | B29: Otros gastos y pérdidas | C29: 0 | D29: 0 | E29: 0 | F29: 0 | G29: 0 | H29: 0 | I29: 0 | J29: 0 | K29: 0 | L29: 0
B30: GANANCIA ANTES DE IMPUESTOS | C30: 515166.24 | D30: 887559.66 | E30: 1260087.65 | F30: 1741051.44 | G30: 2382741.88 | H30: 2825465.47 | I30: 2973544.34 | J30: 3285517.89 | K30: 3464499.36 | L30: 3624313.18
A31: (-) 48 | B31: Impuestos y participación a empleados | C31: 186747.77 | D31: 321736.59 | E31: 456781.75 | F31: 631131.17 | G31: 863743.97 | H31: 1024231.24 | I31: 1077909.83 | J31: 1191000.25 | K31: 1255880.94 | L31: 1313813.52
B32: GANANCIA O PÉRDIDA DEL EJERCICIO | C32: 328418.47 | D32: 565823.07 | E32: 803305.9 | F32: 1109920.27 | G32: 1518997.91 | H32: 1801234.23 | I32: 1895634.51 | J32: 2094517.64 | K32: 2208618.42 | L32: 2310499.66
C33: =+C32-B32 ->  | D33: 237404.6 | E33: 237482.83 | F33: 306614.37 | G33: 409077.64 | H33: 282236.32 | I33: 94400.28 | J33: 198883.13 | K33: 114100.78 | L33: =+L32-K32 -> 101881.24

Sheet CLASIFICACIÓN DE CARTERA
A1: Menú Principal
A4: CLASIFICACIÓN DE CARTERA
A5: SECTOR FINANCIERO POPULAR Y SOLIDARIO SEGMENTO 1
A6: ='ESTADO FINANCIERO'!A6 -> PERIODO DEL 1 ENERO DEL 2023 AL 31 DE OCTUBRE DEL 2023
A7: (Dólares)
B9: 2023-10-31
B10: 15 DE ABRIL LTDA | C10: 23 DE JULIO LIMITADA | D10: 29 DE OCTUBRE LTDA | E10: 9 DE OCTUBRE LTDA | F10: ALFONSO JARAMILLO LEON CAJA | G10: ALIANZA DEL VALLE LIMITADA | H10: AMBATO LTDA | I10: ANDALUCIA LIMITADA | J10: ATUNTAQUI LIMITADA | K10: CALCETA LTDA | L10: CAMARA DE COMERCIO DE AMBATO LTDA | M10: CHIBULEO LIMITADA | N10: CHONE LTDA | O10: COMERCIO LTDA | P10: COOPROGRESO LIMITADA | Q10: CREA LIMITADA | R10: DE LA PEQUEÑA EMPRESA BIBLIAN LIMITADA | S10: DE LA PEQUEÑA EMPRESA CACPE LOJA LTDA | T10: DE LA PEQUEÑA EMPRESA DE COTOPAXI LIMITADA | U10: DE LA PEQUEÑA EMPRESA DE PASTAZA LIMITADA | V10: DE LA PEQUEÑA EMPRESA GUALAQUIZA | W10: DE LOS SERVIDORES PUBLICOS DEL MINISTERIO DE EDUCACION Y CULTURA | X10: EL SAGRARIO LTDA | Y10: ERCO LIMITADA | Z10: FERNANDO DAQUILEMA LIMITADA | AA10: INDIGENA SAC LTDA | AB10: JARDIN AZUAYO LIMITADA | AC10: JUVENTUD ECUATORIANA PROGRESISTA LIMITADA | AD10: KULLKI WASI LTDA | AE10: LA MERCED LIMITADA | AF10: LUZ DEL VALLE | AG10: MUSHUC RUNA LTDA | AH10: ONCE DE JUNIO LTDA | AI10: OSCUS LIMITADA | AJ10: PABLO MUÑOZ VEGA LIMITADA | AK10: PADRE JULIAN LORENTE LTDA | AL10: PILAHUIN TIO LIMITADA | AM10: POLICIA NACIONAL LIMITADA | AN10: RIOBAMBA LTDA | AO10: SAN FRANCISCO LTDA | AP10: SAN JOSE LIMITADA | AQ10: SANTA ROSA LIMITADA | AR10: TULCAN LIMITADA | AS10: VICENTINA MANUEL ESTEBAN GODOY ORTEGA LIMITADA | AT10: VIRGEN DEL CISNE | AU10: VT_TOTAL SEGMENTO 1
A11: TOTAL CARTERA POR VENCER | B11: 83763914.62 | C11: 292612233.4 | D11: 745008825.4 | E11: 87996883.52 | F11: 90950486.68 | G11: 903264472.7 | H11: 231166352.2 | I11: 391047124.6 | J11: 365300825 | K11: 85511849.43 | L11: 132285470 | M11: 331752438.9 | N11: 96998838.58 | O11: 103606322.2 | P11: 727451782.9 | Q11: 212434355.1 | R11: 318424892.1 | S11: 73785277.33 | T11: 338428337.1 | U11: 204227019.4 | V11: 69523839.38 | W11: 193186587.9 | X11: 178024074.1 | Y11: 146407136.1 | Z11: 425738518.2 | AA11: 123214957.2 | AB11: 1162111164 | AC11: 2057922741 | AD11: 231636954 | AE11: 93544688.13 | AF11: 62546061.54 | AG11: 425734392 | AH11: 109723111.8 | AI11: 456410808.5 | AJ11: 227448793 | AK11: 103265138.8 | AL11: 180398292.3 | AM11: 1108366092 | AN11: 363298421.1 | AO11: 428931263.1 | AP11: 178093424.1 | AQ11: 143069061 | AR11: 243421352.6 | AS11: 258225032.8 | AT11: 84738511.93 | AU11: 1.487099812e+10
A12: CARTERA DE CRÉDITO PRODUCTIVO POR VENCER | B12: 1776026.25 | C12: 975124.84 | D12: 507222.86 | E12: 304997.68 | F12: 1348651.54 | G12: 0 | H12: 15571.77 | I12: 0 | J12: 2458519.94 | K12: 0 | L12: 3528902.18 | M12: 0 | N12: 827160.32 | O12: 451195.34 | P12: 870737.06 | Q12: 3390110.81 | R12: 10242390.12 | S12: 0 | T12: 8427042.38 | U12: 0 | V12: 0 | W12: 0 | X12: 7556835.48 | Y12: 0 | Z12: 7637138.25 | AA12: 0 | AB12: 8791149.71 | AC12: 24066554.66 | AD12: 0 | AE12: 1149308.69 | AF12: 213880.26 | AG12: 4118156.73 | AH12: 1737695.76 | AI12: 16407404.65 | AJ12: 2474855.91 | AK12: 1 | AL12: 0 | AM12: 77250062.72 | AN12: 10596313.44 | AO12: 1842721.07 | AP12: 0 | AQ12: 45469211.91 | AR12: 0 | AS12: 19348517.37 | AT12: 0 | AU12: 263783460.7
A13: a.DE 1 A 30 DÍAS | B13: 22928.94 | C13: 26997.21 | D13: 5527.18 | E13: 21993.4 | F13: 169550.65 | G13: 0 | H13: 3837.52 | I13: 0 | J13: 28031.68 | K13: 0 | L13: 96762.47 | M13: 0 | N13: 18962.58 | O13: 4883.79 | P13: 76761.36 | Q13: 124477.12 | R13: 311691.6 | S13: 0 | T13: 139724.65 | U13: 0 | V13: 0 | W13: 0 | X13: 386359.37 | Y13: 0 | Z13: 78436.66 | AA13: 0 | AB13: 187149.25 | AC13: 613292.72 | AD13: 0 | AE13: 41458.68 | AF13: 11886.41 | AG13: 67340.06 | AH13: 27244.05 | AI13: 343047.48 | AJ13: 29027.38 | AK13: 0 | AL13: 0 | AM13: 1893725.91 | AN13: 213042.32 | AO13: 109317.8 | AP13: 0 | AQ13: 384679.67 | AR13: 0 | AS13: 300159.47 | AT13: 0 | AU13: 5738297.38
A14: a.DE 31 A 90 DÍAS | B14: 41439.84 | C14: 48836.83 | D14: 209816.25 | E14: 44648.6 | F14: 381779 | G14: 0 | H14: 5194.08 | I14: 0 | J14: 52590.29 | K14: 0 | L14: 129924.57 | M14: 0 | N14: 30827.33 | O14: 11549.8 | P14: 154149.83 | Q14: 210652.74 | R14: 496479.02 | S14: 0 | T14: 549545.98 | U14: 0 | V14: 0 | W14: 0 | X14: 473532.79 | Y14: 0 | Z14: 160207.97 | AA14: 0 | AB14: 337085.86 | AC14: 1212482.64 | AD14: 0 | AE14: 80416.87 | AF14: 18151.93 | AG14: 105952.11 | AH14: 55751.93 | AI14: 575672.51 | AJ14: 200445.03 | AK14: 0 | AL14: 0 | AM14: 2164960.16 | AN14: 361608.86 | AO14: 120625.12 | AP14: 0 | AQ14: 680141.09 | AR14: 0 | AS14: 483597.11 | AT14: 0 | AU14: 9398066.14
A15: a.DE 91 A 180 DÍAS | B15: 62549.34 | C15: 71322.04 | D15: 257426.74 | E15: 135989.91 | F15: 206770.36 | G15: 0 | H15: 5231.72 | I15: 0 | J15: 80657.05 | K15: 0 | L15: 279670.55 | M15: 0 | N15: 48191.61 | O15: 15711.37 | P15: 67838.19 | Q15: 326225.77 | R15: 623983.92 | S15: 0 | T15: 360101.13 | U15: 0 | V15: 0 | W15: 0 | X15: 682032.01 | Y15: 0 | Z15: 283649.49 | AA15: 0 | AB15: 577629.99 | AC15: 1356524.02 | AD15: 0 | AE15: 96589.33 | AF15: 27870.93 | AG15: 176629.46 | AH15: 85763.95 | AI15: 901548.05 | AJ15: 109045.57 | AK15: 0 | AL15: 0 | AM15: 5965428.73 | AN15: 561980.15 | AO15: 183626.75 | AP15: 0 | AQ15: 1172833.3 | AR15: 0 | AS15: 758327.17 | AT15: 0 | AU15: 15481148.6
A16: a.DE 181 A 360 DÍAS | B16: 116320.32 | C16: 140646.52 | D16: 30575.32 | E16: 89346.89 | F16: 200570.44 | G16: 0 | H16: 1308.45 | I16: 0 | J16: 167691.47 | K16: 0 | L16: 485065.03 | M16: 0 | N16: 95330.96 | O16: 30340.3 | P16: 108650.19 | Q16: 649479.49 | R16: 1111124.31 | S16: 0 | T16: 1033678.22 | U16: 0 | V16: 0 | W16: 0 | X16: 947461.25 | Y16: 0 | Z16: 551146.95 | AA16: 0 | AB16: 1108195.2 | AC16: 2671777.46 | AD16: 0 | AE16: 127402.33 | AF16: 54311.88 | AG16: 349050.28 | AH16: 178140.9 | AI16: 1795042.74 | AJ16: 94383.73 | AK16: 0 | AL16: 0 | AM16: 12245160.47 | AN16: 1127339.53 | AO16: 343166.05 | AP16: 0 | AQ16: 2633932.8 | AR16: 0 | AS16: 1498785.21 | AT16: 0 | AU16: 29985424.69
A17: a.MÁS DE 360 DÍAS | B17: 1532787.81 | C17: 687322.24 | D17: 3877.37 | E17: 13018.88 | F17: 389981.09 | G17: 0 | H17: 0 | I17: 0 | J17: 2129549.45 | K17: 0 | L17: 2537479.56 | M17: 0 | N17: 633847.84 | O17: 388710.08 | P17: 463337.49 | Q17: 2079275.69 | R17: 7699111.27 | S17: 0 | T17: 6343992.4 | U17: 0 | V17: 0 | W17: 0 | X17: 5067450.06 | Y17: 0 | Z17: 6563697.18 | AA17: 0 | AB17: 6581089.41 | AC17: 18212477.82 | AD17: 0 | AE17: 803441.48 | AF17: 101659.11 | AG17: 3419184.82 | AH17: 1390794.93 | AI17: 12792093.87 | AJ17: 2041954.2 | AK17: 1 | AL17: 0 | AM17: 54980787.45 | AN17: 8332342.58 | AO17: 1085985.35 | AP17: 0 | AQ17: 40597625.05 | AR17: 0 | AS17: 16307648.41 | AT17: 0 | AU17: 203180523.9
A18: CARTERA DE CRÉDITO CONSUMO POR VENCER | B18: 43316973.64 | C18: 169878539 | D18: 541827519.1 | E18: 23285964.44 | F18: 69293135.8 | G18: 165020970.7 | H18: 71446871.67 | I18: 279062171.3 | J18: 180082907 | K18: 33858968.88 | L18: 74722357.73 | M18: 92845598.85 | N18: 51956016.14 | O18: 81642987.45 | P18: 329445121.6 | Q18: 119068173.1 | R18: 228836872.2 | S18: 58822681.32 | T18: 141303083.7 | U18: 68999926.78 | V18: 35133214.79 | W18: 193186587.9 | X18: 105740946.6 | Y18: 77331568.76 | Z18: 112435542.8 | AA18: 29630407.05 | AB18: 859582345.8 | AC18: 1280361947 | AD18: 53685583.52 | AE18: 60821873.44 | AF18: 25461178.9 | AG18: 143517404.3 | AH18: 34921863.21 | AI18: 116858614 | AJ18: 125333354.7 | AK18: 67100893.62 | AL18: 69639386.74 | AM18: 930524772.8 | AN18: 73570360.2 | AO18: 309041486 | AP18: 92149545.66 | AQ18: 65978766.53 | AR18: 141184238.8 | AS18: 154398874.8 | AT18: 18413032.65 | AU18: 8000720631
A19: b.DE 1 A 30 DÍAS | B19: 690446.77 | C19: 3790083.92 | D19: 10874602.94 | E19: 710848.71 | F19: 1793236.98 | G19: 5448827.05 | H19: 1964602.25 | I19: 5220066.41 | J19: 4057135.51 | K19: 592452.77 | L19: 2111360.91 | M19: 6065007.98 | N19: 1189404.39 | O19: 648516.73 | P19: 9800171.36 | Q19: 3764909.44 | R19: 5919081.86 | S19: 1525031.54 | T19: 3326981.65 | U19: 1844316.81 | V19: 764488.26 | W19: 4614982.32 | X19: 3111593.54 | Y19: 2010249.7 | Z19: 3157633.35 | AA19: 1044161.16 | AB19: 20001748.26 | AC19: 109546988.9 | AD19: 1678804.59 | AE19: 1592509.02 | AF19: 768601.39 | AG19: 4502482.98 | AH19: 1145641.54 | AI19: 6814293.74 | AJ19: 2813830.45 | AK19: 1573924.35 | AL19: 2067043.06 | AM19: 36967187.8 | AN19: 2166871.47 | AO19: 8242198.67 | AP19: 2231428.32 | AQ19: 3429292 | AR19: 3516119.23 | AS19: 2949663.83 | AT19: 503468.13 | AU19: 298552292
A20: b.DE 31 A 90 DÍAS | B20: 1467963.14 | C20: 7415953.32 | D20: 21561834.68 | E20: 1342049.83 | F20: 3015221.55 | G20: 10153736.16 | H20: 3805541.43 | I20: 8539420.13 | J20: 7882445.04 | K20: 1255788.36 | L20: 3588197.49 | M20: 6004056.97 | N20: 1995538.21 | O20: 2628797.01 | P20: 16011380.35 | Q20: 4917781.18 | R20: 9576229.46 | S20: 2357334.13 | T20: 6060470.73 | U20: 3404005.09 | V20: 1238379.88 | W20: 4145768.11 | X20: 5314243.77 | Y20: 3532608.61 | Z20: 5248824.91 | AA20: 1986772.79 | AB20: 37290670.05 | AC20: 66636448.69 | AD20: 3378696.97 | AE20: 2603352.42 | AF20: 1400704.76 | AG20: 6792297.97 | AH20: 1882997.54 | AI20: 5917321.84 | AJ20: 5100926.73 | AK20: 2920604.96 | AL20: 2902106.37 | AM20: 38356841.15 | AN20: 4128597.59 | AO20: 15556687.85 | AP20: 3984060.83 | AQ20: 2837139.79 | AR20: 6153705.94 | AS20: 5537983.74 | AT20: 1012402.67 | AU20: 358843890.2
A21: b.DE 91 A 180 DÍAS | B21: 2245291 | C21: 10885163.47 | D21: 31337838.4 | E21: 2057011.83 | F21: 4431057.16 | G21: 15091032.88 | H21: 5666614.52 | I21: 12550701.36 | J21: 11625974.3 | K21: 2023256.14 | L21: 5153117.19 | M21: 8805108.2 | N21: 3223482.8 | O21: 4375156.41 | P21: 23631132.88 | Q21: 7099743.88 | R21: 14426418.29 | S21: 3801949.05 | T21: 8899075.58 | U21: 4905660.55 | V21: 2000576.77 | W21: 12314335.65 | X21: 8250264.87 | Y21: 5453092.74 | Z21: 8024779.16 | AA21: 2849978.59 | AB21: 57077778.45 | AC21: 89510547.45 | AD21: 4519603.03 | AE21: 3958954.78 | AF21: 2018669.87 | AG21: 9716673.33 | AH21: 2850342.89 | AI21: 8548452.13 | AJ21: 7797249.63 | AK21: 4401088.15 | AL21: 4379569.24 | AM21: 56209161.92 | AN21: 6039392.41 | AO21: 23663774.83 | AP21: 6188451.39 | AQ21: 4066747.93 | AR21: 9095514.53 | AS21: 8064154.95 | AT21: 1472429.66 | AU21: 530706370.2
A22: b.MÁS DE 180 DIAS | B22: 38913272.73 | C22: 147787338.3 | D22: 478053243.1 | E22: 19176054.07 | F22: 60053620.11 | G22: 134327374.6 | H22: 60010113.47 | I22: 252751983.4 | J22: 156517352.2 | K22: 29987471.61 | L22: 63869682.14 | M22: 71971425.7 | N22: 45547590.74 | O22: 73990517.3 | P22: 280002437 | Q22: 103285738.6 | R22: 198915142.6 | S22: 51138366.6 | T22: 123016555.7 | U22: 58845944.33 | V22: 31129769.88 | W22: 172111501.8 | X22: 89064844.43 | Y22: 66335617.71 | Z22: 96004305.38 | AA22: 23749494.51 | AB22: 745212149.1 | AC22: 1014667962 | AD22: 44108478.93 | AE22: 52667057.22 | AF22: 21273202.88 | AG22: 122505950 | AH22: 29042881.24 | AI22: 95578546.3 | AJ22: 109621347.8 | AK22: 58205276.16 | AL22: 60290668.07 | AM22: 798991581.9 | AN22: 61235498.73 | AO22: 261578824.7 | AP22: 79745605.12 | AQ22: 55645586.81 | AR22: 122418899.1 | AS22: 137847072.2 | AT22: 15424732.19 | AU22: 6812618078
A23: CARTERA DE CREDITO INMOBILIARIO POR VENCER | B23: 11862379.32 | C23: 5484288.46 | D23: 82854304.75 | E23: 223478.96 | F23: 0 | G23: 858161.7 | H23: 1843980.75 | I23: 33826504.5 | J23: 74126493.66 | K23: 3771499.04 | L23: 26762791.87 | M23: 5617542.48 | N23: 2465719.42 | O23: 4868478.43 | P23: 31777522.24 | Q23: 0 | R23: 41101317.65 | S23: 838582.1 | T23: 9590976.45 | U23: 8780663.34 | V23: 2623201.76 | W23: 0 | X23: 30864367.43 | Y23: 4014621.94 | Z23: 13601720.68 | AA23: 30967.51 | AB23: 52496090.96 | AC23: 466567248 | AD23: 0 | AE23: 1666057.03 | AF23: 493551.84 | AG23: 35466119.62 | AH23: 13412505.66 | AI23: 63554550.3 | AJ23: 27883936.83 | AK23: 3881994.23 | AL23: 295762.9 | AM23: 57731974.87 | AN23: 34030200.45 | AO23: 18922709.72 | AP23: 10507285.27 | AQ23: 1588870.34 | AR23: 36579748.65 | AS23: 337128.77 | AT23: 348235.65 | AU23: 1223553536
A24: c.DE 1 A 30 DÍAS | B24: 172913.8 | C24: 73947.49 | D24: 525990.39 | E24: 5522.27 | F24: 0 | G24: 22232.78 | H24: 13690.78 | I24: 311809.99 | J24: 610696.82 | K24: 24330.96 | L24: 230191.2 | M24: 47152.8 | N24: 24264.76 | O24: 18794.61 | P24: 466888.97 | Q24: 0 | R24: 181650.6 | S24: 3966.6 | T24: 86207.23 | U24: 82477.36 | V24: 16654 | W24: 0 | X24: 325336.99 | Y24: 23268.81 | Z24: 141702.87 | AA24: 665.45 | AB24: 311286.27 | AC24: 3971907.65 | AD24: 0 | AE24: 17607.66 | AF24: 3928.43 | AG24: 325938.26 | AH24: 115072.89 | AI24: 592104.62 | AJ24: 208379.96 | AK24: 41477.1 | AL24: 4304.88 | AM24: 423529.94 | AN24: 362247.11 | AO24: 179451.13 | AP24: 68592.26 | AQ24: 21393.25 | AR24: 306156.71 | AS24: 14792.68 | AT24: 9482.11 | AU24: 10388010.44
A25: c.DE 31 A 90 DÍAS | B25: 217316.78 | C25: 135950.27 | D25: 958426.34 | E25: 8023.08 | F25: 0 | G25: 39923.94 | H25: 20767.8 | I25: 548535.81 | J25: 1115374.88 | K25: 44776.48 | L25: 305830.45 | M25: 87200.99 | N25: 41224.74 | O25: 53560.94 | P25: 821635.26 | Q25: 0 | R25: 312583.22 | S25: 8158.49 | T25: 158605.41 | U25: 157529.02 | V25: 25593.94 | W25: 0 | X25: 536399.85 | Y25: 37467.86 | Z25: 240025.78 | AA25: 1355.51 | AB25: 561996.41 | AC25: 6935574.53 | AD25: 0 | AE25: 30251.71 | AF25: 5825.89 | AG25: 484141.25 | AH25: 191754.86 | AI25: 1018619.94 | AJ25: 404878.24 | AK25: 70666.05 | AL25: 6409.04 | AM25: 807669.32 | AN25: 675462.4 | AO25: 331271.63 | AP25: 104351.05 | AQ25: 24404.93 | AR25: 572698.85 | AS25: 24028.88 | AT25: 15983.3 | AU25: 18142255.12
A26: c.DE 91 A 360DÍAS | B26: 620887.44 | C26: 569154.99 | D26: 4403066.68 | E26: 39101.76 | F26: 0 | G26: 198170.62 | H26: 101417.63 | I26: 2574659.55 | J26: 5285768.48 | K26: 216012.76 | L26: 1783131.37 | M26: 431036.88 | N26: 213647.86 | O26: 282551.15 | P26: 3756292.28 | Q26: 0 | R26: 1446503.23 | S26: 41461.12 | T26: 728026.21 | U26: 713169.5 | V26: 129655.93 | W26: 0 | X26: 2402658.56 | Y26: 189536.02 | Z26: 1131801.75 | AA26: 6384.93 | AB26: 3134660.8 | AC26: 33368770.35 | AD26: 0 | AE26: 144356.93 | AF26: 35487.14 | AG26: 2351814.28 | AH26: 952025.62 | AI26: 4688255.06 | AJ26: 1972590.7 | AK26: 306587.69 | AL26: 30018.87 | AM26: 3766008.46 | AN26: 3152710.85 | AO26: 1557244.88 | AP26: 539196.27 | AQ26: 120642.47 | AR26: 2776806.26 | AS26: 97058.34 | AT26: 62402.33 | AU26: 86320734
A27: c.MÁS DE 360 DÍAS | B27: 10851261.3 | C27: 4705235.71 | D27: 76966821.34 | E27: 170831.85 | F27: 0 | G27: 597834.36 | H27: 1708104.54 | I27: 30391499.15 | J27: 67114653.48 | K27: 3486378.84 | L27: 24443638.85 | M27: 5052151.81 | N27: 2186582.06 | O27: 4513571.73 | P27: 26732705.73 | Q27: 0 | R27: 39160580.6 | S27: 784995.89 | T27: 8618137.6 | U27: 7827487.46 | V27: 2451297.89 | W27: 0 | X27: 27599972.03 | Y27: 3764349.25 | Z27: 12088190.28 | AA27: 22561.62 | AB27: 48488147.48 | AC27: 422290995.5 | AD27: 0 | AE27: 1473840.73 | AF27: 448310.38 | AG27: 32304225.83 | AH27: 12153652.29 | AI27: 57255570.68 | AJ27: 25298087.93 | AK27: 3463263.39 | AL27: 255030.11 | AM27: 52734767.15 | AN27: 29839780.09 | AO27: 16854742.08 | AP27: 9795145.69 | AQ27: 1422429.69 | AR27: 32924086.83 | AS27: 201248.87 | AT27: 260367.91 | AU27: 1108702536
A28: CARTERA DE MICROCRÉDITO POR VENCER | B28: 26808535.41 | C28: 116274281.1 | D28: 119819778.7 | E28: 64182442.44 | F28: 20308699.34 | G28: 737385340.3 | H28: 157859928.1 | I28: 78158448.88 | J28: 104182169.4 | K28: 47881381.51 | L28: 27271418.22 | M28: 233289297.5 | N28: 41749942.7 | O28: 16628851.8 | P28: 365358402 | Q28: 89548646.22 | R28: 38244312.17 | S28: 14124013.91 | T28: 179107234.6 | U28: 126446429.3 | V28: 31767422.83 | W28: 0 | X28: 33861924.55 | Y28: 65060945.41 | Z28: 292064116.4 | AA28: 93553582.64 | AB28: 241241577.3 | AC28: 286926991.5 | AD28: 177951370.5 | AE28: 29907448.97 | AF28: 36377450.54 | AG28: 242632711.4 | AH28: 59651047.22 | AI28: 259590239.5 | AJ28: 71756197.24 | AK28: 32282249.95 | AL28: 110463142.7 | AM28: 40524120.15 | AN28: 245101547 | AO28: 99124346.33 | AP28: 75436593.19 | AQ28: 30032212.21 | AR28: 65657365.11 | AS28: 84140511.87 | AT28: 65977243.63 | AU28: 5375711912
A29: d.DE 1 A 30 DÍAS | B29: 1780182.75 | C29: 2758834.8 | D29: 2556112.98 | E29: 1641535.6 | F29: 705467.52 | G29: 17217999.57 | H29: 4587770.31 | I29: 1541283.12 | J29: 2524214.68 | K29: 2652084.97 | L29: 868064.59 | M29: 8013977.45 | N29: 1644666.31 | O29: 680425.54 | P29: 9230633.03 | Q29: 1394565.17 | R29: 1428839.44 | S29: 417183 | T29: 4637873.65 | U29: 3666392.41 | V29: 616117.92 | W29: 0 | X29: 902027.74 | Y29: 1939256.45 | Z29: 11827736.28 | AA29: 2573619.54 | AB29: 7512677.68 | AC29: 7342330.12 | AD29: 5582573.79 | AE29: 924466.37 | AF29: 999469.06 | AG29: 9109111.84 | AH29: 1565689.73 | AI29: 6459225.04 | AJ29: 1815046.33 | AK29: 1344336.11 | AL29: 3621598.15 | AM29: 1232474.27 | AN29: 5847874.15 | AO29: 3992527.78 | AP29: 2764046.95 | AQ29: 1734676.45 | AR29: 1709063.81 | AS29: 1430692.21 | AT29: 2825219.13 | AU29: 155619963.8
A30: d.DE 31 A 90 DÍAS | B30: 1337700.14 | C30: 5031505.41 | D30: 4531819.3 | E30: 2679859.78 | F30: 1262333.7 | G30: 28010579.9 | H30: 7714695.22 | I30: 2782862.39 | J30: 4462444.56 | K30: 2448555.65 | L30: 1365368.6 | M30: 13541098.62 | N30: 2396916.15 | O30: 1057731.25 | P30: 17399450.1 | Q30: 2485491.63 | R30: 1891361.43 | S30: 634269.32 | T30: 7775207.99 | U30: 6421307.41 | V30: 922331.27 | W30: 0 | X30: 1393964.07 | Y30: 3076367.62 | Z30: 21577535.4 | AA30: 4951380.44 | AB30: 12513876.48 | AC30: 13433073.99 | AD30: 9654093.36 | AE30: 1560969.79 | AF30: 1655388.92 | AG30: 15523312.36 | AH30: 2555645.19 | AI30: 10565922.98 | AJ30: 2914718.32 | AK30: 1997172.98 | AL30: 5810510.46 | AM30: 1980563.81 | AN30: 10335856.64 | AO30: 6402546.85 | AP30: 5302217.13 | AQ30: 1384275.53 | AR30: 2912842.28 | AS30: 2301547.08 | AT30: 5028687.51 | AU30: 260985359
A31: d.DE 91 A 180 DÍAS | B31: 1997393.62 | C31: 7743758.47 | D31: 6448361.31 | E31: 4084277.85 | F31: 1767657.74 | G31: 43159880.66 | H31: 12419455.73 | I31: 4182100.21 | J31: 6808109.36 | K31: 3689739.26 | L31: 2063639.65 | M31: 21014254.36 | N31: 4643481.81 | O31: 1588764.38 | P31: 26379414.95 | Q31: 3982696.67 | R31: 2815721.93 | S31: 1033010.64 | T31: 12437522.73 | U31: 9161594.75 | V31: 1554135.34 | W31: 0 | X31: 2168753.63 | Y31: 4805074.11 | Z31: 30508843.35 | AA31: 7517979.68 | AB31: 18658047.46 | AC31: 19732569.38 | AD31: 14556783.89 | AE31: 2096939.59 | AF31: 2535426.52 | AG31: 22064287.31 | AH31: 4101314.34 | AI31: 16239004.23 | AJ31: 4586958.62 | AK31: 2443959.98 | AL31: 8318923.72 | AM31: 3100558.81 | AN31: 16048042.9 | AO31: 9697854.84 | AP31: 7262949.08 | AQ31: 2043341.95 | AR31: 4580546.74 | AS31: 3494880.84 | AT31: 6999607.66 | AU31: 392537620.1
A32: d.DE 181 A 360 DÍAS | B32: 3665311.46 | C32: 15484229.58 | D32: 12790219.37 | E32: 7947648.38 | F32: 3207838.63 | G32: 90236788.08 | H32: 23960211.91 | I32: 8318057.25 | J32: 13349564.39 | K32: 11433285.93 | L32: 3915471.71 | M32: 38802239.23 | N32: 7837040.22 | O32: 3202181.73 | P32: 50867251.69 | Q32: 8053931.53 | R32: 5103574.03 | S32: 2143533.4 | T32: 23503800.13 | U32: 16722011.95 | V32: 3061345.66 | W32: 0 | X32: 4295058.42 | Y32: 9148841.85 | Z32: 50391209.14 | AA32: 14718381.5 | AB32: 34912168.28 | AC32: 38622980.28 | AD32: 27712792.1 | AE32: 3839392.48 | AF32: 4956569.88 | AG32: 38723662.37 | AH32: 8137492.14 | AI32: 31324813.18 | AJ32: 9217860.85 | AK32: 4605094.97 | AL32: 14974866.39 | AM32: 6068429.25 | AN32: 30741866.29 | AO32: 17620135.56 | AP32: 8458967.1 | AQ32: 4162998.28 | AR32: 9065572.65 | AS32: 6688964.47 | AT32: 12642004.55 | AU32: 744635658.2
A33: d.MÁS DE 360 DÍAS | B33: 18027947.44 | C33: 85255952.82 | D33: 93493265.71 | E33: 47829120.83 | F33: 13365401.75 | G33: 558760092.1 | H33: 109177794.9 | I33: 61334145.91 | J33: 77037836.46 | K33: 27657715.7 | L33: 19058873.67 | M33: 151917727.9 | N33: 25227838.21 | O33: 10099748.9 | P33: 261481652.3 | Q33: 73631961.22 | R33: 27004815.34 | S33: 9896017.55 | T33: 130752830.1 | U33: 90475122.74 | V33: 25613492.64 | W33: 0 | X33: 25102120.69 | Y33: 46091405.38 | Z33: 177758792.3 | AA33: 63792221.48 | AB33: 167644807.4 | AC33: 207796037.7 | AD33: 120445127.3 | AE33: 21485680.74 | AF33: 26230596.16 | AG33: 157212337.5 | AH33: 43290905.82 | AI33: 195001274.1 | AJ33: 53221613.12 | AK33: 21891685.91 | AL33: 77737243.94 | AM33: 28142094.01 | AN33: 182127907 | AO33: 61411281.3 | AP33: 51648412.93 | AQ33: 20706920 | AR33: 47389339.63 | AS33: 70224427.27 | AT33: 38481724.78 | AU33: 3821933311
A34: CARTERA DE VIVIENDA DE INTERÉS PUBLICO POR VENCER | B34: 0 | C34: 0 | D34: 0 | E34: 0 | F34: 0 | G34: 0 | H34: 0 | I34: 0 | J34: 4450734.92 | K34: 0 | L34: 0 | M34: 0 | N34: 0 | O34: 0 | P34: 0 | Q34: 0 | R34: 0 | S34: 0 | T34: 0 | U34: 0 | V34: 0 | W34: 0 | X34: 0 | Y34: 0 | Z34: 0 | AA34: 0 | AB34: 0 | AC34: 0 | AD34: 0 | AE34: 0 | AF34: 0 | AG34: 0 | AH34: 0 | AI34: 0 | AJ34: 0 | AK34: 0 | AL34: 0 | AM34: 2335161.55 | AN34: 0 | AO34: 0 | AP34: 0 | AQ34: 0 | AR34: 0 | AS34: 0 | AT34: 0 | AU34: 6785896.47
A35: h.DE 1 A 30 DÍAS | B35: 0 | C35: 0 | D35: 0 | E35: 0 | F35: 0 | G35: 0 | H35: 0 | I35: 0 | J35: 6914.34 | K35: 0 | L35: 0 | M35: 0 | N35: 0 | O35: 0 | P35: 0 | Q35: 0 | R35: 0 | S35: 0 | T35: 0 | U35: 0 | V35: 0 | W35: 0 | X35: 0 | Y35: 0 | Z35: 0 | AA35: 0 | AB35: 0 | AC35: 0 | AD35: 0 | AE35: 0 | AF35: 0 | AG35: 0 | AH35: 0 | AI35: 0 | AJ35: 0 | AK35: 0 | AL35: 0 | AM35: 7020.47 | AN35: 0 | AO35: 0 | AP35: 0 | AQ35: 0 | AR35: 0 | AS35: 0 | AT35: 0 | AU35: 13934.81
A36: h.DE 31 A 90 DÍAS | B36: 0 | C36: 0 | D36: 0 | E36: 0 | F36: 0 | G36: 0 | H36: 0 | I36: 0 | J36: 13752.27 | K36: 0 | L36: 0 | M36: 0 | N36: 0 | O36: 0 | P36: 0 | Q36: 0 | R36: 0 | S36: 0 | T36: 0 | U36: 0 | V36: 0 | W36: 0 | X36: 0 | Y36: 0 | Z36: 0 | AA36: 0 | AB36: 0 | AC36: 0 | AD36: 0 | AE36: 0 | AF36: 0 | AG36: 0 | AH36: 0 | AI36: 0 | AJ36: 0 | AK36: 0 | AL36: 0 | AM36: 13006.81 | AN36: 0 | AO36: 0 | AP36: 0 | AQ36: 0 | AR36: 0 | AS36: 0 | AT36: 0 | AU36: 26759.08
A37: h.DE 91 A 360 DÍAS | B37: 0 | C37: 0 | D37: 0 | E37: 0 | F37: 0 | G37: 0 | H37: 0 | I37: 0 | J37: 64102.6 | K37: 0 | L37: 0 | M37: 0 | N37: 0 | O37: 0 | P37: 0 | Q37: 0 | R37: 0 | S37: 0 | T37: 0 | U37: 0 | V37: 0 | W37: 0 | X37: 0 | Y37: 0 | Z37: 0 | AA37: 0 | AB37: 0 | AC37: 0 | AD37: 0 | AE37: 0 | AF37: 0 | AG37: 0 | AH37: 0 | AI37: 0 | AJ37: 0 | AK37: 0 | AL37: 0 | AM37: 61357.61 | AN37: 0 | AO37: 0 | AP37: 0 | AQ37: 0 | AR37: 0 | AS37: 0 | AT37: 0 | AU37: 125460.21
A38: h.MÁS DE 360 DÍAS | B38: 0 | C38: 0 | D38: 0 | E38: 0 | F38: 0 | G38: 0 | H38: 0 | I38: 0 | J38: 4365965.71 | K38: 0 | L38: 0 | M38: 0 | N38: 0 | O38: 0 | P38: 0 | Q38: 0 | R38: 0 | S38: 0 | T38: 0 | U38: 0 | V38: 0 | W38: 0 | X38: 0 | Y38: 0 | Z38: 0 | AA38: 0 | AB38: 0 | AC38: 0 | AD38: 0 | AE38: 0 | AF38: 0 | AG38: 0 | AH38: 0 | AI38: 0 | AJ38: 0 | AK38: 0 | AL38: 0 | AM38: 2253776.66 | AN38: 0 | AO38: 0 | AP38: 0 | AQ38: 0 | AR38: 0 | AS38: 0 | AT38: 0 | AU38: 6619742.37
A39: CARTERA DE CRÉDITO EDUCATIVO POR VENCER | B39: 0 | C39: 0 | D39: 0 | E39: 0 | F39: 0 | G39: 0 | H39: 0 | I39: 0 | J39: 0 | K39: 0 | L39: 0 | M39: 0 | N39: 0 | O39: 14809.2 | P39: 0 | Q39: 427425.01 | R39: 0 | S39: 0 | T39: 0 | U39: 0 | V39: 0 | W39: 0 | X39: 0 | Y39: 0 | Z39: 0 | AA39: 0 | AB39: 0 | AC39: 0 | AD39: 0 | AE39: 0 | AF39: 0 | AG39: 0 | AH39: 0 | AI39: 0 | AJ39: 448.39 | AK39: 0 | AL39: 0 | AM39: 0 | AN39: 0 | AO39: 0 | AP39: 0 | AQ39: 0 | AR39: 0 | AS39: 0 | AT39: 0 | AU39: 442682.6
A40: i.DE 1 A 30 DÍAS | B40: 0 | C40: 0 | D40: 0 | E40: 0 | F40: 0 | G40: 0 | H40: 0 | I40: 0 | J40: 0 | K40: 0 | L40: 0 | M40: 0 | N40: 0 | O40: 319.63 | P40: 0 | Q40: 12711.23 | R40: 0 | S40: 0 | T40: 0 | U40: 0 | V40: 0 | W40: 0 | X40: 0 | Y40: 0 | Z40: 0 | AA40: 0 | AB40: 0 | AC40: 0 | AD40: 0 | AE40: 0 | AF40: 0 | AG40: 0 | AH40: 0 | AI40: 0 | AJ40: 148.5 | AK40: 0 | AL40: 0 | AM40: 0 | AN40: 0 | AO40: 0 | AP40: 0 | AQ40: 0 | AR40: 0 | AS40: 0 | AT40: 0 | AU40: 13179.36
A41: i.DE 31 A 90 DÍAS | B41: 0 | C41: 0 | D41: 0 | E41: 0 | F41: 0 | G41: 0 | H41: 0 | I41: 0 | J41: 0 | K41: 0 | L41: 0 | M41: 0 | N41: 0 | O41: 1037.73 | P41: 0 | Q41: 32004.06 | R41: 0 | S41: 0 | T41: 0 | U41: 0 | V41: 0 | W41: 0 | X41: 0 | Y41: 0 | Z41: 0 | AA41: 0 | AB41: 0 | AC41: 0 | AD41: 0 | AE41: 0 | AF41: 0 | AG41: 0 | AH41: 0 | AI41: 0 | AJ41: 299.89 | AK41: 0 | AL41: 0 | AM41: 0 | AN41: 0 | AO41: 0 | AP41: 0 | AQ41: 0 | AR41: 0 | AS41: 0 | AT41: 0 | AU41: 33341.68
A42: i.DE 91 A 180 DÍAS | B42: 0 | C42: 0 | D42: 0 | E42: 0 | F42: 0 | G42: 0 | H42: 0 | I42: 0 | J42: 0 | K42: 0 | L42: 0 | M42: 0 | N42: 0 | O42: 1620.29 | P42: 0 | Q42: 40225.64 | R42: 0 | S42: 0 | T42: 0 | U42: 0 | V42: 0 | W42: 0 | X42: 0 | Y42: 0 | Z42: 0 | AA42: 0 | AB42: 0 | AC42: 0 | AD42: 0 | AE42: 0 | AF42: 0 | AG42: 0 | AH42: 0 | AI42: 0 | AJ42: 0 | AK42: 0 | AL42: 0 | AM42: 0 | AN42: 0 | AO42: 0 | AP42: 0 | AQ42: 0 | AR42: 0 | AS42: 0 | AT42: 0 | AU42: 41845.93
A43: i.DE 181 A 360 DÍAS | B43: 0 | C43: 0 | D43: 0 | E43: 0 | F43: 0 | G43: 0 | H43: 0 | I43: 0 | J43: 0 | K43: 0 | L43: 0 | M43: 0 | N43: 0 | O43: 3349.52 | P43: 0 | Q43: 78134.05 | R43: 0 | S43: 0 | T43: 0 | U43: 0 | V43: 0 | W43: 0 | X43: 0 | Y43: 0 | Z43: 0 | AA43: 0 | AB43: 0 | AC43: 0 | AD43: 0 | AE43: 0 | AF43: 0 | AG43: 0 | AH43: 0 | AI43: 0 | AJ43: 0 | AK43: 0 | AL43: 0 | AM43: 0 | AN43: 0 | AO43: 0 | AP43: 0 | AQ43: 0 | AR43: 0 | AS43: 0 | AT43: 0 | AU43: 81483.57
A44: i.MÁS DE 360 DÍAS | B44: 0 | C44: 0 | D44: 0 | E44: 0 | F44: 0 | G44: 0 | H44: 0 | I44: 0 | J44: 0 | K44: 0 | L44: 0 | M44: 0 | N44: 0 | O44: 8482.03 | P44: 0 | Q44: 264350.03 | R44: 0 | S44: 0 | T44: 0 | U44: 0 | V44: 0 | W44: 0 | X44: 0 | Y44: 0 | Z44: 0 | AA44: 0 | AB44: 0 | AC44: 0 | AD44: 0 | AE44: 0 | AF44: 0 | AG44: 0 | AH44: 0 | AI44: 0 | AJ44: 0 | AK44: 0 | AL44: 0 | AM44: 0 | AN44: 0 | AO44: 0 | AP44: 0 | AQ44: 0 | AR44: 0 | AS44: 0 | AT44: 0 | AU44: 272832.06
A45: TOTAL CARTERA QUE NO DEVENGA INTERES | B45: 7868155.5 | C45: 19133368.65 | D45: 47335729.8 | E45: 4054924.29 | F45: 4891490.44 | G45: 57598666.93 | H45: 11807975.02 | I45: 23045031.96 | J45: 9758366.25 | K45: 4444446.92 | L45: 9443735.4 | M45: 17743086.1 | N45: 4479674.12 | O45: 5698959.51 | P45: 73658751.63 | Q45: 10532763.43 | R45: 20298105.53 | S45: 3107337.84 | T45: 22935280.57 | U45: 5266925.66 | V45: 3592405.68 | W45: 1500729.5 | X45: 8676799.93 | Y45: 7923811.34 | Z45: 12993489.65 | AA45: 3573825.7 | AB45: 54310223.28 | AC45: 93007224.61 | AD45: 12172878.22 | AE45: 5063489.97 | AF45: 13340196.16 | AG45: 32234884 | AH45: 5519189.39 | AI45: 26967464.72 | AJ45: 12194635.71 | AK45: 3780106.09 | AL45: 10215694.74 | AM45: 107371382.3 | AN45: 10389399.74 | AO45: 7448038.72 | AP45: 9244841.24 | AQ45: 6648605.51 | AR45: 11088081.38 | AS45: 11567224.44 | AT45: 4834901.14 | AU45: 838762298.7
A46: CARTERA DE CRÉDITO PRODUCTIVO QUE NO DEVENGA INTERESES | B46: 316708.61 | C46: 68240.23 | D46: 216342.33 | E46: 0 | F46: 178578.92 | G46: 0 | H46: 0 | I46: 0 | J46: 0 | K46: 0 | L46: 16159.21 | M46: 0 | N46: 49202.66 | O46: 126453.81 | P46: 176906.54 | Q46: 205596.08 | R46: 552614.73 | S46: 0 | T46: 413002.89 | U46: 0 | V46: 0 | W46: 0 | X46: 160009.85 | Y46: 0 | Z46: 66135.68 | AA46: 0 | AB46: 421348.3 | AC46: 952838.2 | AD46: 0 | AE46: 33594.33 | AF46: 89874.21 | AG46: 0 | AH46: 0 | AI46: 415420.92 | AJ46: 0 | AK46: 0 | AL46: 0 | AM46: 9032020.37 | AN46: 243449.45 | AO46: 170525.33 | AP46: 0 | AQ46: 448817.76 | AR46: 0 | AS46: 1082733.03 | AT46: 0 | AU46: 15436573.44
A47: j.DE 1 A 30 DÍAS | B47: 8484.67 | C47: 8042.64 | D47: 5845.85 | E47: 0 | F47: 8703.21 | G47: 0 | H47: 0 | I47: 0 | J47: 0 | K47: 0 | L47: 0 | M47: 0 | N47: 2279.08 | O47: 2005.87 | P47: 13585.69 | Q47: 10905.47 | R47: 17006.22 | S47: 0 | T47: 6284.76 | U47: 0 | V47: 0 | W47: 0 | X47: 5370.64 | Y47: 0 | Z47: 2288.08 | AA47: 0 | AB47: 10356.99 | AC47: 47870.86 | AD47: 0 | AE47: 2962.11 | AF47: 8449.4 | AG47: 0 | AH47: 0 | AI47: 14957.36 | AJ47: 0 | AK47: 0 | AL47: 0 | AM47: 1709788.93 | AN47: 13092.31 | AO47: 5898.77 | AP47: 0 | AQ47: 14122.65 | AR47: 0 | AS47: 28682.11 | AT47: 0 | AU47: 1946983.67
A48: j.DE 31 A 90 DÍAS | B48: 8644.67 | C48: 8171.54 | D48: 42575.65 | E48: 0 | F48: 8207.99 | G48: 0 | H48: 0 | I48: 0 | J48: 0 | K48: 0 | L48: 0 | M48: 0 | N48: 2323.04 | O48: 1034.81 | P48: 11159.45 | Q48: 17440.08 | R48: 14387.24 | S48: 0 | T48: 29526.29 | U48: 0 | V48: 0 | W48: 0 | X48: 4723.35 | Y48: 0 | Z48: 2328.97 | AA48: 0 | AB48: 18849.73 | AC48: 44745.23 | AD48: 0 | AE48: 3018.5 | AF48: 8602.87 | AG48: 0 | AH48: 0 | AI48: 13818.36 | AJ48: 0 | AK48: 0 | AL48: 0 | AM48: 1681468.58 | AN48: 12739.48 | AO48: 6014.47 | AP48: 0 | AQ48: 11350.73 | AR48: 0 | AS48: 27529.37 | AT48: 0 | AU48: 1978660.4
A49: j.DE 91 A 180 DÍAS | B49: 14633.59 | C49: 11080.96 | D49: 9179.33 | E49: 0 | F49: 13296.42 | G49: 0 | H49: 0 | I49: 0 | J49: 0 | K49: 0 | L49: 5114.47 | M49: 0 | N49: 3575.41 | O49: 3122.71 | P49: 13120.5 | Q49: 20864.19 | R49: 73552.71 | S49: 0 | T49: 33695.05 | U49: 0 | V49: 0 | W49: 0 | X49: 7071.28 | Y49: 0 | Z49: 3580.23 | AA49: 0 | AB49: 27863.97 | AC49: 65967.97 | AD49: 0 | AE49: 4639.48 | AF49: 13207.28 | AG49: 0 | AH49: 0 | AI49: 22361.12 | AJ49: 0 | AK49: 0 | AL49: 0 | AM49: 2119137.08 | AN49: 19897.55 | AO49: 9266.52 | AP49: 0 | AQ49: 21890.68 | AR49: 0 | AS49: 43784.28 | AT49: 0 | AU49: 2559902.78
A50: j.DE 181 A 360 DÍAS | B50: 10766.72 | C50: 17474.89 | D50: 57944.24 | E50: 0 | F50: 22338.06 | G50: 0 | H50: 0 | I50: 0 | J50: 0 | K50: 0 | L50: 5377 | M50: 0 | N50: 7452 | O50: 6433.08 | P50: 27447.4 | Q50: 44486.37 | R50: 46405.94 | S50: 0 | T50: 69976.56 | U50: 0 | V50: 0 | W50: 0 | X50: 16608.34 | Y50: 0 | Z50: 7434.51 | AA50: 0 | AB50: 54298.74 | AC50: 115258.29 | AD50: 0 | AE50: 7282.07 | AF50: 27488.8 | AG50: 0 | AH50: 0 | AI50: 41031.25 | AJ50: 0 | AK50: 0 | AL50: 0 | AM50: 2066083.93 | AN50: 35024.36 | AO50: 19315.03 | AP50: 0 | AQ50: 44477.21 | AR50: 0 | AS50: 82881.8 | AT50: 0 | AU50: 2833286.59
A51: j.MÁS DE 360 DÍAS | B51: 274178.96 | C51: 23470.2 | D51: 100797.26 | E51: 0 | F51: 126033.24 | G51: 0 | H51: 0 | I51: 0 | J51: 0 | K51: 0 | L51: 5667.74 | M51: 0 | N51: 33573.13 | O51: 113857.34 | P51: 111593.5 | Q51: 111899.97 | R51: 401262.62 | S51: 0 | T51: 273520.23 | U51: 0 | V51: 0 | W51: 0 | X51: 126236.24 | Y51: 0 | Z51: 50503.89 | AA51: 0 | AB51: 309978.87 | AC51: 678995.85 | AD51: 0 | AE51: 15692.17 | AF51: 32125.86 | AG51: 0 | AH51: 0 | AI51: 323252.83 | AJ51: 0 | AK51: 0 | AL51: 0 | AM51: 1455541.85 | AN51: 162695.75 | AO51: 130030.54 | AP51: 0 | AQ51: 356976.49 | AR51: 0 | AS51: 899855.47 | AT51: 0 | AU51: 6117740
A52: CARTERA DE CRÉDITO CONSUMO QUE NO DEVENGA INTERESES | B52: 1947416.36 | C52: 8737467.79 | D52: 27129240.12 | E52: 508098.57 | F52: 2854854.41 | G52: 7571700.19 | H52: 1660264.65 | I52: 15616216.63 | J52: 3435359.04 | K52: 430758.18 | L52: 4487790.43 | M52: 2346311.05 | N52: 1269457.73 | O52: 2610576.53 | P52: 22966589.45 | Q52: 4649150.11 | R52: 13330237.57 | S52: 2551436.62 | T52: 6698206.87 | U52: 1147528.62 | V52: 2128399.31 | W52: 1500729.5 | X52: 4426863.82 | Y52: 2744439.41 | Z52: 1464426.77 | AA52: 609950.15 | AB52: 36039996.93 | AC52: 53561759.08 | AD52: 1539751.14 | AE52: 2103187.26 | AF52: 3752230.3 | AG52: 7795896.51 | AH52: 1570889.65 | AI52: 5273601.73 | AJ52: 5354298.54 | AK52: 1722429.83 | AL52: 2829347.54 | AM52: 51207628 | AN52: 1624881.96 | AO52: 4013640.79 | AP52: 2883479.69 | AQ52: 2836674.56 | AR52: 6178947.19 | AS52: 4882401.48 | AT52: 305501.87 | AU52: 340300013.9
A53: k.DE 1 A 30 DÍAS | B53: 114380.76 | C53: 396009.9 | D53: 1535206.07 | E53: 45773.08 | F53: 145427.59 | G53: 678363.25 | H53: 123214.08 | I53: 791860.31 | J53: 274472.09 | K53: 27876.36 | L53: 196956.69 | M53: 400640.25 | N53: 67677.13 | O53: 151976.84 | P53: 1331709.38 | Q53: 184360.22 | R53: 649096.98 | S53: 161187 | T53: 339370.16 | U53: 101084.13 | V53: 105786.63 | W53: 126285.78 | X53: 320128.55 | Y53: 177802.51 | Z53: 112002.62 | AA53: 56681.11 | AB53: 939709.08 | AC53: 5092772.19 | AD53: 112679.44 | AE53: 169545.72 | AF53: 161624.13 | AG53: 357498.24 | AH53: 122872.77 | AI53: 580143.06 | AJ53: 309876.82 | AK53: 123964.8 | AL53: 190378.97 | AM53: 4386640.68 | AN53: 131943.02 | AO53: 249544.19 | AP53: 129723.16 | AQ53: 228186.29 | AR53: 312913.69 | AS53: 227728.28 | AT53: 27039.51 | AU53: 22470113.51
A54: k.DE 31 A 90 DÍAS | B54: 100529.76 | C54: 389536 | D54: 1464910.33 | E54: 41161.48 | F54: 142775.43 | G54: 640626.65 | H54: 102717.19 | I54: 654239.74 | J54: 189569.4 | K54: 27546.41 | L54: 175229.69 | M54: 174704.54 | N54: 54707.56 | O54: 146023.27 | P54: 985951.92 | Q54: 141508.95 | R54: 599697.92 | S54: 135570.22 | T54: 309023.55 | U54: 93658.3 | V54: 94576.52 | W54: 48426.93 | X54: 299216.92 | Y54: 158773.39 | Z54: 104943.43 | AA54: 50668.79 | AB54: 1671948.45 | AC54: 2650564.9 | AD54: 101646.36 | AE54: 153366.36 | AF54: 154411.17 | AG54: 340488.63 | AH54: 104924.74 | AI54: 368153.47 | AJ54: 282180.63 | AK54: 121445.15 | AL54: 174454.29 | AM54: 2694974.78 | AN54: 117444.58 | AO54: 227811.11 | AP54: 119954.6 | AQ54: 184671.9 | AR54: 287858.11 | AS54: 214955.45 | AT54: 24658.94 | AU54: 17322207.91
A55: k.DE 91 A 180 DÍAS | B55: 148370.7 | C55: 584050.33 | D55: 1944821.43 | E55: 57472.36 | F55: 211865.78 | G55: 943954.11 | H55: 148848.23 | I55: 952740.85 | J55: 272534.39 | K55: 37697.87 | L55: 294409.71 | M55: 225107.14 | N55: 96442.63 | O55: 213063.58 | P55: 1484637.03 | Q55: 214442.95 | R55: 912301.74 | S55: 201218.69 | T55: 487602.83 | U55: 125561.78 | V55: 143877.71 | W55: 143123.1 | X55: 452249.85 | Y55: 244884.8 | Z55: 150031.69 | AA55: 66329.68 | AB55: 2522897.47 | AC55: 3896421.74 | AD55: 152883.37 | AE55: 216708.88 | AF55: 234305.61 | AG55: 504399.76 | AH55: 161683.2 | AI55: 531656.01 | AJ55: 402797.64 | AK55: 174869.42 | AL55: 258306.66 | AM55: 4007781.28 | AN55: 172571.19 | AO55: 342426.49 | AP55: 189949.49 | AQ55: 284902.79 | AR55: 425746.11 | AS55: 333295.71 | AT55: 36057.3 | AU55: 25607301.08
A56: k.MÁS DE 180 DÍAS | B56: 1584135.14 | C56: 7367871.56 | D56: 22184302.29 | E56: 363691.65 | F56: 2354785.61 | G56: 5308756.18 | H56: 1285485.15 | I56: 13217375.73 | J56: 2698783.16 | K56: 337637.54 | L56: 3821194.34 | M56: 1545859.12 | N56: 1050630.41 | O56: 2099512.84 | P56: 19164291.12 | Q56: 4108837.99 | R56: 11169140.93 | S56: 2053460.71 | T56: 5562210.33 | U56: 827224.41 | V56: 1784158.45 | W56: 1182893.69 | X56: 3355268.5 | Y56: 2162978.71 | Z56: 1097449.03 | AA56: 436270.57 | AB56: 30905441.93 | AC56: 41922000.25 | AD56: 1172541.97 | AE56: 1563566.3 | AF56: 3201889.39 | AG56: 6593509.88 | AH56: 1181408.94 | AI56: 3793649.19 | AJ56: 4359443.45 | AK56: 1302150.46 | AL56: 2206207.62 | AM56: 40118231.26 | AN56: 1202923.17 | AO56: 3193859 | AP56: 2443852.44 | AQ56: 2138913.58 | AR56: 5152429.28 | AS56: 4106422.04 | AT56: 217746.12 | AU56: 274900391.4
A57: CARTERA DE CREDITO INMOBILIARIO QUE NO DEVENGA INTERESES | B57: 834120.01 | C57: 193125.83 | D57: 1708422.28 | E57: 7504.36 | F57: 0 | G57: 0 | H57: 32400.21 | I57: 392554.14 | J57: 626934.69 | K57: 66969.26 | L57: 1168876.36 | M57: 0 | N57: 16588.96 | O57: 212755.63 | P57: 2750806.01 | Q57: 0 | R57: 1101326.91 | S57: 0 | T57: 602455.1 | U57: 58587.06 | V57: 0 | W57: 0 | X57: 1230980.33 | Y57: 23424.98 | Z57: 91580.77 | AA57: 0 | AB57: 1072694.17 | AC57: 16918891.49 | AD57: 0 | AE57: 38669.74 | AF57: 101751.92 | AG57: 1035071.51 | AH57: 43604.36 | AI57: 1176432.19 | AJ57: 604926.41 | AK57: 28968.5 | AL57: 0 | AM57: 2816048.44 | AN57: 459594.56 | AO57: 80300.89 | AP57: 262343.87 | AQ57: 46288.56 | AR57: 298414.9 | AS57: 27890.05 | AT57: 0 | AU57: 36131304.45
A58: l.DE 1 A 30 DÍAS | B58: 327869.97 | C58: 5822.61 | D58: 30121.96 | E58: 565.67 | F58: 0 | G58: 0 | H58: 763.6 | I58: 22767.07 | J58: 48137.94 | K58: 1566.52 | L58: 17352.95 | M58: 0 | N58: 702.33 | O58: 1734.98 | P58: 62906.29 | Q58: 0 | R58: 9059.29 | S58: 0 | T58: 11515.47 | U58: 2084.38 | V58: 0 | W58: 0 | X58: 15082.41 | Y58: 1035.35 | Z58: 2946.02 | AA58: 0 | AB58: 6658.95 | AC58: 1834877.19 | AD58: 0 | AE58: 263.43 | AF58: 2711.9 | AG58: 15256.61 | AH58: 1874.71 | AI58: 16328.53 | AJ58: 8263.59 | AK58: 2310.71 | AL58: 0 | AM58: 38924.38 | AN58: 10871.63 | AO58: 2697.56 | AP58: 1089.99 | AQ58: 499.69 | AR58: 7316.44 | AS58: 3311.01 | AT58: 0 | AU58: 2515291.13
A59: l.DE 31 A 90 DÍAS | B59: 7905.81 | C59: 9014.97 | D59: 20621.4 | E59: 565.55 | F59: 0 | G59: 0 | H59: 524.03 | I59: 15827.17 | J59: 14665.69 | K59: 1022.93 | L59: 12315.84 | M59: 0 | N59: 1062.29 | O59: 2591.83 | P59: 43386.04 | Q59: 0 | R59: 13548.38 | S59: 0 | T59: 17244.44 | U59: 3654.44 | V59: 0 | W59: 0 | X59: 22470.36 | Y59: 707.95 | Z59: 4503.82 | AA59: 0 | AB59: 11733.96 | AC59: 211136.88 | AD59: 0 | AE59: 381.42 | AF59: 1827.51 | AG59: 9714.48 | AH59: 2670.24 | AI59: 24122.33 | AJ59: 12468.39 | AK59: 1577.37 | AL59: 0 | AM59: 26795.1 | AN59: 15531.06 | AO59: 4061.97 | AP59: 1494.75 | AQ59: 754.87 | AR59: 4384.98 | AS59: 2282.11 | AT59: 0 | AU59: 522570.36
A60: l.DE 91 A 360 DÍAS | B60: 42447.23 | C60: 24683.93 | D60: 89389.71 | E60: 2696.55 | F60: 0 | G60: 0 | H60: 2483.97 | I60: 67207.2 | J60: 66121.62 | K60: 3890.18 | L60: 85219.62 | M60: 0 | N60: 3123.34 | O60: 8352.25 | P60: 202137.9 | Q60: 0 | R60: 42264.51 | S60: 0 | T60: 54256.62 | U60: 7353.18 | V60: 0 | W60: 0 | X60: 64401.26 | Y60: 3348.54 | Z60: 14354.19 | AA60: 0 | AB60: 57370.5 | AC60: 1063330.02 | AD60: 0 | AE60: 1283.46 | AF60: 8375.02 | AG60: 48270.97 | AH60: 9020.67 | AI60: 67521.79 | AJ60: 35345.04 | AK60: 4115 | AL60: 0 | AM60: 127230.6 | AN60: 51541.79 | AO60: 10680.95 | AP60: 5137.7 | AQ60: 2395.19 | AR60: 22160.24 | AS60: 10713.49 | AT60: 0 | AU60: 2308224.23
A61: l.MÁS DE 360 DÍAS | B61: 455897 | C61: 153604.32 | D61: 1568289.21 | E61: 3676.59 | F61: 0 | G61: 0 | H61: 28628.61 | I61: 286752.7 | J61: 498009.44 | K61: 60489.63 | L61: 1053987.95 | M61: 0 | N61: 11701 | O61: 200076.57 | P61: 2442375.78 | Q61: 0 | R61: 1036454.73 | S61: 0 | T61: 519438.57 | U61: 45495.06 | V61: 0 | W61: 0 | X61: 1129026.3 | Y61: 18333.14 | Z61: 69776.74 | AA61: 0 | AB61: 996930.76 | AC61: 13809547.4 | AD61: 0 | AE61: 36741.43 | AF61: 88837.49 | AG61: 961829.45 | AH61: 30038.74 | AI61: 1068459.54 | AJ61: 548849.39 | AK61: 20965.42 | AL61: 0 | AM61: 2623098.36 | AN61: 381650.08 | AO61: 62860.41 | AP61: 254621.43 | AQ61: 42638.81 | AR61: 264553.24 | AS61: 11583.44 | AT61: 0 | AU61: 30785218.73
A62: CARTERA DE MICROCRÉDITO QUE NO DEVENGA INTERESES | B62: 4769910.52 | C62: 10134534.8 | D62: 18281725.07 | E62: 3539321.36 | F62: 1858057.11 | G62: 50026966.74 | H62: 10115310.16 | I62: 7036261.19 | J62: 5696072.52 | K62: 3946719.48 | L62: 3770909.4 | M62: 15396775.05 | N62: 3144424.77 | O62: 2749173.54 | P62: 47764449.63 | Q62: 5678017.24 | R62: 5313926.32 | S62: 555901.22 | T62: 15221615.71 | U62: 4060809.98 | V62: 1464006.37 | W62: 0 | X62: 2858945.93 | Y62: 5155946.95 | Z62: 11371346.43 | AA62: 2963875.55 | AB62: 16776183.88 | AC62: 21573735.84 | AD62: 10633127.08 | AE62: 2888038.64 | AF62: 9396339.73 | AG62: 23403915.98 | AH62: 3904695.38 | AI62: 20102009.88 | AJ62: 6235410.76 | AK62: 2028707.76 | AL62: 7386347.2 | AM62: 44254595.64 | AN62: 8061473.77 | AO62: 3183571.71 | AP62: 6099017.68 | AQ62: 3316824.63 | AR62: 4610719.29 | AS62: 5574199.88 | AT62: 4529399.27 | AU62: 446833317
A63: m.DE 1 A 30 DÍAS | B63: 247959.36 | C63: 528743.7 | D63: 849268.79 | E63: 207353.12 | F63: 128537.83 | G63: 3259307.16 | H63: 688397.36 | I63: 333793.48 | J63: 600610.64 | K63: 267440.24 | L63: 230144.19 | M63: 1050279.74 | N63: 231401.5 | O63: 194210.49 | P63: 1797091.08 | Q63: 157659.27 | R63: 336255.87 | S63: 35690.56 | T63: 897194.64 | U63: 297593.09 | V63: 60447.84 | W63: 0 | X63: 180734.57 | Y63: 422255.61 | Z63: 1135598.38 | AA63: 266572.05 | AB63: 569179.8 | AC63: 1612361.45 | AD63: 681105.05 | AE63: 217587.85 | AF63: 473722.07 | AG63: 1614079.74 | AH63: 273719.98 | AI63: 1101524.17 | AJ63: 354716.48 | AK63: 159508.08 | AL63: 723771.88 | AM63: 1316536.35 | AN63: 524195.76 | AO63: 231184.87 | AP63: 278486.59 | AQ63: 211283.92 | AR63: 236456.29 | AS63: 225221.52 | AT63: 450198.14 | AU63: 25659380.55
A64: m.DE 31 A 90 DÍAS | B64: 237896.92 | C64: 530208.54 | D64: 819111.46 | E64: 193869.58 | F64: 126827.44 | G64: 3066550.41 | H64: 551470.78 | I64: 324254.08 | J64: 325042.84 | K64: 252780.93 | L64: 209606.45 | M64: 964180.5 | N64: 214500.37 | O64: 193549.96 | P64: 1806380.18 | Q64: 146436.59 | R64: 297117.88 | S64: 41370.79 | T64: 830925.42 | U64: 268317.9 | V64: 55664.64 | W64: 0 | X64: 163779.78 | Y64: 373946.02 | Z64: 998575.01 | AA64: 223833.07 | AB64: 964625.25 | AC64: 1118314.42 | AD64: 645002.48 | AE64: 193462.1 | AF64: 452508.05 | AG64: 1479735.26 | AH64: 230996.15 | AI64: 1026793.52 | AJ64: 345927.2 | AK64: 152836.14 | AL64: 669429.54 | AM64: 1331492.06 | AN64: 473157.19 | AO64: 218888.57 | AP64: 252600.02 | AQ64: 221236.65 | AR64: 207551.06 | AS64: 210359.49 | AT64: 469234.97 | AU64: 23880347.66
A65: m.DE 91 A 180 DÍAS | B65: 356507.28 | C65: 798721.9 | D65: 1210737 | E65: 290416.57 | F65: 185068.58 | G65: 4551691.46 | H65: 900795.9 | I65: 475546.17 | J65: 460064.84 | K65: 346360.62 | L65: 335417.51 | M65: 1461395.68 | N65: 374757.55 | O65: 291939.01 | P65: 2748891.5 | Q65: 241151.03 | R65: 477077.47 | S65: 57533.08 | T65: 1291860.24 | U65: 377896.42 | V65: 97860.27 | W65: 0 | X65: 252518.21 | Y65: 566131.37 | Z65: 1421994.9 | AA65: 310865.41 | AB65: 1393669.12 | AC65: 1619439.62 | AD65: 948799.91 | AE65: 280735.52 | AF65: 694985.24 | AG65: 2285453.12 | AH65: 376868.34 | AI65: 1550834.07 | AJ65: 547949.39 | AK65: 227036.34 | AL65: 958232.78 | AM65: 2051955.86 | AN65: 706013.71 | AO65: 328136.19 | AP65: 418008.68 | AQ65: 327800.75 | AR65: 332458.19 | AS65: 313375.03 | AT65: 613916.32 | AU65: 35858868.15
A66: m.DE 181 A 360 DÍAS | B66: 663402 | C66: 1558076.04 | D66: 2288586.48 | E66: 510090.15 | F66: 320346.61 | G66: 9054746.07 | H66: 1609846.61 | I66: 893878.98 | J66: 848618.23 | K66: 662139.61 | L66: 610057.91 | M66: 2540741.71 | N66: 638343.58 | O66: 507459.38 | P66: 5550829.68 | Q66: 466962.31 | R66: 842414.06 | S66: 114043.04 | T66: 2262243.23 | U66: 649604.22 | V66: 186704.72 | W66: 0 | X66: 443332.71 | Y66: 974379.04 | Z66: 2255573.6 | AA66: 554604.29 | AB66: 2548662.35 | AC66: 2890010.46 | AD66: 1693325.52 | AE66: 467015.44 | AF66: 1326296.22 | AG66: 4138886.55 | AH66: 675144.44 | AI66: 2843493.05 | AJ66: 1008881.71 | AK66: 398271.84 | AL66: 1566092.98 | AM66: 4066361.59 | AN66: 1241725.56 | AO66: 591658.54 | AP66: 759871.1 | AQ66: 604251.31 | AR66: 627188.82 | AS66: 588556.46 | AT66: 976347.95 | AU66: 66019066.15
A67: m.MÁS DE 360 DÍAS | B67: 3264144.96 | C67: 6718784.62 | D67: 13114021.34 | E67: 2337591.94 | F67: 1097276.65 | G67: 30094671.64 | H67: 6364799.51 | I67: 5008788.48 | J67: 3461735.97 | K67: 2417998.08 | L67: 2385683.34 | M67: 9380177.42 | N67: 1685421.77 | O67: 1562014.7 | P67: 35861257.19 | Q67: 4665808.04 | R67: 3361061.04 | S67: 307263.75 | T67: 9939392.18 | U67: 2467398.35 | V67: 1063328.9 | W67: 0 | X67: 1818580.66 | Y67: 2819234.91 | Z67: 5559604.54 | AA67: 1608000.73 | AB67: 11300047.36 | AC67: 14333609.89 | AD67: 6664894.12 | AE67: 1729237.73 | AF67: 6448828.15 | AG67: 13885761.31 | AH67: 2347966.47 | AI67: 13579365.07 | AJ67: 3977935.98 | AK67: 1091055.36 | AL67: 3468820.02 | AM67: 35488249.78 | AN67: 5116381.55 | AO67: 1813703.54 | AP67: 4390051.29 | AQ67: 1952252 | AR67: 3207064.93 | AS67: 4236687.38 | AT67: 2019701.89 | AU67: 295415654.5
A68: CARTERA DE VIVIENDA DE INTERÉS PUBLICO QUE NO DEVENGA INTERESES | B68: 0 | C68: 0 | D68: 0 | E68: 0 | F68: 0 | G68: 0 | H68: 0 | I68: 0 | J68: 0 | K68: 0 | L68: 0 | M68: 0 | N68: 0 | O68: 0 | P68: 0 | Q68: 0 | R68: 0 | S68: 0 | T68: 0 | U68: 0 | V68: 0 | W68: 0 | X68: 0 | Y68: 0 | Z68: 0 | AA68: 0 | AB68: 0 | AC68: 0 | AD68: 0 | AE68: 0 | AF68: 0 | AG68: 0 | AH68: 0 | AI68: 0 | AJ68: 0 | AK68: 0 | AL68: 0 | AM68: 61089.81 | AN68: 0 | AO68: 0 | AP68: 0 | AQ68: 0 | AR68: 0 | AS68: 0 | AT68: 0 | AU68: 61089.81
A69: p.DE 1 A 30 DÍAS | B69: 0 | C69: 0 | D69: 0 | E69: 0 | F69: 0 | G69: 0 | H69: 0 | I69: 0 | J69: 0 | K69: 0 | L69: 0 | M69: 0 | N69: 0 | O69: 0 | P69: 0 | Q69: 0 | R69: 0 | S69: 0 | T69: 0 | U69: 0 | V69: 0 | W69: 0 | X69: 0 | Y69: 0 | Z69: 0 | AA69: 0 | AB69: 0 | AC69: 0 | AD69: 0 | AE69: 0 | AF69: 0 | AG69: 0 | AH69: 0 | AI69: 0 | AJ69: 0 | AK69: 0 | AL69: 0 | AM69: 373.35 | AN69: 0 | AO69: 0 | AP69: 0 | AQ69: 0 | AR69: 0 | AS69: 0 | AT69: 0 | AU69: 373.35
A70: p.DE 31 A 90 DÍAS | B70: 0 | C70: 0 | D70: 0 | E70: 0 | F70: 0 | G70: 0 | H70: 0 | I70: 0 | J70: 0 | K70: 0 | L70: 0 | M70: 0 | N70: 0 | O70: 0 | P70: 0 | Q70: 0 | R70: 0 | S70: 0 | T70: 0 | U70: 0 | V70: 0 | W70: 0 | X70: 0 | Y70: 0 | Z70: 0 | AA70: 0 | AB70: 0 | AC70: 0 | AD70: 0 | AE70: 0 | AF70: 0 | AG70: 0 | AH70: 0 | AI70: 0 | AJ70: 0 | AK70: 0 | AL70: 0 | AM70: 255.28 | AN70: 0 | AO70: 0 | AP70: 0 | AQ70: 0 | AR70: 0 | AS70: 0 | AT70: 0 | AU70: 255.28
A71: p.DE 91 A 360 DÍAS | B71: 0 | C71: 0 | D71: 0 | E71: 0 | F71: 0 | G71: 0 | H71: 0 | I71: 0 | J71: 0 | K71: 0 | L71: 0 | M71: 0 | N71: 0 | O71: 0 | P71: 0 | Q71: 0 | R71: 0 | S71: 0 | T71: 0 | U71: 0 | V71: 0 | W71: 0 | X71: 0 | Y71: 0 | Z71: 0 | AA71: 0 | AB71: 0 | AC71: 0 | AD71: 0 | AE71: 0 | AF71: 0 | AG71: 0 | AH71: 0 | AI71: 0 | AJ71: 0 | AK71: 0 | AL71: 0 | AM71: 1185.31 | AN71: 0 | AO71: 0 | AP71: 0 | AQ71: 0 | AR71: 0 | AS71: 0 | AT71: 0 | AU71: 1185.31
A72: p.MÁS DE 360 DÍAS | B72: 0 | C72: 0 | D72: 0 | E72: 0 | F72: 0 | G72: 0 | H72: 0 | I72: 0 | J72: 0 | K72: 0 | L72: 0 | M72: 0 | N72: 0 | O72: 0 | P72: 0 | Q72: 0 | R72: 0 | S72: 0 | T72: 0 | U72: 0 | V72: 0 | W72: 0 | X72: 0 | Y72: 0 | Z72: 0 | AA72: 0 | AB72: 0 | AC72: 0 | AD72: 0 | AE72: 0 | AF72: 0 | AG72: 0 | AH72: 0 | AI72: 0 | AJ72: 0 | AK72: 0 | AL72: 0 | AM72: 59275.87 | AN72: 0 | AO72: 0 | AP72: 0 | AQ72: 0 | AR72: 0 | AS72: 0 | AT72: 0 | AU72: 59275.87
A73: CARTERA DE CRÉDITO EDUCATIVO QUE NO DEVENGA INTERESES | B73: 0 | C73: 0 | D73: 0 | E73: 0 | F73: 0 | G73: 0 | H73: 0 | I73: 0 | J73: 0 | K73: 0 | L73: 0 | M73: 0 | N73: 0 | O73: 0 | P73: 0 | Q73: 0 | R73: 0 | S73: 0 | T73: 0 | U73: 0 | V73: 0 | W73: 0 | X73: 0 | Y73: 0 | Z73: 0 | AA73: 0 | AB73: 0 | AC73: 0 | AD73: 0 | AE73: 0 | AF73: 0 | AG73: 0 | AH73: 0 | AI73: 0 | AJ73: 0 | AK73: 0 | AL73: 0 | AM73: 0 | AN73: 0 | AO73: 0 | AP73: 0 | AQ73: 0 | AR73: 0 | AS73: 0 | AT73: 0 | AU73: 0
A74: q.DE 1 A 30 DÍAS | B74: 0 | C74: 0 | D74: 0 | E74: 0 | F74: 0 | G74: 0 | H74: 0 | I74: 0 | J74: 0 | K74: 0 | L74: 0 | M74: 0 | N74: 0 | O74: 0 | P74: 0 | Q74: 0 | R74: 0 | S74: 0 | T74: 0 | U74: 0 | V74: 0 | W74: 0 | X74: 0 | Y74: 0 | Z74: 0 | AA74: 0 | AB74: 0 | AC74: 0 | AD74: 0 | AE74: 0 | AF74: 0 | AG74: 0 | AH74: 0 | AI74: 0 | AJ74: 0 | AK74: 0 | AL74: 0 | AM74: 0 | AN74: 0 | AO74: 0 | AP74: 0 | AQ74: 0 | AR74: 0 | AS74: 0 | AT74: 0 | AU74: 0
A75: q.DE 31 A 90 DÍAS | B75: 0 | C75: 0 | D75: 0 | E75: 0 | F75: 0 | G75: 0 | H75: 0 | I75: 0 | J75: 0 | K75: 0 | L75: 0 | M75: 0 | N75: 0 | O75: 0 | P75: 0 | Q75: 0 | R75: 0 | S75: 0 | T75: 0 | U75: 0 | V75: 0 | W75: 0 | X75: 0 | Y75: 0 | Z75: 0 | AA75: 0 | AB75: 0 | AC75: 0 | AD75: 0 | AE75: 0 | AF75: 0 | AG75: 0 | AH75: 0 | AI75: 0 | AJ75: 0 | AK75: 0 | AL75: 0 | AM75: 0 | AN75: 0 | AO75: 0 | AP75: 0 | AQ75: 0 | AR75: 0 | AS75: 0 | AT75: 0 | AU75: 0
A76: q.DE 91 A 180 DÍAS | B76: 0 | C76: 0 | D76: 0 | E76: 0 | F76: 0 | G76: 0 | H76: 0 | I76: 0 | J76: 0 | K76: 0 | L76: 0 | M76: 0 | N76: 0 | O76: 0 | P76: 0 | Q76: 0 | R76: 0 | S76: 0 | T76: 0 | U76: 0 | V76: 0 | W76: 0 | X76: 0 | Y76: 0 | Z76: 0 | AA76: 0 | AB76: 0 | AC76: 0 | AD76: 0 | AE76: 0 | AF76: 0 | AG76: 0 | AH76: 0 | AI76: 0 | AJ76: 0 | AK76: 0 | AL76: 0 | AM76: 0 | AN76: 0 | AO76: 0 | AP76: 0 | AQ76: 0 | AR76: 0 | AS76: 0 | AT76: 0 | AU76: 0
A77: q.DE 181 A 360 DÍAS | B77: 0 | C77: 0 | D77: 0 | E77: 0 | F77: 0 | G77: 0 | H77: 0 | I77: 0 | J77: 0 | K77: 0 | L77: 0 | M77: 0 | N77: 0 | O77: 0 | P77: 0 | Q77: 0 | R77: 0 | S77: 0 | T77: 0 | U77: 0 | V77: 0 | W77: 0 | X77: 0 | Y77: 0 | Z77: 0 | AA77: 0 | AB77: 0 | AC77: 0 | AD77: 0 | AE77: 0 | AF77: 0 | AG77: 0 | AH77: 0 | AI77: 0 | AJ77: 0 | AK77: 0 | AL77: 0 | AM77: 0 | AN77: 0 | AO77: 0 | AP77: 0 | AQ77: 0 | AR77: 0 | AS77: 0 | AT77: 0 | AU77: 0
A78: q.MÁS DE 360 DÍAS | B78: 0 | C78: 0 | D78: 0 | E78: 0 | F78: 0 | G78: 0 | H78: 0 | I78: 0 | J78: 0 | K78: 0 | L78: 0 | M78: 0 | N78: 0 | O78: 0 | P78: 0 | Q78: 0 | R78: 0 | S78: 0 | T78: 0 | U78: 0 | V78: 0 | W78: 0 | X78: 0 | Y78: 0 | Z78: 0 | AA78: 0 | AB78: 0 | AC78: 0 | AD78: 0 | AE78: 0 | AF78: 0 | AG78: 0 | AH78: 0 | AI78: 0 | AJ78: 0 | AK78: 0 | AL78: 0 | AM78: 0 | AN78: 0 | AO78: 0 | AP78: 0 | AQ78: 0 | AR78: 0 | AS78: 0 | AT78: 0 | AU78: 0
A79: TOTAL CARTERA VENCIDA | B79: 4171646.62 | C79: 13718406.82 | D79: 12214370.43 | E79: 1568448.88 | F79: 1395765.18 | G79: 14007362 | H79: 3260813.04 | I79: 7945064.05 | J79: 6092498.1 | K79: 2469062.08 | L79: 2638014.8 | M79: 9748334.66 | N79: 2415845.28 | O79: 2403362 | P79: 5178640.58 | Q79: 866728.32 | R79: 7694394.23 | S79: 926143.51 | T79: 5293227.68 | U79: 2214113.31 | V79: 669721.28 | W79: 1426662.68 | X79: 2505587.24 | Y79: 3066233.12 | Z79: 8434543.39 | AA79: 2146459.68 | AB79: 11480061.5 | AC79: 60236628.2 | AD79: 4039079.06 | AE79: 1149334.25 | AF79: 2500898.68 | AG79: 8629646.47 | AH79: 6343318.89 | AI79: 7978694.97 | AJ79: 2614474.45 | AK79: 699539.6 | AL79: 2355717.63 | AM79: 21290937.01 | AN79: 4382129 | AO79: 11759361.16 | AP79: 2960547.3 | AQ79: 1972134.02 | AR79: 8746261.31 | AS79: 11577166.06 | AT79: 2748183.99 | AU79: 297935562.5
A80: CARTERA DE CRÉDITO PRODUCTIVO VENCIDA | B80: 133736.57 | C80: 86217.25 | D80: 78484.53 | E80: 0 | F80: 72450.26 | G80: 0 | H80: 0 | I80: 0 | J80: 0 | K80: 0 | L80: 6422.82 | M80: 0 | N80: 2186.82 | O80: 4723.24 | P80: 458047.9 | Q80: 31568.59 | R80: 731912.61 | S80: 0 | T80: 32023.02 | U80: 0 | V80: 0 | W80: 0 | X80: 55095.1 | Y80: 0 | Z80: 4062.52 | AA80: 0 | AB80: 66168.19 | AC80: 1247931.33 | AD80: 0 | AE80: 10845.33 | AF80: 51825.9 | AG80: 76554 | AH80: 0 | AI80: 51058.44 | AJ80: 0 | AK80: 5 | AL80: 0 | AM80: 4641103.99 | AN80: 111230.39 | AO80: 3803.09 | AP80: 0 | AQ80: 25248.19 | AR80: 0 | AS80: 973269.6 | AT80: 0 | AU80: 8955974.68
A81: r.DE 1 A 30 DÍAS | B81: 0 | C81: 0 | D81: 0 | E81: 0 | F81: 0 | G81: 0 | H81: 0 | I81: 0 | J81: 0 | K81: 0 | L81: 0 | M81: 0 | N81: 0 | O81: 0 | P81: 0 | Q81: 9005.25 | R81: 27249.09 | S81: 0 | T81: 0 | U81: 0 | V81: 0 | W81: 0 | X81: 0 | Y81: 0 | Z81: 0 | AA81: 0 | AB81: 7767.69 | AC81: 0 | AD81: 0 | AE81: 0 | AF81: 0 | AG81: 0 | AH81: 0 | AI81: 0 | AJ81: 0 | AK81: 0 | AL81: 0 | AM81: 0 | AN81: 0 | AO81: 0 | AP81: 0 | AQ81: 0 | AR81: 0 | AS81: 0 | AT81: 0 | AU81: 44022.03
A82: r.DE 31 A 90 DÍAS | B82: 83631.57 | C82: 4105.58 | D82: 5711.28 | E82: 0 | F82: 6742.82 | G82: 0 | H82: 0 | I82: 0 | J82: 0 | K82: 0 | L82: 4847.47 | M82: 0 | N82: 1921.27 | O82: 1932.44 | P82: 73792.74 | Q82: 6056.73 | R82: 84060.51 | S82: 0 | T82: 27952.02 | U82: 0 | V82: 0 | W82: 0 | X82: 5221.89 | Y82: 0 | Z82: 2228.14 | AA82: 0 | AB82: 17403.81 | AC82: 135955.28 | AD82: 0 | AE82: 3176.78 | AF82: 11962.18 | AG82: 0 | AH82: 0 | AI82: 11897.2 | AJ82: 0 | AK82: 0 | AL82: 0 | AM82: 2335656.94 | AN82: 10788.83 | AO82: 3800.09 | AP82: 0 | AQ82: 11854.91 | AR82: 0 | AS82: 20285.85 | AT82: 0 | AU82: 2870986.33
A83: r.DE 91 A 180 DÍAS | B83: 0 | C83: 953.28 | D83: 40196.69 | E83: 0 | F83: 7235.27 | G83: 0 | H83: 0 | I83: 0 | J83: 0 | K83: 0 | L83: 0 | M83: 0 | N83: 265.55 | O83: 2788.8 | P83: 50320.25 | Q83: 2143.9 | R83: 96791.58 | S83: 0 | T83: 4068 | U83: 0 | V83: 0 | W83: 0 | X83: 7752.74 | Y83: 0 | Z83: 1834.38 | AA83: 0 | AB83: 6774.33 | AC83: 19095.01 | AD83: 0 | AE83: 2698.75 | AF83: 12196.9 | AG83: 0 | AH83: 0 | AI83: 10033.22 | AJ83: 0 | AK83: 0 | AL83: 0 | AM83: 1200673.31 | AN83: 1821.51 | AO83: 0 | AP83: 0 | AQ83: 6805.52 | AR83: 0 | AS83: 305844.31 | AT83: 0 | AU83: 1780293.3
A84: r.DE 181 A 360 DÍAS | B84: 0 | C84: 0 | D84: 32546.56 | E84: 0 | F84: 8973.52 | G84: 0 | H84: 0 | I84: 0 | J84: 0 | K84: 0 | L84: 1570.35 | M84: 0 | N84: 0 | O84: 0 | P84: 102322.56 | Q84: 5026.48 | R84: 166844.26 | S84: 0 | T84: 0 | U84: 0 | V84: 0 | W84: 0 | X84: 14873.93 | Y84: 0 | Z84: 0 | AA84: 0 | AB84: 13000.26 | AC84: 5557.28 | AD84: 0 | AE84: 4961.8 | AF84: 20033.47 | AG84: 0 | AH84: 0 | AI84: 12318.85 | AJ84: 0 | AK84: 0 | AL84: 0 | AM84: 836161.43 | AN84: 1170.99 | AO84: 0 | AP84: 0 | AQ84: 2743.42 | AR84: 0 | AS84: 451630.74 | AT84: 0 | AU84: 1679735.9
A85: r.MÁS DE 360 DÍAS | B85: 50105 | C85: 81158.39 | D85: 30 | E85: 0 | F85: 49498.65 | G85: 0 | H85: 0 | I85: 0 | J85: 0 | K85: 0 | L85: 5 | M85: 0 | N85: 0 | O85: 2 | P85: 231612.35 | Q85: 9336.23 | R85: 356967.17 | S85: 0 | T85: 3 | U85: 0 | V85: 0 | W85: 0 | X85: 27246.54 | Y85: 0 | Z85: 0 | AA85: 0 | AB85: 21222.1 | AC85: 1087323.76 | AD85: 0 | AE85: 8 | AF85: 7633.35 | AG85: 76554 | AH85: 0 | AI85: 16809.17 | AJ85: 0 | AK85: 5 | AL85: 0 | AM85: 268612.31 | AN85: 97449.06 | AO85: 3 | AP85: 0 | AQ85: 3844.34 | AR85: 0 | AS85: 195508.7 | AT85: 0 | AU85: 2580937.12
A86: CARTERA DE CRÉDITO CONSUMO VENCIDA | B86: 1576293.88 | C86: 6300420.77 | D86: 7242730.33 | E86: 524102.03 | F86: 655807.86 | G86: 2619919.94 | H86: 475256.63 | I86: 5376566.97 | J86: 2095583.7 | K86: 100508.96 | L86: 1326440.93 | M86: 1146531.75 | N86: 343615.39 | O86: 636874.37 | P86: 2217017.81 | Q86: 361841.23 | R86: 3752906.85 | S86: 692101.35 | T86: 1092261.83 | U86: 471103.5 | V86: 466616.63 | W86: 1426662.68 | X86: 1359009.64 | Y86: 770114.17 | Z86: 366560.4 | AA86: 280185.54 | AB86: 6074416.61 | AC86: 34368757.52 | AD86: 463637.87 | AE86: 451919.43 | AF86: 669786.71 | AG86: 1456251.92 | AH86: 1895524.17 | AI86: 2711908.4 | AJ86: 1206540.74 | AK86: 247450.73 | AL86: 492683.98 | AM86: 13324443.68 | AN86: 556091.21 | AO86: 5309432.68 | AP86: 829920.92 | AQ86: 1126203.67 | AR86: 4381245.81 | AS86: 3690689.53 | AT86: 105192 | AU86: 123039132.7
A87: s.DE 1 A 30 DÍAS | B87: 0 | C87: 56451.46 | D87: 25972.62 | E87: 0 | F87: 0 | G87: 140645.94 | H87: 0 | I87: 497737.39 | J87: 96 | K87: 14473.77 | L87: 188958.73 | M87: 17816.11 | N87: 11047.8 | O87: 2124.2 | P87: 0 | Q87: 68784.16 | R87: 65950.64 | S87: 7 | T87: 3 | U87: 0 | V87: 0 | W87: 30489 | X87: 0 | Y87: 0 | Z87: 1328.91 | AA87: 2712.41 | AB87: 788297.11 | AC87: 459.91 | AD87: 3246.73 | AE87: 0 | AF87: 0 | AG87: 1 | AH87: 56564.67 | AI87: 0 | AJ87: 196.75 | AK87: 2094.36 | AL87: 0 | AM87: 0 | AN87: 0 | AO87: 253900.22 | AP87: 4 | AQ87: 0 | AR87: 760659.72 | AS87: 219257.59 | AT87: 1701.03 | AU87: 3210982.23
A88: s.DE 31 A 90 DÍAS | B88: 1199836.73 | C88: 1045619.71 | D88: 1462362.73 | E88: 62781.39 | F88: 102627.22 | G88: 1116327.68 | H88: 84364.75 | I88: 994417.8 | J88: 440544.4 | K88: 19285 | L88: 118828.72 | M88: 266820.89 | N88: 65739.96 | O88: 140469.17 | P88: 1066659.09 | Q88: 83461.37 | R88: 632576.59 | S88: 157348.47 | T88: 283226.16 | U88: 88304.11 | V88: 84958.12 | W88: 172211.74 | X88: 276243.29 | Y88: 137391.25 | Z88: 98369.46 | AA88: 56012.28 | AB88: 1377492.97 | AC88: 4988578.44 | AD88: 100335.71 | AE88: 129838.99 | AF88: 145539.97 | AG88: 353241.18 | AH88: 212121.32 | AI88: 325345.11 | AJ88: 264290.82 | AK88: 100897.12 | AL88: 186767.17 | AM88: 2895771.72 | AN88: 101792.14 | AO88: 625911.88 | AP88: 229971.2 | AQ88: 291937.11 | AR88: 601372.65 | AS88: 248940.48 | AT88: 24054 | AU88: 23460988.06
A89: s.DE 91 A 180 DÍAS | B89: 105559.25 | C89: 1782867.74 | D89: 1203646.13 | E89: 67709.36 | F89: 66614.67 | G89: 797602.15 | H89: 88750.54 | I89: 1118587.05 | J89: 452606.35 | K89: 20602.46 | L89: 195475.62 | M89: 178855.64 | N89: 48828.39 | O89: 142425.22 | P89: 542739.08 | Q89: 70778.43 | R89: 505689.99 | S89: 228071.06 | T89: 279323.72 | U89: 78637.99 | V89: 74514.7 | W89: 241369.55 | X89: 283088.01 | Y89: 121894.92 | Z89: 82767.9 | AA89: 53352.95 | AB89: 1089328.98 | AC89: 6595099.52 | AD89: 91381.84 | AE89: 81969.74 | AF89: 196527.77 | AG89: 332058.31 | AH89: 230110.67 | AI89: 538707.99 | AJ89: 260272.73 | AK89: 66638.32 | AL89: 171105.21 | AM89: 3182961.93 | AN89: 73198.71 | AO89: 680091.82 | AP89: 190692.42 | AQ89: 189612.78 | AR89: 1040497.7 | AS89: 158299.78 | AT89: 20815.05 | AU89: 24021730.14
A90: s.MÁS DE 180 DÍAS | B90: 270897.9 | C90: 3415481.86 | D90: 4550748.85 | E90: 393611.28 | F90: 486565.97 | G90: 565344.17 | H90: 302141.34 | I90: 2765824.73 | J90: 1202336.95 | K90: 46147.73 | L90: 823177.86 | M90: 683039.11 | N90: 217999.24 | O90: 351855.78 | P90: 607619.64 | Q90: 138817.27 | R90: 2548689.63 | S90: 306674.82 | T90: 529708.95 | U90: 304161.4 | V90: 307143.81 | W90: 982592.39 | X90: 799678.34 | Y90: 510828 | Z90: 184094.13 | AA90: 168107.9 | AB90: 2819297.55 | AC90: 22784619.65 | AD90: 268673.59 | AE90: 240110.7 | AF90: 327718.97 | AG90: 770951.43 | AH90: 1396727.51 | AI90: 1847855.3 | AJ90: 681780.44 | AK90: 77820.93 | AL90: 134811.6 | AM90: 7245710.03 | AN90: 381100.36 | AO90: 3749528.76 | AP90: 409253.3 | AQ90: 644653.78 | AR90: 1978715.74 | AS90: 3064191.68 | AT90: 58621.92 | AU90: 72345432.29
A91: CARTERA DE CREDITO INMOBILIARIO VENCIDA | B91: 21439.68 | C91: 241715.36 | D91: 77840.53 | E91: 133.03 | F91: 0 | G91: 5 | H91: 246.71 | I91: 394527.77 | J91: 602361.93 | K91: 2992.76 | L91: 107408.23 | M91: 0 | N91: 341.44 | O91: 11152.27 | P91: 129469.22 | Q91: 1 | R91: 822000.76 | S91: 10 | T91: 33427.59 | U91: 6772.63 | V91: 9 | W91: 0 | X91: 69931.97 | Y91: 7427.07 | Z91: 12053.44 | AA91: 6 | AB91: 46813.6 | AC91: 7463030.41 | AD91: 0 | AE91: 390.83 | AF91: 5361.81 | AG91: 86316.17 | AH91: 408382.62 | AI91: 49894.87 | AJ91: 37271.07 | AK91: 2637.21 | AL91: 0 | AM91: 100202.17 | AN91: 177944.32 | AO91: 463957.5 | AP91: 3571.29 | AQ91: 694.17 | AR91: 146801.1 | AS91: 26231.69 | AT91: 0 | AU91: 11560774.22
A92: t.De 1 a 30 días | B92: 0 | C92: 12572.15 | D92: 0 | E92: 0 | F92: 0 | G92: 0 | H92: 0 | I92: 180057.29 | J92: 0 | K92: 418.66 | L92: 0 | M92: 0 | N92: 0 | O92: 0 | P92: 0 | Q92: 0 | R92: 4954.6 | S92: 0 | T92: 0 | U92: 0 | V92: 0 | W92: 0 | X92: 0 | Y92: 0 | Z92: 0 | AA92: 0 | AB92: 5561.66 | AC92: 0 | AD92: 0 | AE92: 0 | AF92: 0 | AG92: 0 | AH92: 3192.25 | AI92: 0 | AJ92: 0 | AK92: 1 | AL92: 0 | AM92: 0 | AN92: 0 | AO92: 7368.17 | AP92: 0 | AQ92: 0 | AR92: 0 | AS92: 0 | AT92: 0 | AU92: 214125.78
A93: t.De 31 a 90 días | B93: 4518.55 | C93: 2874.44 | D93: 9916.26 | E93: 131.03 | F93: 0 | G93: 0 | H93: 246.71 | I93: 59630.99 | J93: 103286.84 | K93: 870.76 | L93: 17564.45 | M93: 0 | N93: 341.44 | O93: 820.01 | P93: 19479.1 | Q93: 0 | R93: 13464.17 | S93: 0 | T93: 5554.51 | U93: 1191.74 | V93: 0 | W93: 0 | X93: 6571.72 | Y93: 336.8 | Z93: 1373.61 | AA93: 1 | AB93: 11666.61 | AC93: 664729.94 | AD93: 0 | AE93: 111.93 | AF93: 892.81 | AG93: 3603.82 | AH93: 6165.66 | AI93: 9156.06 | AJ93: 3724.28 | AK93: 754.01 | AL93: 0 | AM93: 10136.31 | AN93: 5065.46 | AO93: 15371.1 | AP93: 495.04 | AQ93: 244.66 | AR93: 28308.36 | AS93: 24337.66 | AT93: 0 | AU93: 1032937.84
A94: t.De 91 a 360 DÍAS | B94: 15256.15 | C94: 65924.82 | D94: 45243.38 | E94: 1 | F94: 0 | G94: 0 | H94: 0 | I94: 127486.17 | J94: 339521.46 | K94: 1337.85 | L94: 42641.53 | M94: 0 | N94: 0 | O94: 1509.64 | P94: 77821.78 | Q94: 0 | R94: 48701.43 | S94: 4 | T94: 21420.24 | U94: 4325.71 | V94: 0 | W94: 0 | X94: 31738.48 | Y94: 2939.58 | Z94: 7209.17 | AA94: 1 | AB94: 20020.97 | AC94: 3659902.73 | AD94: 0 | AE94: 276.9 | AF94: 4469 | AG94: 37545.92 | AH94: 26401.26 | AI94: 30186.04 | AJ94: 20226.97 | AK94: 1881.2 | AL94: 0 | AM94: 55473.26 | AN94: 12181.7 | AO94: 67646.49 | AP94: 1690.61 | AQ94: 443.51 | AR94: 109467.72 | AS94: 1891.03 | AT94: 0 | AU94: 4882788.7
A95: t.MAS DE 360 DÍAS | B95: 1664.98 | C95: 160343.95 | D95: 22680.89 | E95: 1 | F95: 0 | G95: 5 | H95: 0 | I95: 27353.32 | J95: 159553.63 | K95: 365.49 | L95: 47202.25 | M95: 0 | N95: 0 | O95: 8822.62 | P95: 32168.34 | Q95: 1 | R95: 754880.56 | S95: 6 | T95: 6452.84 | U95: 1255.18 | V95: 9 | W95: 0 | X95: 31621.77 | Y95: 4150.69 | Z95: 3470.66 | AA95: 4 | AB95: 9564.36 | AC95: 3138397.74 | AD95: 0 | AE95: 2 | AF95: 0 | AG95: 45166.43 | AH95: 372623.45 | AI95: 10552.77 | AJ95: 13319.82 | AK95: 1 | AL95: 0 | AM95: 34592.6 | AN95: 160697.16 | AO95: 373571.74 | AP95: 1385.64 | AQ95: 6 | AR95: 9025.02 | AS95: 3 | AT95: 0 | AU95: 5430921.9
A96: CARTERA DE MICROCRÉDITO VENCIDA | B96: 2440176.49 | C96: 7090053.44 | D96: 4815315.04 | E96: 1044213.82 | F96: 667507.06 | G96: 11387437.06 | H96: 2785309.7 | I96: 2173969.31 | J96: 3394552.47 | K96: 2365560.36 | L96: 1197742.82 | M96: 8601802.91 | N96: 2069701.63 | O96: 1750612.12 | P96: 2374105.65 | Q96: 473317.5 | R96: 2387574.01 | S96: 234032.16 | T96: 4135515.24 | U96: 1736237.18 | V96: 203095.65 | W96: 0 | X96: 1021550.53 | Y96: 2288691.88 | Z96: 8051867.03 | AA96: 1866268.14 | AB96: 5292663.1 | AC96: 17156908.94 | AD96: 3575441.19 | AE96: 686176.66 | AF96: 1773924.26 | AG96: 7010524.38 | AH96: 4039412.1 | AI96: 5165833.26 | AJ96: 1370662.64 | AK96: 449446.66 | AL96: 1863033.65 | AM96: 3224195.59 | AN96: 3536863.08 | AO96: 5982167.89 | AP96: 2127055.09 | AQ96: 819987.99 | AR96: 4218214.4 | AS96: 6886975.24 | AT96: 2642991.99 | AU96: 154378687.3
A97: u.DE 1 A 30 DÍAS | B97: 390111.9 | C97: 302040.46 | D97: 258.79 | E97: 1 | F97: 0 | G97: 1222709.98 | H97: 1 | I97: 115398.04 | J97: 108 | K97: 516474.55 | L97: 127380.71 | M97: 187359.1 | N97: 55109.5 | O97: 8696.65 | P97: 0 | Q97: 78658.08 | R97: 42433.86 | S97: 5 | T97: 25 | U97: 1 | V97: 0 | W97: 0 | X97: 0 | Y97: 0 | Z97: 6125.88 | AA97: 25751.43 | AB97: 448436.94 | AC97: 7 | AD97: 49874.76 | AE97: 0 | AF97: 0 | AG97: 3 | AH97: 113826.01 | AI97: 0 | AJ97: 368.96 | AK97: 82 | AL97: 0 | AM97: 0 | AN97: 0 | AO97: 297444.76 | AP97: 0 | AQ97: 0 | AR97: 709816.01 | AS97: 300977.74 | AT97: 32546.11 | AU97: 5032033.22
A98: u.DE 31 A 90 DÍAS | B98: 1726782.77 | C98: 1367014.38 | D98: 736720.87 | E98: 176205.28 | F98: 104025.47 | G98: 5127240.31 | H98: 463588.62 | I98: 395596.98 | J98: 566300.48 | K98: 406888.37 | L98: 84837.23 | M98: 1243066.56 | N98: 352190.98 | O98: 321848.77 | P98: 1387859.79 | Q98: 78233.55 | R98: 418492.85 | S98: 47334.92 | T98: 884236.23 | U98: 278570.54 | V98: 50503.33 | W98: 0 | X98: 163235.34 | Y98: 362384.77 | Z98: 1102193.19 | AA98: 307575.16 | AB98: 1127307.45 | AC98: 2867575.41 | AD98: 651417.92 | AE98: 176124.9 | AF98: 439237.57 | AG98: 1556679.1 | AH98: 447052.87 | AI98: 980245.9 | AJ98: 346111.07 | AK98: 179147.72 | AL98: 707527.76 | AM98: 1050236.54 | AN98: 411838.61 | AO98: 768407.41 | AP98: 442770.44 | AQ98: 231751.51 | AR98: 527635.63 | AS98: 567488.81 | AT98: 495377.92 | AU98: 32126861.28
A99: u.DE 91 A 180 DÍAS | B99: 283493.99 | C99: 1850766.82 | D99: 806114.67 | E99: 187768.29 | F99: 76344.51 | G99: 3272184.42 | H99: 511162.55 | I99: 383149.75 | J99: 969296.14 | K99: 519766.75 | L99: 162029.38 | M99: 1170168.47 | N99: 346791.09 | O99: 268207.49 | P99: 549731.78 | Q99: 79909 | R99: 424715.87 | S99: 75181.72 | T99: 995166.14 | U99: 273411.99 | V99: 43001.5 | W99: 0 | X99: 204419.39 | Y99: 390398.76 | Z99: 1211229.7 | AA99: 322823.96 | AB99: 905244.19 | AC99: 2800072.17 | AD99: 651853.23 | AE99: 123345.82 | AF99: 427744.35 | AG99: 1139931.69 | AH99: 499975.29 | AI99: 1037747.43 | AJ99: 332445.19 | AK99: 114590.41 | AL99: 661638.58 | AM99: 499910.67 | AN99: 278441.15 | AO99: 846497.04 | AP99: 492061.55 | AQ99: 139704.91 | AR99: 1021201.24 | AS99: 1400067.2 | AT99: 503080.14 | AU99: 29252786.38
A100: u.DE 181 A 360 DÍAS | B100: 25820.78 | C100: 1813603.44 | D100: 1181145.08 | E100: 276811.64 | F100: 369194.18 | G100: 1600215.44 | H100: 724899.47 | I100: 526865.64 | J100: 829431.01 | K100: 769407.35 | L100: 76687.13 | M100: 1492117.61 | N100: 453675.26 | O100: 397308.56 | P100: 154138.23 | Q100: 100829.97 | R100: 538714.1 | S100: 62431.04 | T100: 1397627.36 | U100: 442848.89 | V100: 53491.54 | W100: 0 | X100: 265239.97 | Y100: 675481.48 | Z100: 1991989.98 | AA100: 458253.19 | AB100: 1286983.33 | AC100: 5564566.73 | AD100: 873988.3 | AE100: 180208.33 | AF100: 524147.29 | AG100: 1045015.32 | AH100: 803223.34 | AI100: 1403879.75 | AJ100: 384684.5 | AK100: 120651.7 | AL100: 410655.83 | AM100: 637750.25 | AN100: 262412.51 | AO100: 1300569.94 | AP100: 504746.68 | AQ100: 113802.7 | AR100: 1079574.68 | AS100: 1989195.69 | AT100: 394721.98 | AU100: 35559007.19
A101: u.MÁS DE 360 DÍAS | B101: 13967.05 | C101: 1756628.34 | D101: 2091075.63 | E101: 403427.61 | F101: 117942.9 | G101: 165086.91 | H101: 1085658.06 | I101: 752958.9 | J101: 1029416.84 | K101: 153023.34 | L101: 746808.37 | M101: 4509091.17 | N101: 861934.8 | O101: 754550.65 | P101: 282375.85 | Q101: 135686.9 | R101: 963217.33 | S101: 49079.48 | T101: 858460.51 | U101: 741404.76 | V101: 56099.28 | W101: 0 | X101: 388655.83 | Y101: 860426.87 | Z101: 3740328.28 | AA101: 751864.4 | AB101: 1524691.19 | AC101: 5924687.63 | AD101: 1348306.98 | AE101: 206497.61 | AF101: 382795.05 | AG101: 3268895.27 | AH101: 2175334.59 | AI101: 1743960.18 | AJ101: 307052.92 | AK101: 34974.83 | AL101: 83211.48 | AM101: 1036298.13 | AN101: 2584170.81 | AO101: 2769248.74 | AP101: 687476.42 | AQ101: 334728.87 | AR101: 879986.84 | AS101: 2629245.8 | AT101: 1217265.84 | AU101: 52407999.24
A102: CARTERA DE VIVIENDA DE INTERÉS PUBLICO VENCIDA | B102: 0 | C102: 0 | D102: 0 | E102: 0 | F102: 0 | G102: 0 | H102: 0 | I102: 0 | J102: 0 | K102: 0 | L102: 0 | M102: 0 | N102: 0 | O102: 0 | P102: 0 | Q102: 0 | R102: 0 | S102: 0 | T102: 0 | U102: 0 | V102: 0 | W102: 0 | X102: 0 | Y102: 0 | Z102: 0 | AA102: 0 | AB102: 0 | AC102: 0 | AD102: 0 | AE102: 0 | AF102: 0 | AG102: 0 | AH102: 0 | AI102: 0 | AJ102: 0 | AK102: 0 | AL102: 0 | AM102: 991.58 | AN102: 0 | AO102: 0 | AP102: 0 | AQ102: 0 | AR102: 0 | AS102: 0 | AT102: 0 | AU102: 991.58
A103: y.De 1 a 30 días | B103: 0 | C103: 0 | D103: 0 | E103: 0 | F103: 0 | G103: 0 | H103: 0 | I103: 0 | J103: 0 | K103: 0 | L103: 0 | M103: 0 | N103: 0 | O103: 0 | P103: 0 | Q103: 0 | R103: 0 | S103: 0 | T103: 0 | U103: 0 | V103: 0 | W103: 0 | X103: 0 | Y103: 0 | Z103: 0 | AA103: 0 | AB103: 0 | AC103: 0 | AD103: 0 | AE103: 0 | AF103: 0 | AG103: 0 | AH103: 0 | AI103: 0 | AJ103: 0 | AK103: 0 | AL103: 0 | AM103: 0 | AN103: 0 | AO103: 0 | AP103: 0 | AQ103: 0 | AR103: 0 | AS103: 0 | AT103: 0 | AU103: 0
A104: y.De 31 a 90 días | B104: 0 | C104: 0 | D104: 0 | E104: 0 | F104: 0 | G104: 0 | H104: 0 | I104: 0 | J104: 0 | K104: 0 | L104: 0 | M104: 0 | N104: 0 | O104: 0 | P104: 0 | Q104: 0 | R104: 0 | S104: 0 | T104: 0 | U104: 0 | V104: 0 | W104: 0 | X104: 0 | Y104: 0 | Z104: 0 | AA104: 0 | AB104: 0 | AC104: 0 | AD104: 0 | AE104: 0 | AF104: 0 | AG104: 0 | AH104: 0 | AI104: 0 | AJ104: 0 | AK104: 0 | AL104: 0 | AM104: 0 | AN104: 0 | AO104: 0 | AP104: 0 | AQ104: 0 | AR104: 0 | AS104: 0 | AT104: 0 | AU104: 0
A105: y.De 91 a 360 DÍAS | B105: 0 | C105: 0 | D105: 0 | E105: 0 | F105: 0 | G105: 0 | H105: 0 | I105: 0 | J105: 0 | K105: 0 | L105: 0 | M105: 0 | N105: 0 | O105: 0 | P105: 0 | Q105: 0 | R105: 0 | S105: 0 | T105: 0 | U105: 0 | V105: 0 | W105: 0 | X105: 0 | Y105: 0 | Z105: 0 | AA105: 0 | AB105: 0 | AC105: 0 | AD105: 0 | AE105: 0 | AF105: 0 | AG105: 0 | AH105: 0 | AI105: 0 | AJ105: 0 | AK105: 0 | AL105: 0 | AM105: 991.58 | AN105: 0 | AO105: 0 | AP105: 0 | AQ105: 0 | AR105: 0 | AS105: 0 | AT105: 0 | AU105: 991.58
A106: y.MÁS DE 360 DÍAS | B106: 0 | C106: 0 | D106: 0 | E106: 0 | F106: 0 | G106: 0 | H106: 0 | I106: 0 | J106: 0 | K106: 0 | L106: 0 | M106: 0 | N106: 0 | O106: 0 | P106: 0 | Q106: 0 | R106: 0 | S106: 0 | T106: 0 | U106: 0 | V106: 0 | W106: 0 | X106: 0 | Y106: 0 | Z106: 0 | AA106: 0 | AB106: 0 | AC106: 0 | AD106: 0 | AE106: 0 | AF106: 0 | AG106: 0 | AH106: 0 | AI106: 0 | AJ106: 0 | AK106: 0 | AL106: 0 | AM106: 0 | AN106: 0 | AO106: 0 | AP106: 0 | AQ106: 0 | AR106: 0 | AS106: 0 | AT106: 0 | AU106: 0
A107: CARTERA DE CRÉDITO EDUCATIVO VENCIDA | B107: 0 | C107: 0 | D107: 0 | E107: 0 | F107: 0 | G107: 0 | H107: 0 | I107: 0 | J107: 0 | K107: 0 | L107: 0 | M107: 0 | N107: 0 | O107: 0 | P107: 0 | Q107: 0 | R107: 0 | S107: 0 | T107: 0 | U107: 0 | V107: 0 | W107: 0 | X107: 0 | Y107: 0 | Z107: 0 | AA107: 0 | AB107: 0 | AC107: 0 | AD107: 0 | AE107: 2 | AF107: 0 | AG107: 0 | AH107: 0 | AI107: 0 | AJ107: 0 | AK107: 0 | AL107: 0 | AM107: 0 | AN107: 0 | AO107: 0 | AP107: 0 | AQ107: 0 | AR107: 0 | AS107: 0 | AT107: 0 | AU107: 2
A108: z.DE 1 A 30 DÍAS | B108: 0 | C108: 0 | D108: 0 | E108: 0 | F108: 0 | G108: 0 | H108: 0 | I108: 0 | J108: 0 | K108: 0 | L108: 0 | M108: 0 | N108: 0 | O108: 0 | P108: 0 | Q108: 0 | R108: 0 | S108: 0 | T108: 0 | U108: 0 | V108: 0 | W108: 0 | X108: 0 | Y108: 0 | Z108: 0 | AA108: 0 | AB108: 0 | AC108: 0 | AD108: 0 | AE108: 0 | AF108: 0 | AG108: 0 | AH108: 0 | AI108: 0 | AJ108: 0 | AK108: 0 | AL108: 0 | AM108: 0 | AN108: 0 | AO108: 0 | AP108: 0 | AQ108: 0 | AR108: 0 | AS108: 0 | AT108: 0 | AU108: 0
A109: z.DE 31 A 90 DÍAS | B109: 0 | C109: 0 | D109: 0 | E109: 0 | F109: 0 | G109: 0 | H109: 0 | I109: 0 | J109: 0 | K109: 0 | L109: 0 | M109: 0 | N109: 0 | O109: 0 | P109: 0 | Q109: 0 | R109: 0 | S109: 0 | T109: 0 | U109: 0 | V109: 0 | W109: 0 | X109: 0 | Y109: 0 | Z109: 0 | AA109: 0 | AB109: 0 | AC109: 0 | AD109: 0 | AE109: 0 | AF109: 0 | AG109: 0 | AH109: 0 | AI109: 0 | AJ109: 0 | AK109: 0 | AL109: 0 | AM109: 0 | AN109: 0 | AO109: 0 | AP109: 0 | AQ109: 0 | AR109: 0 | AS109: 0 | AT109: 0 | AU109: 0
A110: z.DE 91 A 180 DÍAS | B110: 0 | C110: 0 | D110: 0 | E110: 0 | F110: 0 | G110: 0 | H110: 0 | I110: 0 | J110: 0 | K110: 0 | L110: 0 | M110: 0 | N110: 0 | O110: 0 | P110: 0 | Q110: 0 | R110: 0 | S110: 0 | T110: 0 | U110: 0 | V110: 0 | W110: 0 | X110: 0 | Y110: 0 | Z110: 0 | AA110: 0 | AB110: 0 | AC110: 0 | AD110: 0 | AE110: 0 | AF110: 0 | AG110: 0 | AH110: 0 | AI110: 0 | AJ110: 0 | AK110: 0 | AL110: 0 | AM110: 0 | AN110: 0 | AO110: 0 | AP110: 0 | AQ110: 0 | AR110: 0 | AS110: 0 | AT110: 0 | AU110: 0
A111: z.DE 181 A 360 DÍAS | B111: 0 | C111: 0 | D111: 0 | E111: 0 | F111: 0 | G111: 0 | H111: 0 | I111: 0 | J111: 0 | K111: 0 | L111: 0 | M111: 0 | N111: 0 | O111: 0 | P111: 0 | Q111: 0 | R111: 0 | S111: 0 | T111: 0 | U111: 0 | V111: 0 | W111: 0 | X111: 0 | Y111: 0 | Z111: 0 | AA111: 0 | AB111: 0 | AC111: 0 | AD111: 0 | AE111: 0 | AF111: 0 | AG111: 0 | AH111: 0 | AI111: 0 | AJ111: 0 | AK111: 0 | AL111: 0 | AM111: 0 | AN111: 0 | AO111: 0 | AP111: 0 | AQ111: 0 | AR111: 0 | AS111: 0 | AT111: 0 | AU111: 0
A112: z.MÁS DE 360 DÍAS | B112: 0 | C112: 0 | D112: 0 | E112: 0 | F112: 0 | G112: 0 | H112: 0 | I112: 0 | J112: 0 | K112: 0 | L112: 0 | M112: 0 | N112: 0 | O112: 0 | P112: 0 | Q112: 0 | R112: 0 | S112: 0 | T112: 0 | U112: 0 | V112: 0 | W112: 0 | X112: 0 | Y112: 0 | Z112: 0 | AA112: 0 | AB112: 0 | AC112: 0 | AD112: 0 | AE112: 2 | AF112: 0 | AG112: 0 | AH112: 0 | AI112: 0 | AJ112: 0 | AK112: 0 | AL112: 0 | AM112: 0 | AN112: 0 | AO112: 0 | AP112: 0 | AQ112: 0 | AR112: 0 | AS112: 0 | AT112: 0 | AU112: 2
A113: TOTAL CARTERA IMPRODUCTIVA | B113: 12039802.12 | C113: 32851775.47 | D113: 59550100.23 | E113: 5623373.17 | F113: 6287255.62 | G113: 71606028.93 | H113: 15068788.06 | I113: 30990096.01 | J113: 15850864.35 | K113: 6913509 | L113: 12081750.2 | M113: 27491420.76 | N113: 6895519.4 | O113: 8102321.51 | P113: 78837392.21 | Q113: 11399491.75 | R113: 27992499.76 | S113: 4033481.35 | T113: 28228508.25 | U113: 7481038.97 | V113: 4262126.96 | W113: 2927392.18 | X113: 11182387.17 | Y113: 10990044.46 | Z113: 21428033.04 | AA113: 5720285.38 | AB113: 65790284.78 | AC113: 153243852.8 | AD113: 16211957.28 | AE113: 6212824.22 | AF113: 15841094.84 | AG113: 40864530.47 | AH113: 11862508.28 | AI113: 34946159.69 | AJ113: 14809110.16 | AK113: 4479645.69 | AL113: 12571412.37 | AM113: 128662319.3 | AN113: 14771528.74 | AO113: 19207399.88 | AP113: 12205388.54 | AQ113: 8620739.53 | AR113: 19834342.69 | AS113: 23144390.5 | AT113: 7583085.13 | AU113: 1136697861
A114: TOTAL CARTERA BRUTA | B114: 95803716.74 | C114: 325464008.8 | D114: 804558925.7 | E114: 93620256.69 | F114: 97237742.3 | G114: 974870501.7 | H114: 246235140.3 | I114: 422037220.6 | J114: 381151689.3 | K114: 92425358.43 | L114: 144367220.2 | M114: 359243859.6 | N114: 103894358 | O114: 111708643.7 | P114: 806289175.1 | Q114: 223833846.9 | R114: 346417391.9 | S114: 77818758.68 | T114: 366656845.4 | U114: 211708058.3 | V114: 73785966.34 | W114: 196113980.1 | X114: 189206461.2 | Y114: 157397180.6 | Z114: 447166551.2 | AA114: 128935242.6 | AB114: 1227901449 | AC114: 2211166594 | AD114: 247848911.3 | AE114: 99757512.35 | AF114: 78387156.38 | AG114: 466598922.5 | AH114: 121585620.1 | AI114: 491356968.2 | AJ114: 242257903.2 | AK114: 107744784.5 | AL114: 192969704.7 | AM114: 1237028411 | AN114: 378069949.8 | AO114: 448138663 | AP114: 190298812.7 | AQ114: 151689800.5 | AR114: 263255695.3 | AS114: 281369423.3 | AT114: 92321597.06 | AU114: 1.600769598e+10
A115: PROVISIONES | B115: -8362955.87 | C115: -33862596.51 | D115: -55365967.02 | E115: -6773272.33 | F115: -4538030.41 | G115: -80045357.48 | H115: -18268517.36 | I115: -29214451.26 | J115: -15962757.2 | K115: -7560076.1 | L115: -3556521.47 | M115: -21645953.28 | N115: -7780272 | O115: -8103892.61 | P115: -51697104.65 | Q115: -5279800.12 | R115: -24616494.65 | S115: -5055801.62 | T115: -35984231.51 | U115: -9843820.96 | V115: -4423572.29 | W115: -7923544.02 | X115: -12774507.75 | Y115: -13805506.35 | Z115: -23739891.7 | AA115: -5776521.19 | AB115: -115131589.7 | AC115: -122563790.1 | AD115: -13425285.39 | AE115: -3628474.37 | AF115: -12355884.93 | AG115: -37803420.79 | AH115: -9645409.73 | AI115: -43005011.64 | AJ115: -14102149.73 | AK115: -4440319.97 | AL115: -10812008.9 | AM115: -81424739.66 | AN115: -19527124.72 | AO115: -48982049.26 | AP115: -17581033.89 | AQ115: -4862337.94 | AR115: -21565290.16 | AS115: -30623001.76 | AT115: -7703312.3 | AU115: -1121143653
A116: TOTAL CARTERA NETA | B116: 87440760.87 | C116: 291601412.3 | D116: 749192958.6 | E116: 86846984.36 | F116: 92699711.89 | G116: 894825144.2 | H116: 227966622.9 | I116: 392822769.4 | J116: 365188932.1 | K116: 84865282.33 | L116: 140810698.7 | M116: 337597906.3 | N116: 96114085.98 | O116: 103604751.1 | P116: 754592070.5 | Q116: 218554046.8 | R116: 321800897.3 | S116: 72762957.06 | T116: 330672613.9 | U116: 201864237.4 | V116: 69362394.05 | W116: 188190436 | X116: 176431953.5 | Y116: 143591674.2 | Z116: 423426659.5 | AA116: 123158721.4 | AB116: 1112769859 | AC116: 2088602804 | AD116: 234423625.9 | AE116: 96129037.98 | AF116: 66031271.45 | AG116: 428795501.7 | AH116: 111940210.4 | AI116: 448351956.5 | AJ116: 228155753.5 | AK116: 103304464.5 | AL116: 182157695.8 | AM116: 1155603672 | AN116: 358542825.1 | AO116: 399156613.8 | AP116: 172717778.8 | AQ116: 146827462.6 | AR116: 241690405.1 | AS116: 250746421.5 | AT116: 84618284.76 | AU116: 1.488655233e+10

Sheet RANKING
C1: Menú Principal
B5: RANKING
B6: SECTOR FINANCIERO POPULAR Y SOLIDARIO SEGMENTO 1
B7: ='ESTADO FINANCIERO'!A6 -> PERIODO DEL 1 ENERO DEL 2023 AL 31 DE OCTUBRE DEL 2023
B8: (Dólares) | D8: *Seleccionar una solo fecha | G8: *Seleccionar una solo cuenta
B10: ENTIDAD | C10: DÓLARES | D10: PORCENTAJE
B11: Etiquetas de fila | C11: Suma de VALOR | D11: Suma de VALOR2
B12: JUVENTUD ECUATORIANA PROGRESISTA LIMITADA | C12: 3227792984 | D12: 0.1517832573
B13: JARDIN AZUAYO LIMITADA | C13: 1555847799 | D13: 0.07316195555
B14: POLICIA NACIONAL LIMITADA | C14: 1527843622 | D14: 0.07184509126
B15: COOPROGRESO LIMITADA | C15: 1200238012 | D15: 0.0564398138
B16: ALIANZA DEL VALLE LIMITADA | C16: 1194707546 | D16: 0.05617974999
B17: 29 DE OCTUBRE LTDA | C17: 1012572597 | D17: 0.0476150632
B18: OSCUS LIMITADA | C18: 698354589.6 | D18: 0.03283932237
B19: SAN FRANCISCO LTDA | C19: 643427289.2 | D19: 0.03025642916
B20: ANDALUCIA LIMITADA | C20: 595215764.4 | D20: 0.02798933759
B21: MUSHUC RUNA LTDA | C21: 574529328.4 | D21: 0.0270165817
B22: DE LA PEQUEÑA EMPRESA DE COTOPAXI LIMITADA | C22: 527571376 | D22: 0.02480843793
B23: FERNANDO DAQUILEMA LIMITADA | C23: 525658428 | D23: 0.02471848375
B24: ATUNTAQUI LIMITADA | C24: 492433293.5 | D24: 0.02315610997
B25: RIOBAMBA LTDA | C25: 488923175.7 | D25: 0.02299105071
B26: DE LA PEQUEÑA EMPRESA BIBLIAN LIMITADA | C26: 460895022.6 | D26: 0.021673059
B27: CHIBULEO LIMITADA | C27: 440407466.7 | D27: 0.02070965522
B28: 23 DE JULIO LIMITADA | C28: 422894724.4 | D28: 0.01988613863
B29: VICENTINA MANUEL ESTEBAN GODOY ORTEGA LIMITADA | C29: 410078955.1 | D29: 0.0192834918
B30: TULCAN LIMITADA | C30: 384356340.8 | D30: 0.01807391541
B31: PABLO MUÑOZ VEGA LIMITADA | C31: 329077527.9 | D31: 0.01547449274
B32: AMBATO LTDA | C32: 328893791.8 | D32: 0.01546585276
B33: EL SAGRARIO LTDA | C33: 313228998.8 | D33: 0.01472923386
B34: KULLKI WASI LTDA | C34: 310730687.5 | D34: 0.01461175364
B35: CREA LIMITADA | C35: 280075391.2 | D35: 0.01317022355
B36: DE LA PEQUEÑA EMPRESA DE PASTAZA LIMITADA | C36: 271508965.7 | D36: 0.01276739723
B37: PILAHUIN TIO LIMITADA | C37: 261053639.8 | D37: 0.01227574754
B38: SAN JOSE LIMITADA | C38: 259445650.7 | D38: 0.0122001337
B39: DE LOS SERVIDORES PUBLICOS DEL MINISTERIO DE EDUCACION Y CULTURA | C39: 248059225.1 | D39: 0.01166470011
B40: ERCO LIMITADA | C40: 211093753.7 | D40: 0.009926441283
B41: CAMARA DE COMERCIO DE AMBATO LTDA | C41: 210954293.1 | D41: 0.009919883308
B42: SANTA ROSA LIMITADA | C42: 191901427.7 | D42: 0.0090239442
B43: ONCE DE JUNIO LTDA | C43: 155794963.8 | D43: 0.007326079209
B44: INDIGENA SAC LTDA | C44: 150704531.5 | D44: 0.007086707477
B45: PADRE JULIAN LORENTE LTDA | C45: 133585208.1 | D45: 0.006281690962
B46: COMERCIO LTDA | C46: 132506823.5 | D46: 0.006230981162
B47: 9 DE OCTUBRE LTDA | C47: 129457031 | D47: 0.006087568175
B48: LA MERCED LIMITADA | C48: 125814622.3 | D48: 0.005916288088
B49: ALFONSO JARAMILLO LEON CAJA | C49: 121128767.2 | D49: 0.005695941134
B50: CHONE LTDA | C50: 119940074.6 | D50: 0.005640044232
B51: 15 DE ABRIL LTDA | C51: 116108310.7 | D51: 0.005459859937
B52: VIRGEN DEL CISNE | C52: 112326357.3 | D52: 0.005282017924
B53: CALCETA LTDA | C53: 104904525.2 | D53: 0.004933014791
B54: DE LA PEQUEÑA EMPRESA CACPE LOJA LTDA | C54: 92872567.05 | D54: 0.004367225782
B55: DE LA PEQUEÑA EMPRESA GUALAQUIZA | C55: 91111933.03 | D55: 0.00428443399
B56: LUZ DEL VALLE | C56: 79776513.34 | D56: 0.0037513989
B57: Total general | C57: 2.12658039e+10 | D57: 1

Sheet INDICADORES FINANCIEROS
B1: Menú Principal
B4: INDICADORES FINANCIEROS
B5: SECTOR FINANCIERO POPULAR Y SOLIDARIO SEGMENTO 1
B6: ='ESTADO FINANCIERO'!A6 -> PERIODO DEL 1 ENERO DEL 2023 AL 31 DE OCTUBRE DEL 2023
B7: (en porcentajes)
C9: 2023-01-31 | D9: 2023-02-28 | E9: 2023-03-31 | F9: 2023-04-30 | G9: 2023-05-31 | H9: 2023-06-30 | I9: 2023-07-31 | J9: 2023-08-31 | K9: 2023-09-30 | L9: 2023-10-31
C10: 23 DE JULIO LIMITADA | D10: 23 DE JULIO LIMITADA | E10: 23 DE JULIO LIMITADA | F10: 23 DE JULIO LIMITADA | G10: 23 DE JULIO LIMITADA | H10: 23 DE JULIO LIMITADA | I10: 23 DE JULIO LIMITADA | J10: 23 DE JULIO LIMITADA | K10: 23 DE JULIO LIMITADA | L10: 23 DE JULIO LIMITADA
B11: SUFICIENCIA PATRIMONIAL
B12: ( PATRIMONIO + RESULTADOS ) / ACTIVOS INMOVILIZADOS | C12: 2.951052196 | D12: 2.823755886 | E12: 3.137732823 | F12: 2.997388241 | G12: 2.999142419 | H12: 2.81275691 | I12: 2.585652601 | J12: 2.694217988 | K12: 2.427694522 | L12: 2.175093163
B13: ESTRUCTURA Y CALIDAD DE ACTIVOS
B14: ACTIVOS IMPRODUCTIVOS NETOS / TOTAL ACTIVOS | C14: 0.06967069519 | D14: 0.0698030732 | E14: 0.07006391968 | F14: 0.07325849245 | G14: 0.07381628163 | H14: 0.07792895396 | I14: 0.08604958506 | J14: 0.08445980164 | K14: 0.09332965144 | L14: 0.1031503336
B15: ACTIVOS PRODUCTIVOS / TOTAL ACTIVOS | C15: 0.9303293048 | D15: 0.9301969268 | E15: 0.9299360803 | F15: 0.9267415076 | G15: 0.9261837184 | H15: 0.922071046 | I15: 0.9139504149 | J15: 0.9155401984 | K15: 0.9066703486 | L15: 0.8968496664
B16: ACTIVOS PRODUCTIVOS / PASIVOS CON COSTO | C16: 1.065037742 | D16: 1.067799589 | E16: 1.06964826 | F16: 1.066485443 | G16: 1.068421619 | H16: 1.066085055 | I16: 1.062990488 | J16: 1.063006137 | K16: 1.055343319 | L16: 1.04776594
B17: INDICES DE MOROSIDAD
B18: MOROSIDAD DE LA CARTERA DE CREDITO PRODUCTIVO | C18: 0.107818166 | D18: 0.09743257637 | E18: 0.07827705534 | F18: 0.1715482668 | G18: 0.1891990761 | H18: 0.1907483612 | I18: 0.1017008446 | J18: 0.09496072222 | K18: 0.1408899569 | L18: 0.1367385778
B19: MOROSIDAD DE LA CARTERA DE CONSUMO | C19: 0.05897639858 | D19: 0.06050682412 | E19: 0.05551758567 | F19: 0.05761114606 | G19: 0.0579645511 | H19: 0.06256598491 | I19: 0.06468015912 | J19: 0.06778110644 | K19: 0.07471681321 | L19: 0.08132262104
B20: MOROSIDAD DE LA CARTERA DE CREDITO INMOBILIARIO | C20: 0.06179138691 | D20: 0.06659278673 | E20: 0.06113117223 | F20: 0.07816860767 | G20: 0.0614001162 | H20: 0.06672744634 | I20: 0.06614957166 | J20: 0.06223949522 | K20: 0.06212198099 | L20: 0.07346370425
B21: MOROSIDAD DE LA CARTERA DE MICROCREDITO | C21: 0.0938118505 | D21: 0.09878771347 | E21: 0.0888622546 | F21: 0.09605334927 | G21: 0.09491700269 | H21: 0.1001758799 | I21: 0.1061491235 | J21: 0.1089012105 | K21: 0.1206495478 | L21: 0.1290242257
B22: MOROSIDAD DE LA CARTERA DE VIVIENDA DE INTERES SOCIAL Y PUBLICO | C22: 0 | D22: 0 | E22: 0 | F22: 0 | G22: 0 | H22: 0 | I22: 0 | J22: 0 | K22: 0 | L22: 0
B23: MOROSIDAD DE LA CARTERA DE CREDITO EDUCATIVO | C23: 0 | D23: 0 | E23: 0 | F23: 0 | G23: 0 | H23: 0 | I23: 0 | J23: 0 | K23: 0 | L23: 0
B24: MOROSIDAD DE LA CARTERA TOTAL | C24: 0.07274270979 | D24: 0.07570590966 | E24: 0.06885293147 | F24: 0.07371609752 | G24: 0.07324541139 | H24: 0.07828478805 | I24: 0.08162689403 | J24: 0.08442728033 | K24: 0.0934663701 | L24: 0.1009382745 | M24: =+GETPIVOTDATA("MOROSIDAD DE LA CARTERA TOTAL",$B$8,"NOM_RAZON_SOCIAL","23 DE JULIO LIMITADA","FEC_CORTE",DATE(2023,10,31))-GETPIVOTDATA("MOROSIDAD DE LA CARTERA TOTAL",$B$8,"NOM_RAZON_SOCIAL","23 DE JULIO LIMITADA","FEC_CORTE",DATE(2023,9,30)) -> 0.007471904422
B25: COBERTURA DE PROVISIONES PARA CARTERA IMPRODUCTIVA
B26: COBERTURA DE LA CARTERA DE CREDITO PRODUCTIVO | C26: 1.459310944 | D26: 1.649912304 | E26: 2.032368515 | F26: 0.9313675841 | G26: 0.5121537708 | H26: 0.507112288 | I26: 0.9278238837 | J26: 0.9939348013 | K26: 0.6923413998 | L26: 0.7200771371
B27: COBERTURA DE LA CARTERA DE CREDITO CONSUMO | C27: 1.304265364 | D27: 1.252920286 | E27: 1.345099135 | F27: 1.320715829 | G27: 1.317562526 | H27: 1.220515751 | I27: 1.159326593 | J27: 1.151628848 | K27: 1.072850366 | L27: 0.9938614381
B28: COBERTURA DE LA CARTERA DE CREDITO INMOBILIARIO | C28: 2.108196118 | D28: 1.931892123 | E28: 2.23103774 | F28: 1.773895639 | G28: 2.27951052 | H28: 2.113969074 | I28: 2.124754494 | J28: 2.292746236 | K28: 2.342427745 | L28: 2.038626125
B29: COBERTURA DE LA CARTERA DE MICROCREDITO | C29: 1.119198266 | D29: 1.068464026 | E29: 1.152754454 | F29: 1.083593466 | G29: 1.087709203 | H29: 1.0372629 | I29: 0.9896458794 | J29: 1.014678214 | K29: 0.9405371978 | L29: 0.9032767503
B30: COBERTURA DE LA CARTERA DE VIVIENDA DE IINTERES PUBLICO | C30: 0 | D30: 0 | E30: 0 | F30: 0 | G30: 0 | H30: 0 | I30: 0 | J30: 0 | K30: 0 | L30: 0
B31: COBERTURA DE LA CARTERA DE CREDITO EDUCATIVO | C31: 0 | D31: 0 | E31: 0 | F31: 0 | G31: 0 | H31: 0 | I31: 0 | J31: 0 | K31: 0 | L31: 0
B32: COBERTURA DE LA CARTERA PROBLEMÁTICA | C32: 1.327840492 | D32: 1.269443544 | E32: 1.369923534 | F32: 1.299862754 | G32: 1.30245612 | H32: 1.222672471 | I32: 1.168998701 | J32: 1.179346392 | K32: 1.093208361 | L32: 1.030769145 | M32: =+L32-K32 -> -0.0624392156
B33: EFICIENCIA MICROECONOMICA
B34: GASTOS DE OPERACION ESTIMADOS / TOTAL ACTIVO PROMEDIO | C34: 0.03980372032 | D34: 0.04260505766 | E34: 0.04328187602 | F34: 0.04423585182 | G34: 0.04394096716 | H34: 0.04311827033 | I34: 0.04367039913 | J34: 0.04311987978 | K34: 0.04284541448 | L34: 0.04303098018
B35: GASTOS DE OPERACION / MARGEN FINANCIERO | C35: 1.235438678 | D35: 1.222029516 | E35: 0.9383025586 | F35: 0.9141394724 | G35: 0.8821741557 | H35: 0.8791554521 | I35: 0.9002966835 | J35: 0.9022280521 | K35: 0.920838247 | L35: 0.939895321
B36: GASTOS DE PERSONAL ESTIMADOS / ACTIVO PROMEDIO | C36: 0.01841571925 | D36: 0.018487012 | E36: 0.01791540969 | F36: 0.01856035219 | G36: 0.01873415897 | H36: 0.01878128748 | I36: 0.01903342603 | J36: 0.01877182912 | K36: 0.01848716813 | L36: 0.01853505814
B37: RENTABILIDAD
B38: RESULTADOS DEL EJERCICIO / PATRIMONIO PROMEDIO | C38: 0.08759744455 | D38: 0.07514586759 | E38: 0.07068637891 | F38: 0.07286715848 | G38: 0.0793913504 | H38: 0.07808203467 | I38: 0.07013339778 | J38: 0.06756853344 | K38: 0.06312820325 | L38: 0.05923848417
B39: RESULTADOS DEL EJERCICIO / ACTIVO PROMEDIO | C39: 0.009387492806 | D39: 0.008047254822 | E39: 0.007566808374 | F39: 0.007804709434 | G39: 0.008513366571 | H39: 0.00839266824 | I39: 0.007575177293 | J39: 0.0073266687 | K39: 0.006870477847 | L39: 0.006476529788
B40: INTERMEDIACION FINANCIERA
B41: CARTERA BRUTA / (DEPOSITOS A LA VISTA + DEPOSITOS A PLAZO) | C41: 1.024478251 | D41: 1.015955896 | E41: 1.009632192 | F41: 1.00676881 | G41: 1.013557905 | H41: 1.026495324 | I41: 1.044819801 | J41: 1.033471803 | K41: 1.028322413 | L41: 1.048468297
B42: EFICIENCIA FINANCIERA
B43: MARGEN DE INTERMEDIACIÓN ESTIMADO / PATRIMONIO PROMEDIO | C43: -0.07078188155 | D43: -0.07228488967 | E43: 0.0265860201 | F43: 0.03879096471 | G43: 0.05473028339 | H43: 0.05514089161 | I43: 0.04477578347 | J43: 0.04309366407 | K43: 0.0338433143 | L43: 0.02516932701
B44: MARGEN DE INTERMEDIACIÓN ESTIMADO / ACTIVO PROMEDIO | C44: -0.00758543137 | D44: -0.007740877119 | E44: 0.002845970081 | F44: 0.004154851301 | G44: 0.005868888269 | H44: 0.005926833383 | I44: 0.004836276424 | J44: 0.004672781599 | K44: 0.003683294141 | L44: 0.002751756706
B45: RENDIMIENTO DE LA CARTERA
B46: RENDIMIENTO DE LA CARTERA DE CREDITO PRODUCTIVO POR VENCER | C46: 0.1005695981 | D46: 0.09261781529 | E46: 0.09882080639 | F46: 0.09615150788 | G46: 0.09893275525 | H46: 0.1018931885 | I46: 0.103754033 | J46: 0.1035177965 | K46: 0.1019132749 | L46: 0.1018421514
B47: RENDIMIENTO DE LA CARTERA DE CREDITO CONSUMO | C47: 0.1392963887 | D47: 0.1377880236 | E47: 0.1431357932 | F47: 0.1448414344 | G47: 0.1467955722 | H47: 0.1471827337 | I47: 0.148245528 | J47: 0.1492426763 | K47: 0.1492499223 | L47: 0.1496997337
B48: RENDIMIENTO DE LA CARTERA DE CREDITO INMOBILIARIO POR VENCER | C48: 0.09106094971 | D48: 0.08920786027 | E48: 0.09049312174 | F48: 0.08832833736 | G48: 0.09123746724 | H48: 0.09028037232 | I48: 0.09039291936 | J48: 0.09071859641 | K48: 0.09048615998 | L48: 0.09006666149
B49: RENDIMIENTO DE LA CARTERA DE MICROCREDITO POR VENCER | C49: 0.1566403913 | D49: 0.1543866902 | E49: 0.1616054328 | F49: 0.1637443797 | G49: 0.1670902579 | H49: 0.1677272486 | I49: 0.1691988929 | J49: 0.17085772 | K49: 0.1707170233 | L49: 0.171422403
B50: RENDIMIENTO DE LA CARTERA DE VIVIENDA DE IINTERES PUBLICO POR VENCER | C50: 0 | D50: 0 | E50: 0 | F50: 0 | G50: 0 | H50: 0 | I50: 0 | J50: 0 | K50: 0 | L50: 0
B51: RENDIMIENTO DE LA CARTERA DE CREDITO EDUCATIVO POR VENCER | C51: 0 | D51: 0 | E51: 0 | F51: 0 | G51: 0 | H51: 0 | I51: 0 | J51: 0 | K51: 0 | L51: 0
B52: CARTERAS DE CRÉDITOS REFINANCIADAS | C52: 0.09908709837 | D52: 0.09826129167 | E52: 0.1001284701 | F52: 0.1029573476 | G52: 0.1088718274 | H52: 0.1108833104 | I52: 0.1124252172 | J52: 0.113579567 | K52: 0.1140649425 | L52: 0.1148517396
B53: CARTERAS DE CRÉDITOS REESTRUCTURADAS | C53: 0.1178798798 | D53: 0.1266992383 | E53: 0.1404213004 | F53: 0.1605130626 | G53: 0.1611824652 | H53: 0.1617060582 | I53: 0.1674975682 | J53: 0.1726500169 | K53: 0.1743271546 | L53: 0.1727754913
B54: CARTERA POR VENCER TOTAL | C54: 0.1489229518 | D54: 0.1478962153 | E54: 0.1543577768 | F54: 0.1561689044 | G54: 0.158757988 | H54: 0.1593213073 | I54: 0.1604551583 | J54: 0.1617138793 | K54: 0.1616355218 | L54: 0.16220181
B55: LIQUIDEZ
B56: FONDOS DISPONIBLES / TOTAL DEPOSITOS A CORTO PLAZO | C56: 0.2051859073 | D56: 0.2072768913 | E56: 0.2081659299 | F56: 0.2082082515 | G56: 0.2047787493 | H56: 0.2089753813 | I56: 0.178692107 | J56: 0.2148414225 | K56: 0.2114492438 | L56: 0.1922181174
B57: VULNERABILIDAD DEL PATRIMONIO
B58: CARTERA IMPRODUCTIVA DESCUBIERTA / (PATRIMONIO + RESULTADOS) | C58: 0 | D58: 0 | E58: 0 | F58: 0 | G58: 0 | H58: 0 | I58: 0 | J58: 0 | K58: 0 | L58: 0
B59: CARTERA IMPRODUCTIVA / PATRIMONIO (DIC) | C59: 0.5279052013 | D59: 0.5474924833 | E59: 0.4974359242 | F59: 0.5311753548 | G59: 0.5262714751 | H59: 0.5625640629 | I59: 0.5800964466 | J59: 0.5862222608 | K59: 0.6415737715 | L59: 0.6793016079
B60: FK = (PATRIMONIO + RESULTADOS - INGRESOS EXTRAORDINARIOS) / ACTIVOS TOTALES | C60: 0.1060077167 | D60: 0.1049021133 | E60: 0.1065710526 | F60: 0.1072549895 | G60: 0.1082608335 | H60: 0.1095436473 | I60: 0.1120181357 | J60: 0.1121616888 | K60: 0.1122870734 | L60: 0.1135719496
B61: FI = 1 + (ACTIVOS IMPRODUCTIVOS / ACTIVOS TOTALES) | C61: 1.069670695 | D61: 1.069803073 | E61: 1.07006392 | F61: 1.073258492 | G61: 1.073816282 | H61: 1.077928954 | I61: 1.086049585 | J61: 1.084459802 | K61: 1.093329651 | L61: 1.103150334
B62: INDICE DE CAPITALIZACION NETO: FK / FI | C62: 0.09910313255 | D62: 0.09805740509 | E62: 0.09959316509 | F62: 0.09993397701 | G62: 0.100818767 | H62: 0.1016241812 | I62: 0.1031427453 | J62: 0.1034263222 | K62: 0.1027019374 | L62: 0.1029523775

Sheet CATASTRO (hidden)
A1: NOM_RAZON_SOCIAL | B1: NUM_RUC | C1: Direccin | D1: Telfono | E1: Email | F1: NombreGerente | G1: SEGMENTO | H1: ACTIVO | I1: PASIVO | J1: PATRIMONIO | K1: CARTERA POR VENCER | L1: CARTERA QUE NO DEVENGA INTERES | M1: CARTERA VENCIDA | N1: Microcredito2 | O1: Comercial | P1: Consumo3 | Q1: Inmobiliario | R1: Productivo | S1: Vivienda4 | T1: Educativo
A2: 23 DE JULIO LTDA | B2: 1790093204001 | C2: SUCRE E132 JUAN MONTALVO Y TERAN | D2: 022362191 | E2: lecheverria@coop23dejulio.fin.ec | F2: WALTER EDUARDO AGUIRRE SOSA | G2: 1
A3: 29 DE OCTUBRE LTDA | B3: 1790567699001 | C3: MARISCAL SUCRE OE6-140 CAÑARIS | D3: 022640509 | E3: eeguez@29deoctubre.fin.ec | F3: EGUEZ LUPERA EDWIN CARLOS MARIO | G3: 1
A4: ALIANZA DEL VALLE LTDA | B4: 1790501469001 | C4: DUCHICELA S/N HUANCAVILCA | D4: 022998600 | E4: jzambrano@alianzadelvalle.fin.ec | F4: CADENA LUCERO HECTOR ROLANDO | G4: 1
A5: ANDALUCIA LTDA | B5: 1790325083001 | C5: JORGE PIEDRA OE5-95 AZOGUES | D5: 023301920 | E5: gerenciageneral@andalucia.fin.ec | F5: ORTIZ PAREDES MAURICIO BOLIVAR | G5: 1
A6: ATUNTAQUI LTDA | B6: 1090033456001 | C6: RIO AMAZONAS 1217 SUCRE | D6: 062909399 | E6: secretaria@atuntaqui.fin.ec | F6: BENALCAZAR MOLINA RODRIGO SANTIAGO | G6: 1
A7: CAJA CENTRAL FINANCOOP | B7: 1791708040001 | C7: AV. 6 DE DICIEMBRE N33-55 AV. ELOY ALFARO | D7: 022553117 | E7: gerencia@financoop.net | F7: MARIN LUIS BAUTISTA QUISPE | G7: 1
A8: CAMARA DE COMERCIO DE AMBATO LTDA | B8: 1890080967001 | C8: MONTALVO 3-43 ROCAFUERTE | D8: 032826057 | E8: vvaldez@ccca.fin.ec | F8: RAMIRO MARCELO PORTERO LOPEZ | G8: 1
A9: COOPROGRESO LTDA | B9: 1790451801001 | C9: AV. MANUEL CÓRDOVA GALARZA S/N MARIETA DE VEINTIMILLA 9380 | D9: 024000900 | E9: gerencia@cooprogreso.fin.ec | F9: MUÑOZ LOPEZ WASHINGTON STALIN | G9: 1
A10: DE LA PEQUEÑA EMPRESA BIBLIAN LTDA | B10: 0390027923001 | C10: MARISCAL SUCRE 3-38 DANIEL MUÑOZ | D10: 072230836 | E10: info@cacpebiblian.fin.ec | F10: GONZALEZ BUSTOS JUAN PABLO | G10: 1
A11: DE LA PEQUEÑA EMPRESA DE COTOPAXI LTDA | B11: 0590052000001 | C11: SANCHEZ DE ORELLANA 1544 RAMIREZ FITA | D11: 032807900 | E11: vescobar@cacpeco.com | F11: VIRGINIA DEL CARMEN ESCOBAR JACOME | G11: 1
A12: DE LA PEQUEÑA EMPRESA DE PASTAZA LTDA | B12: 1690012606001 | C12: Atahualpa S/N GENERAL VILLAMIL | D12: 032883042 | E12: secretariacacpepas@gmail.com | F12: ACUÑA CARRASCO EDGAR MAXTRANCEL | G12: 1
A13: DE LOS SERVIDORES PUBLICOS DEL MINISTERIO DE EDUCACION Y CULTURA | B13: 1790979016001 | C13: EL ORO N19-22 AV. UNIVERSITARIA | D13: 022237782 | E13: vinicioa@cacspmec.fin.ec | F13: ANTAMBA GUERRA WASHINGTON VINICIO | G13: 1
A14: EL SAGRARIO LTDA | B14: 1890037646001 | C14: SUCRE S/N QUITO | D14: 032997999 | E14: fvelastegui@elsagrario.fin.ec | F14: FREDY PATRICIO VELASTEGUI MORENO | G14: 1
A15: JARDIN AZUAYO LTDA | B15: 0190155722001 | C15: BENIGNO MALO 27638 ENTRE GRAN COLOMBIA Y SIMON BOLIVAR. 9-75 GRAN COLOMBIA | D15: 072833255 | E15: coopjardinazuayo@jardinazuayo.fin.ec | F15: URGILES MARTINEZ JUAN CARLOS | G15: 1
A16: JUVENTUD ECUATORIANA PROGRESISTA LTDA | B16: 0190115798001 | C16: AV. ORDOÑEZ LAZO, KM6 SAYAUSÍ SN CENTRO PARROQUIAL SAYAUSI | D16: 074135000 | E16: falvear@coopjep.fin.ec | F16: SALDAÑA AVILA KARINA DEL ROSARIO | G16: 1
A17: MUSHUC RUNA LTDA | B17: 1890141877001 | C17: MONTALVO S/N ENTRE JUAN BENIGNO VELA Y Av. CEVALLOS | D17: 032826810 | E17: contador@mushucruna.com | F17: CHANGO PACHA LUIS ALFONSO | G17: 1
A18: OSCUS LTDA | B18: 1890001323001 | C18: LALAMA 0639 SUCRE Y BOLIVAR | D18: 032821131 | E18: asegura@oscus.coop | F18: GALLEGOS BAYAS FREDDY BLAS | G18: 1
A19: PABLO MUÑOZ VEGA LTDA | B19: 0490001883001 | C19: COLON S/N 10 DE AGOSTO | D19: 062980382 | E19: carlosacosta@cpmv.fin.ec | F19: CARLOS ALONSO ACOSTA CARRERA | G19: 1
A20: PILAHUIN TIO LTDA | B20: 1091720902001 | C20: SUCRE 11-09 MORALES | D20: 062927234 | E20: coac@pilahuintio.ec | F20: ANGEL ESTEBAN MAZABANDA MOPOCITA | G20: 1
A21: POLICIA NACIONAL LTDA | B21: 1790866084001 | C21: VOZ ANDES N 42 – 42 AV. AMÉRICA | D21: 3984999 | E21: alejandro.rivadeneira@cooperando.fin.ec | F21: LASCANO ENRIQUE MILTON | G21: 1
A22: RIOBAMBA LTDA | B22: 0690045389001 | C22: 10 DE AGOSTO S/N CRISTOBAL COLON | D22: 032962431 | E22: riobamba@cooprio.fin.ec | F22: MORALES MOROCHO SEGUNDO PEDRO | G22: 1
A23: SAN FRANCISCO LTDA | B23: 1890003628001 | C23: MONTALVO S/N 12 DE NOVIEMBRE | D23: 032824270 | E23: sistemas1@coac-sanfra.com | F23: PAREDES LOPEZ ESTUARDO RIQUELMEN | G23: 1
A24: SAN JOSE LTDA | B24: 0290003288001 | C24: CHIMBORAZO 536 TRES DE MARZO | D24: 032630297 | E24: coopsanjose@andinanet.net | F24: CAPUZ CAMACHO CESAR LUIS | G24: 1
A25: SANTA ROSA LTDA | B25: 0790024656001 | C25: CUENCA S/N LIBERTAD | D25: 072944190 | E25: secretaria@coopacs.fin.ec | F25: SOLANO DURAN MANUEL AGUSTIN | G25: 1
A26: TULCAN LTDA | B26: 0490002669001 | C26: SUCRE 54061 ATAHUALPA | D26: 062960404 | E26: info@cooptulcan.com | F26: MOSQUERA LOPEZ MARCO ERIC ORLANDO | G26: 1
A27: VICENTINA MANUEL ESTEBAN GODOY ORTEGA LTDA | B27: 1190068389001 | C27: BOLÍVAR 1056 AZUAY | D27: 072584800 | E27: abustos@coopmego.com | F27: ALBERTO GEOVANNY BUSTOS PARRA | G27: 1

Sheet Hoja6 (hidden)
A4: NOM_RAZON_SOCIAL | B4: NUM_RUC | C4: Telfono | D4: Direccin | E4: Email | F4: NombreGerente | G4: SEGMENTO
A5: 29 DE OCTUBRE LTDA | B5: 1790567699001 | C5: 022640509 | D5: MARISCAL SUCRE OE6-140 CAÑARIS | E5: eeguez@29deoctubre.fin.ec | F5: EGUEZ LUPERA EDWIN CARLOS MARIO | G5: 1
A6: Total general

Sheet Hoja1 (hidden)
A2: REPORTE EJECUTIVO
A9: Razón Social: | B9: =+Hoja6!A5 -> 29 DE OCTUBRE LTDA
A10: Número de RUC: | B10: =+Hoja6!B5 -> 1790567699001 | H10: Segmento: | I10: =+Hoja6!G5 -> 1
A11: Dirección: | B11: =+Hoja6!D5 -> MARISCAL SUCRE OE6-140 CAÑARIS | H11: Telefono: | I11: =+Hoja6!C5 -> 022640509
A12: Correo electronico : | B12: =+Hoja6!E5 -> eeguez@29deoctubre.fin.ec
A13: Representante Legal: | B13: =+Hoja6!F5 -> EGUEZ LUPERA EDWIN CARLOS MARIO
A14: Fecha de corte:
A16: Cuentas principales
A17: Cuenta | B17: Valor | C17: Ranking
A18: Activos: | B18: =+VLOOKUP(B9,'Ranking por a,p,p'!B2:E28,2,0) -> 354485209.6 | C18: =+VLOOKUP(B9,'Ranking por a,p,p'!B2:E29,4,0) -> 5
A19: Pasivos: | B19: =+VLOOKUP(B9,'Ranking por a,p,p'!H2:I29,2,0) -> 305817226.9 | C19: =+VLOOKUP(B9,'Ranking por a,p,p'!H2:K29,4,0) -> 5 | E19: Grafico en barra del como se encuentra la coac frente al sistema
A20: Patrimonio: | B20: =+VLOOKUP(B9,'Ranking por a,p,p'!N2:O29,2,0) -> 48667982.7 | C20: =+VLOOKUP(B9,'Ranking por a,p,p'!N2:Q28,4,0) -> 4
A25: Cartera por tipo de crédito tabla pintado los porcentajes | E25: Composicion de la cartera
A26: Microcredito | G26: 3 rubros(vencer,nodevenga,vencido)
A27: Comercial
A28: Consumo
A29: Inmobiliario
A30: Productivo
A31: Vivienda
A32: Educativo

Sheet Ranking por a,p,p (hidden)
B1: ACTIVOS | H1: Pasivo | N1: Patrimonio
B2: ENTIDAD | C2: DÓLARES | D2: PROCENTAJE | E2: Ranking | H2: ENTIDAD | I2: DÓLARES | J2: PROCENTAJE | K2: Ranking | N2: ENTIDAD | O2: DÓLARES | P2: PROCENTAJE | Q2: Ranking
B3: JUVENTUD ECUATORIANA PROGRESISTA LTDA | C3: 1187758361 | D3: 0.1788365307 | E3: 1 | H3: JUVENTUD ECUATORIANA PROGRESISTA LTDA | I3: 1057048698 | J3: 0.1866114265 | K3: 1 | N3: JUVENTUD ECUATORIANA PROGRESISTA LTDA | O3: 130709663 | P3: 0.1337662549 | Q3: 1
B4: JARDIN AZUAYO LTDA | C4: 639156944.4 | D4: 0.09623557637 | E4: 2 | H4: JARDIN AZUAYO LTDA | I4: 552710815.6 | J4: 0.09757559316 | K4: 2 | N4: POLICIA NACIONAL LTDA | O4: 102546955.8 | P4: 0.1049449744 | Q4: 2
B5: POLICIA NACIONAL LTDA | C5: 531928832 | D5: 0.08009062279 | E5: 3 | H5: POLICIA NACIONAL LTDA | I5: 429381876.2 | J5: 0.07580309645 | K5: 3 | N5: JARDIN AZUAYO LTDA | O5: 86446128.82 | P5: 0.08846763612 | Q5: 3
B6: COOPROGRESO LTDA | C6: 364240396.5 | D6: 0.05484237448 | E6: 4 | H6: COOPROGRESO LTDA | I6: 324624297.6 | J6: 0.05730918864 | K6: 4 | N6: 29 DE OCTUBRE LTDA | O6: 48667982.7 | P6: 0.04980606353 | Q6: 4
B7: 29 DE OCTUBRE LTDA | C7: 354485209.6 | D7: 0.05337357085 | E7: 5 | H7: 29 DE OCTUBRE LTDA | I7: 305817226.9 | J7: 0.05398898749 | K7: 5 | N7: SAN FRANCISCO LTDA | O7: 48569400.01 | P7: 0.04970517552 | Q7: 5
B8: SAN FRANCISCO LTDA | C8: 295886817.8 | D8: 0.04455062046 | E8: 6 | H8: OSCUS LTDA | I8: 249940859.7 | J8: 0.04412457102 | K8: 6 | N8: RIOBAMBA LTDA | O8: 43885222.51 | P8: 0.04491146045 | Q8: 6
B9: OSCUS LTDA | C9: 286800106.9 | D9: 0.04318246689 | E9: 7 | H9: SAN FRANCISCO LTDA | I9: 247317417.8 | J9: 0.04366142846 | K9: 7 | N9: DE LA PEQUEÑA EMPRESA DE COTOPAXI LTDA | O9: 43162480.63 | P9: 0.04417181755 | Q9: 7
B10: RIOBAMBA LTDA | C10: 264582463.1 | D10: 0.03983723569 | E10: 8 | H10: RIOBAMBA LTDA | I10: 220697240.6 | J10: 0.03896190115 | K10: 8 | N10: COOPROGRESO LTDA | O10: 39616098.89 | P10: 0.04054250513 | Q10: 8
B11: VICENTINA MANUEL ESTEBAN GODOY ORTEGA LTDA | C11: 247177992.8 | D11: 0.0372167068 | E11: 9 | H11: VICENTINA MANUEL ESTEBAN GODOY ORTEGA LTDA | I11: 208840209.8 | J11: 0.03686866038 | K11: 9 | N11: VICENTINA MANUEL ESTEBAN GODOY ORTEGA LTDA | O11: 38337782.97 | P11: 0.03923429631 | Q11: 9
B12: CAJA CENTRAL FINANCOOP | C12: 215084987 | D12: 0.03238457764 | E12: 10 | H12: CAJA CENTRAL FINANCOOP | I12: 200960704.7 | J12: 0.03547761219 | K12: 10 | N12: OSCUS LTDA | O12: 36859247.25 | P12: 0.03772118564 | Q12: 10
B13: DE LA PEQUEÑA EMPRESA DE COTOPAXI LTDA | C13: 211259111.7 | D13: 0.03180852928 | E13: 11 | H13: ALIANZA DEL VALLE LTDA | I13: 171772925.2 | J13: 0.03032480023 | K13: 11 | N13: MUSHUC RUNA LTDA | O13: 32757386.93 | P13: 0.033523405 | Q13: 11
B14: ALIANZA DEL VALLE LTDA | C14: 201602637.2 | D14: 0.03035458843 | E14: 12 | H14: DE LA PEQUEÑA EMPRESA DE COTOPAXI LTDA | I14: 168096631.1 | J14: 0.02967578709 | K14: 12 | N14: ALIANZA DEL VALLE LTDA | O14: 29829712.01 | P14: 0.0305272676 | Q14: 12
B15: ANDALUCIA LTDA | C15: 191198132.3 | D15: 0.02878801932 | E15: 13 | H15: ANDALUCIA LTDA | I15: 162823783 | J15: 0.02874491825 | K15: 13 | N15: DE LOS SERVIDORES PUBLICOS DEL MINISTERIO DE EDUCACION Y CULTURA | O15: 29302480.47 | P15: 0.02998770697 | Q15: 13
B16: MUSHUC RUNA LTDA | C16: 175740008.3 | D16: 0.02646054484 | E16: 14 | H16: MUSHUC RUNA LTDA | I16: 142982621.4 | J16: 0.02524215864 | K16: 14 | N16: ANDALUCIA LTDA | O16: 28374349.25 | P16: 0.02903787178 | Q16: 14
B17: ATUNTAQUI LTDA | C17: 152237840.3 | D17: 0.02292190742 | E17: 15 | H17: ATUNTAQUI LTDA | I17: 128322006.8 | J17: 0.02265397307 | K17: 15 | N17: EL SAGRARIO LTDA | O17: 26267293.43 | P17: 0.02688154332 | Q17: 15
B18: DE LA PEQUEÑA EMPRESA BIBLIAN LTDA | C18: 150449789 | D18: 0.02265268693 | E18: 16 | H18: DE LA PEQUEÑA EMPRESA BIBLIAN LTDA | I18: 125741884.7 | J18: 0.02219847819 | K18: 16 | N18: 23 DE JULIO LTDA | O18: 25818719.09 | P18: 0.02642247925 | Q18: 16
B19: EL SAGRARIO LTDA | C19: 144183227.7 | D19: 0.02170915319 | E19: 17 | H19: EL SAGRARIO LTDA | I19: 117915934.3 | J19: 0.02081688453 | K19: 17 | N19: DE LA PEQUEÑA EMPRESA BIBLIAN LTDA | O19: 24707904.3 | P19: 0.02528568852 | Q19: 17
B20: CAMARA DE COMERCIO DE AMBATO LTDA | C20: 129837635.6 | D20: 0.01954918866 | E20: 18 | H20: CAMARA DE COMERCIO DE AMBATO LTDA | I20: 113776903.2 | J20: 0.0200861798 | K20: 18 | N20: ATUNTAQUI LTDA | O20: 23915833.5 | P20: 0.02447509547 | Q20: 18
B21: 23 DE JULIO LTDA | C21: 129815215.2 | D21: 0.01954581291 | E21: 19 | H21: SAN JOSE LTDA | I21: 105664663.1 | J21: 0.01865404455 | K21: 19 | N21: TULCAN LTDA | O21: 21028387.28 | P21: 0.0215201275 | Q21: 19
B22: PABLO MUÑOZ VEGA LTDA | C22: 124812786.6 | D22: 0.01879261512 | E22: 20 | H22: PABLO MUÑOZ VEGA LTDA | I22: 104427417 | J22: 0.01843562107 | K22: 20 | N22: SANTA ROSA LTDA | O22: 20897618.46 | P22: 0.0213863007 | Q22: 20
B23: TULCAN LTDA | C23: 124384789.5 | D23: 0.01872817313 | E23: 21 | H23: 23 DE JULIO LTDA | I23: 103996496.1 | J23: 0.01835954627 | K23: 21 | N23: PABLO MUÑOZ VEGA LTDA | O23: 20385369.59 | P23: 0.0208620731 | Q23: 21
B24: SAN JOSE LTDA | C24: 121429557.2 | D24: 0.01828321436 | E24: 22 | H24: TULCAN LTDA | I24: 103356402.2 | J24: 0.01824654407 | K24: 22 | N24: DE LA PEQUEÑA EMPRESA DE PASTAZA LTDA | O24: 18698992.86 | P24: 0.01913626114 | Q24: 22
B25: DE LOS SERVIDORES PUBLICOS DEL MINISTERIO DE EDUCACION Y CULTURA | C25: 118232610.4 | D25: 0.01780186151 | E25: 23 | H25: DE LOS SERVIDORES PUBLICOS DEL MINISTERIO DE EDUCACION Y CULTURA | I25: 88930129.94 | J25: 0.01569972929 | K25: 23 | N25: CAMARA DE COMERCIO DE AMBATO LTDA | O25: 16060732.32 | P25: 0.01643630596 | Q25: 23
B26: SANTA ROSA LTDA | C26: 93632129.5 | D26: 0.01409785504 | E26: 24 | H26: PILAHUIN TIO LTDA | I26: 81969329.54 | J26: 0.01447086926 | K26: 24 | N26: SAN JOSE LTDA | O26: 15764894.14 | P26: 0.01613354973 | Q26: 24
B27: DE LA PEQUEÑA EMPRESA DE PASTAZA LTDA | C27: 93285164.93 | D27: 0.01404561382 | E27: 25 | H27: DE LA PEQUEÑA EMPRESA DE PASTAZA LTDA | I27: 74586172.07 | J27: 0.0131674463 | K27: 25 | N27: CAJA CENTRAL FINANCOOP | O27: 14124282.26 | P27: 0.01445457281 | Q27: 25
B28: PILAHUIN TIO LTDA | C28: 92384164.49 | D28: 0.01390995341 | E28: 26 | H28: SANTA ROSA LTDA | I28: 72734511.04 | J28: 0.01284055397 | K28: 26 | N28: PILAHUIN TIO LTDA | O28: 10414834.95 | P28: 0.0106583816 | Q28: 26
B29: Total general | C29: 6641586911 | D29: 1 | H29: Total general | I29: 5664437158 | J29: 1 | N29: Total general | O29: 977149753.5 | P29: 1

Sheet PARA REPORTE TOTAL (hidden)
A1: NOM_RAZON_SOCIAL | B1: 23 DE JULIO LTDA
B3: Etiquetas de columna
A4: Valores | B4: 2016-12-31
A5: Suma de A1_DE_1_A_30_DIAS | B5: 118752.28
A6: Suma de A1_DE_31_A_90DIAS | B6: 87811.94
A7: Suma de A1_DE_91_A_180_DIAS | B7: 134405.81
A8: Suma de A1_DE_181_A_360_DIAS | B8: 252709.37
A9: Suma de A1_DE_MAS_DE_360_DIAS | B9: 755762.38
A10: Suma de A2_DE_1_A_30_DIAS | B10: 11600.33
A11: Suma de A2_DE_31_A_90DIAS | B11: 10518.22
A12: Suma de A2_DE_91_A_180_DIAS | B12: 15065
A13: Suma de A2_DE_181_A_360_DIAS | B13: 29024.38
A14: Suma de A2_DE_MAS_DE_360_DIAS | B14: 47963.56
A15: Suma de A3_DE_1_A_30_DIAS | B15: 0
A16: Suma de A3_DE_31_A_90DIAS | B16: 7378.38
A17: Suma de A3_DE_91_A_180_DIAS | B17: 1791.74
A18: Suma de A3_DE_181_A_360_DIAS | B18: 9642.61
A19: Suma de A3_DE_MAS_DE_360_DIAS | B19: 5301.96
A20: Suma de A4_DE_1_A_30_DIAS | B20: 1282868.39
A21: Suma de A4_DE_31_A_90DIAS | B21: 2503954.13
A22: Suma de A4_DE_91_A_180_DIAS | B22: 3746133.25
A23: Suma de A4_DE_MAS_DE_180_DIAS | B23: 26191357.07
A24: Suma de A5_DE_1_A_30_DIAS | B24: 123525.64
A25: Suma de A5_DE_31_A_90DIAS | B25: 115387.24
A26: Suma de A5_DE_91_A_180_DIAS | B26: 151032.64
A27: Suma de A5_DE_MAS_DE_180_DIAS | B27: 520743.2
A28: Suma de A6_DE_31_A_90DIAS | B28: 275.52
A29: Suma de A6_DE_91_A_180_DIAS | B29: 101403.53
A30: Suma de A6_DE_181_A_360_DIAS | B30: 110833.12
A31: Suma de A6_DE_MAS_DE_360_DIAS | B31: 663500.33
A32: Suma de A7_DE_1_A_30_DIAS | B32: 129165.12
A33: Suma de A7_DE_31_A_90DIAS | B33: 214687.87
A34: Suma de A7_DE_181_A_360_DIAS | B34: 936038.08
A35: Suma de A7_DE_MAS_DE_360_DIAS | B35: 6281839.99
A36: Suma de A8_DE_1_A_30_DIAS | B36: 23186.37
A37: Suma de A8_DE_31_A_90DIAS | B37: 14632.91
A38: Suma de A8_DE_91_A_360_DIAS | B38: 61548.58
A39: Suma de A8_DE_MAS_DE_360_DIAS | B39: 265241.66
A40: Suma de A9_DE_1_A_30_DIAS | B40: 0
A41: Suma de A9_DE_31_A_90DIAS | B41: 5253.35
A42: Suma de A9_DE_91_A_360_DIAS | B42: 41731.9
A43: Suma de A9_DE_MAS_DE_360_DIAS | B43: 50346.21
A44: Suma de A10_DE_1_A_30_DIAS | B44: 1416981.96
A45: Suma de A10_DE_31_A_90DIAS | B45: 2607159.29
A46: Suma de A10_DE_91_A_180_DIAS | B46: 3853512.2
A47: Suma de A10_DE_181_A_360_DIAS | B47: 7111740.96
A48: Suma de A10_DE_MAS_DE_360_DIAS | B48: 18473253.01
A49: Suma de A11_DE_1_A_30_DIAS | B49: 352035.74
A50: Suma de A11_DE_31_A_90DIAS | B50: 330625.33
A51: Suma de A11_DE_91_A_180_DIAS | B51: 445944.35
A52: Suma de A11_DE_181_A_360_DIAS | B52: 703430.96
A53: Suma de A11_DE_MAS_DE_360_DIAS | B53: 997249.55
A54: Suma de A12_DE_1_A_30_DIAS | B54: 4
A55: Suma de A12_DE_31_A_90DIAS | B55: 280973.31
A56: Suma de A12_DE_91_A_180_DIAS | B56: 510141.02
A57: Suma de A12_DE_181_A_360_DIAS | B57: 696534.49
A58: Suma de A12_DE_MAS_DE_360_DIAS | B58: 1346172.34
A59: Suma de A13_DE_1_A_30_DIAS | B59: 0
A60: Suma de A13_DE_31_A_90DIAS | B60: 0
A61: Suma de A13_DE_91_A_180_DIAS | B61: 0
A62: Suma de A13_DE_181_A_360_DIAS | B62: 0
A63: Suma de A13_DE_MAS_DE_360_DIAS | B63: 0
A64: Suma de A14_DE_1_A_30_DIAS | B64: 0
A65: Suma de A14_DE_31_A_90DIAS | B65: 0
A66: Suma de A14_DE_91_A_180_DIAS | B66: 0
A67: Suma de A14_DE_181_A_360_DIAS | B67: 0
A68: Suma de A14_DE_MAS_DE_360_DIAS | B68: 0
A69: Suma de A15_DE_1_A_30_DIAS | B69: 0
A70: Suma de A15_DE_31_A_90DIAS | B70: 0
A71: Suma de A15_DE_91_A_180_DIAS | B71: 0
A72: Suma de A15_DE_181_A_360_DIAS | B72: 0
A73: Suma de A15_DE_MAS_DE_360_DIAS | B73: 0
A74: Suma de A16_DE_1_A_30_DIAS | B74: 0
A75: Suma de A16_DE_31_A_90DIAS | B75: 0
A76: Suma de A16_DE_91_A_180_DIAS | B76: 0
A77: Suma de A16_DE_181_A_360_DIAS | B77: 0
A78: Suma de A16_DE_MAS_DE_360_DIAS | B78: 0
A79: Suma de A17_DE_1_A_30_DIAS | B79: 0
A80: Suma de A17_DE_31_A_90DIAS | B80: 0
A81: Suma de A17_DE_91_A_180_DIAS | B81: 0
A82: Suma de A17_DE_181_A_360_DIAS | B82: 0
A83: Suma de A17_DE_MAS_DE_360_DIAS | B83: 0
A84: Suma de A18_DE_1_A_30_DIAS | B84: 0
A85: Suma de A18_DE_31_A_90DIAS | B85: 0
A86: Suma de A18_DE_91_A_180_DIAS | B86: 0
A87: Suma de A18_DE_181_A_360_DIAS | B87: 0
A88: Suma de A18_DE_MAS_DE_360_DIAS | B88: 0
A89: Suma de A19_DE_1_A_30_DIAS | B89: 75454.16
A90: Suma de A19_DE_31_A_90DIAS | B90: 172087.87
A91: Suma de A19_DE_91_A_180_DIAS | B91: 288377.58
A92: Suma de A19_DE_181_A_360_DIAS | B92: 566634.08
A93: Suma de A19_DE_MAS_DE_360_DIAS | B93: 3111009.78
A94: Suma de A20_DE_1_A_30_DIAS | B94: 509.43
A95: Suma de A20_DE_31_A_90DIAS | B95: 523.56
A96: Suma de A20_DE_91_A_180_DIAS | B96: 810.35
A97: Suma de A20_DE_181_A_360_DIAS | B97: 744.47
A98: Suma de A20_DE_MAS_DE_360_DIAS | B98: 1378.96
A99: Suma de A21_DE_1_A_30_DIAS | B99: 0
A100: Suma de A21_DE_31_A_90DIAS | B100: 362.69
A101: Suma de A21_DE_91_A_180_DIAS | B101: 45.28
A102: Suma de A21_DE_181_A_360_DIAS | B102: 0
A103: Suma de A21_DE_MAS_DE_360_DIAS | B103: 0
A104: Suma de A22_DE_1_A_30_DIAS | B104: 0
A105: Suma de A22_DE_31_A_90DIAS | B105: 0
A106: Suma de A22_DE_91_A_360_DIAS | B106: 0
A107: Suma de A22_DE_MAS_DE_360_DIAS | B107: 0
A108: Suma de A23_DE_1_A_30_DIAS | B108: 0
A109: Suma de A23_DE_31_A_90DIAS | B109: 0
A110: Suma de A23_DE_91_A_360_DIAS | B110: 0
A111: Suma de A23_DE_MAS_DE_360_DIAS | B111: 0
A112: Suma de A24_DE_1_A_30_DIAS | B112: 0
A113: Suma de A24_DE_31_A_90DIAS | B113: 0
A114: Suma de A24_DE_91_A_360_DIAS | B114: 0
A115: Suma de A24_DE_MAS_DE_360_DIAS | B115: 0
A116: Suma de A25_DE_1_A_30_DIAS | B116: 0
A117: Suma de A25_DE_31_A_90DIAS | B117: 0
A118: Suma de A25_DE_91_A_180_DIAS | B118: 0
A119: Suma de A25_DE_181_A_360_DIAS | B119: 0
A120: Suma de A25_DE_MAS_DE_360_DIAS | B120: 0
A121: Suma de A26_DE_1_A_30_DIAS | B121: 0
A122: Suma de A26_DE_31_A_90DIAS | B122: 0
A123: Suma de A26_DE_91_A_180_DIAS | B123: 0
A124: Suma de A26_DE_181_A_360_DIAS | B124: 0
A125: Suma de A26_DE_MAS_DE_360_DIAS | B125: 0
A126: Suma de A27_DE_1_A_30_DIAS | B126: 0
A127: Suma de A27_DE_31_A_90DIAS | B127: 0
A128: Suma de A27_DE_91_A_180_DIAS | B128: 0
A129: Suma de A27_DE_181_A_360_DIAS | B129: 0
A130: Suma de A27_DE_MAS_DE_360_DIAS | B130: 0
A131: Suma de carte_impr | B131: 8054414.21
A132: Suma de A1499 | B132: -9804021.91
A133: Suma de Carte_bruta | B133: 88366110.78
A134: Suma de A14 | B134: 78562088.87
B135: =+GETPIVOTDATA("Suma de A14",$A$3,"FEC_CORTE",DATE(2016,1,31))-GETPIVOTDATA("Suma de A1499",$A$3,"FEC_CORTE",DATE(2016,1,31)) -> 
A138: =+'CLASIFICACIÓN DE CARTERA'!#REF! ->  | B138: =+SUM(B5:B9) -> 1349441.78 | C138: =+SUM(C5:C9) -> 0 | D138: 0 | E138: 0 | F138: 0 | G138: 0 | H138: 0 | I138: 0 | J138: 0 | K138: 0 | L138: 0 | M138: 0 | N138: 0
A139: =+'CLASIFICACIÓN DE CARTERA'!#REF! ->  | B139: =+SUM(B10:B14) -> 114171.49 | C139: =+SUM(C10:C14) -> 0 | D139: 0 | E139: 0 | F139: 0 | G139: 0 | H139: 0 | I139: 0 | J139: 0 | K139: 0 | L139: 0 | M139: 0 | N139: 0
A140: =+'CLASIFICACIÓN DE CARTERA'!#REF! ->  | B140: =+SUM(B15:B19) -> 24114.69 | C140: =+SUM(C15:C19) -> 0 | D140: 0 | E140: 0 | F140: 0 | G140: 0 | H140: 0 | I140: 0 | J140: 0 | K140: 0 | L140: 0 | M140: 0 | N140: 0
A141: =+'CLASIFICACIÓN DE CARTERA'!#REF! ->  | B141: =+SUM(B20:B23) -> 33724312.84 | C141: =+SUM(C20:C23) -> 0 | D141: 0 | E141: 0 | F141: 0 | G141: 0 | H141: 0 | I141: 0 | J141: 0 | K141: 0 | L141: 0 | M141: 0 | N141: 0
A142: =+'CLASIFICACIÓN DE CARTERA'!#REF! ->  | B142: =+SUM(B24:B27) -> 910688.72 | C142: =+SUM(C24:C27) -> 0 | D142: 0 | E142: 0 | F142: 0 | G142: 0 | H142: 0 | I142: 0 | J142: 0 | K142: 0 | L142: 0 | M142: 0 | N142: 0
A143: =+'CLASIFICACIÓN DE CARTERA'!#REF! ->  | B143: =+SUM(B28:B31) -> 876012.5 | C143: =+SUM(C28:C31) -> 0 | D143: 0 | E143: 0 | F143: 0 | G143: 0 | H143: 0 | I143: 0 | J143: 0 | K143: 0 | L143: 0 | M143: 0 | N143: 0
A144: =+'CLASIFICACIÓN DE CARTERA'!#REF! ->  | B144: =+SUM(B32:B35) -> 7561731.06 | C144: =+SUM(C32:C35) -> 0 | D144: 0 | E144: 0 | F144: 0 | G144: 0 | H144: 0 | I144: 0 | J144: 0 | K144: 0 | L144: 0 | M144: 0 | N144: 0
A145: =+'CLASIFICACIÓN DE CARTERA'!#REF! ->  | B145: =+SUM(B36:B39) -> 364609.52 | C145: =+SUM(C36:C39) -> 0 | D145: 0 | E145: 0 | F145: 0 | G145: 0 | H145: 0 | I145: 0 | J145: 0 | K145: 0 | L145: 0 | M145: 0 | N145: 0
A146: =+'CLASIFICACIÓN DE CARTERA'!#REF! ->  | B146: =+SUM(B40:B43) -> 97331.46 | C146: =+SUM(C40:C43) -> 0 | D146: 0 | E146: 0 | F146: 0 | G146: 0 | H146: 0 | I146: 0 | J146: 0 | K146: 0 | L146: 0 | M146: 0 | N146: 0
A147: =+'CLASIFICACIÓN DE CARTERA'!#REF! ->  | B147: =+SUM(B44:B48) -> 33462647.42 | C147: =+SUM(C44:C48) -> 0 | D147: 0 | E147: 0 | F147: 0 | G147: 0 | H147: 0 | I147: 0 | J147: 0 | K147: 0 | L147: 0 | M147: 0 | N147: 0
A148: =+'CLASIFICACIÓN DE CARTERA'!#REF! ->  | B148: =+SUM(B49:B53) -> 2829285.93 | C148: =+SUM(C49:C53) -> 0 | D148: 0 | E148: 0 | F148: 0 | G148: 0 | H148: 0 | I148: 0 | J148: 0 | K148: 0 | L148: 0 | M148: 0 | N148: 0
A149: =+'CLASIFICACIÓN DE CARTERA'!#REF! ->  | B149: =+SUM(B54:B58) -> 2833825.16 | C149: =+SUM(C54:C58) -> 0 | D149: 0 | E149: 0 | F149: 0 | G149: 0 | H149: 0 | I149: 0 | J149: 0 | K149: 0 | L149: 0 | M149: 0 | N149: 0
A150: =+'CLASIFICACIÓN DE CARTERA'!#REF! ->  | B150: =+SUM(B59:B63) -> 0 | C150: =+SUM(C59:C63) -> 0 | D150: 0 | E150: 0 | F150: 0 | G150: 0 | H150: 0 | I150: 0 | J150: 0 | K150: 0 | L150: 0 | M150: 0 | N150: 0
A151: =+'CLASIFICACIÓN DE CARTERA'!#REF! ->  | B151: =+SUM(B64:B68) -> 0 | C151: =+SUM(C64:C68) -> 0 | D151: 0 | E151: 0 | F151: 0 | G151: 0 | H151: 0 | I151: 0 | J151: 0 | K151: 0 | L151: 0 | M151: 0 | N151: 0
A152: =+'CLASIFICACIÓN DE CARTERA'!#REF! ->  | B152: =+SUM(B69:B73) -> 0 | C152: =+SUM(C69:C73) -> 0 | D152: 0 | E152: 0 | F152: 0 | G152: 0 | H152: 0 | I152: 0 | J152: 0 | K152: 0 | L152: 0 | M152: 0 | N152: 0
A153: =+'CLASIFICACIÓN DE CARTERA'!#REF! ->  | B153: =+SUM(B74:B78) -> 0 | C153: =+SUM(C74:C78) -> 0 | D153: 0 | E153: 0 | F153: 0 | G153: 0 | H153: 0 | I153: 0 | J153: 0 | K153: 0 | L153: 0 | M153: 0 | N153: 0
A154: =+'CLASIFICACIÓN DE CARTERA'!#REF! ->  | B154: =+SUM(B79:B83) -> 0 | C154: =+SUM(C79:C83) -> 0 | D154: 0 | E154: 0 | F154: 0 | G154: 0 | H154: 0 | I154: 0 | J154: 0 | K154: 0 | L154: 0 | M154: 0 | N154: 0
A155: =+'CLASIFICACIÓN DE CARTERA'!#REF! ->  | B155: =+SUM(B84:B88) -> 0 | C155: =+SUM(C84:C88) -> 0 | D155: 0 | E155: 0 | F155: 0 | G155: 0 | H155: 0 | I155: 0 | J155: 0 | K155: 0 | L155: 0 | M155: 0 | N155: 0
A156: =+'CLASIFICACIÓN DE CARTERA'!#REF! ->  | B156: =+SUM(B89:B93) -> 4213563.47 | C156: =+SUM(C89:C93) -> 0 | D156: 0 | E156: 0 | F156: 0 | G156: 0 | H156: 0 | I156: 0 | J156: 0 | K156: 0 | L156: 0 | M156: 0 | N156: 0
A157: =+'CLASIFICACIÓN DE CARTERA'!#REF! ->  | B157: =+SUM(B94:B98) -> 3966.77 | C157: =+SUM(C94:C98) -> 0 | D157: 0 | E157: 0 | F157: 0 | G157: 0 | H157: 0 | I157: 0 | J157: 0 | K157: 0 | L157: 0 | M157: 0 | N157: 0
A158: =+'CLASIFICACIÓN DE CARTERA'!#REF! ->  | B158: =+SUM(B99:B103) -> 407.97 | C158: =+SUM(C99:C103) -> 0 | D158: 0 | E158: 0 | F158: 0 | G158: 0 | H158: 0 | I158: 0 | J158: 0 | K158: 0 | L158: 0 | M158: 0 | N158: 0
A159: =+'CLASIFICACIÓN DE CARTERA'!#REF! ->  | B159: =+SUM(B104:B107) -> 0 | C159: =+SUM(C104:C107) -> 0 | D159: 0 | E159: 0 | F159: 0 | G159: 0 | H159: 0 | I159: 0 | J159: 0 | K159: 0 | L159: 0 | M159: 0 | N159: 0
A160: =+'CLASIFICACIÓN DE CARTERA'!#REF! ->  | B160: =+SUM(B108:B111) -> 0 | C160: =+SUM(C108:C111) -> 0 | D160: 0 | E160: 0 | F160: 0 | G160: 0 | H160: 0 | I160: 0 | J160: 0 | K160: 0 | L160: 0 | M160: 0 | N160: 0
A161: =+'CLASIFICACIÓN DE CARTERA'!#REF! ->  | B161: =+SUM(B112:B115) -> 0 | C161: =+SUM(C112:C115) -> 0 | D161: 0 | E161: 0 | F161: 0 | G161: 0 | H161: 0 | I161: 0 | J161: 0 | K161: 0 | L161: 0 | M161: 0 | N161: 0
A162: =+'CLASIFICACIÓN DE CARTERA'!#REF! ->  | B162: =+SUM(B116:B120) -> 0 | C162: =+SUM(C116:C120) -> 0 | D162: 0 | E162: 0 | F162: 0 | G162: 0 | H162: 0 | I162: 0 | J162: 0 | K162: 0 | L162: 0 | M162: 0 | N162: 0
A163: =+'CLASIFICACIÓN DE CARTERA'!#REF! ->  | B163: =+SUM(B121:B125) -> 0 | C163: =+SUM(C121:C125) -> 0 | D163: 0 | E163: 0 | F163: 0 | G163: 0 | H163: 0 | I163: 0 | J163: 0 | K163: 0 | L163: 0 | M163: 0 | N163: 0
A164: =+'CLASIFICACIÓN DE CARTERA'!#REF! ->  | B164: =+SUM(B126:B130) -> 0 | C164: =+SUM(C126:C130) -> 0 | D164: 0 | E164: 0 | F164: 0 | G164: 0 | H164: 0 | I164: 0 | J164: 0 | K164: 0 | L164: 0 | M164: 0 | N164: 0
A166: TOTAL CARTERA | B166: =+SUM(B138:B164) -> 88366110.78 | C166: =+SUM(C138:C164) -> 0 | D166: 0 | E166: 0 | F166: 0 | G166: 0 | H166: 0 | I166: 0 | J166: 0 | K166: 0 | L166: 0 | M166: 0 | N166: 0
A167: TOTAL CARTERA POR VENCER | B167: =+B138+B141+B144+B147+B150+B153+B156+B159+B162 -> 80311696.57 | C167: =+C138+C141+C144+C147+C150+C153+C156+C159+C162 -> 0 | D167: 0 | E167: 0 | F167: 0 | G167: 0 | H167: 0 | I167: 0 | J167: 0 | K167: 0 | L167: 0 | M167: 0 | N167: 0
A168: TOTAL CARTERA QUE NO DEVENGA INTERES | B168: =+B139+B142+B145+B148+B151+B154+B157+B160+B163 -> 4222722.43 | C168: 0 | D168: 0 | E168: 0 | F168: 0 | G168: 0 | H168: 0 | I168: 0 | J168: 0 | K168: 0 | L168: 0 | M168: 0 | N168: 0
A169: TOTAL CARTERA VENCIDA | B169: 3831691.78 | C169: 0 | D169: 0 | E169: 0 | F169: 0 | G169: 0 | H169: 0 | I169: 0 | J169: 0 | K169: 0 | L169: 0 | M169: 0 | N169: 0
B170: =+B166-B132 -> 98170132.69
B171: =+B170-B133 -> 9804021.91
